Body Name,Body,Service Area Catergorisation,Service Division Catergorisation,Responsible Unit,Expenses Type,Detailed Expenses Type,Expenses Code,Date,Transaction Number,Amount,Capital / Revenue,Supplier Name,Supplier ID
North East Lincolnshire Council,http://statistics.data.gov.uk/id/local-authority/00FC,Cap People And Communities,Cap Improved Health,Ctp Schemes,Cap Land/Build-Build Enh Wrk,Cap Land/Build-Build Enh Wrk,YA102,18/06/2012,118090,"10,640.00",Capital,NEWGLAZE,100642
North East Lincolnshire Council,http://statistics.data.gov.uk/id/local-authority/00FC,Cap People And Communities,Cap Improved Health,Queen Street Upgrade,Cap Land/Build-Build Enh Wrk,Cap Land/Build-Build Enh Wrk,YA102,22/06/2012,119698,"5,948.00",Capital,EXPERT RADIOLINK SECURITY,101603
North East Lincolnshire Council,http://statistics.data.gov.uk/id/local-authority/00FC,Cap People And Communities,Cap Vulnerable Young People,Aiming High For Disabled Child,Cap Land/Build-Build Enh Wrk,Cap Land/Build-Build Enh Wrk,YA102,08/06/2012,116504,"6,469.65",Capital,WESTHOLME,100608
North East Lincolnshire Council,http://statistics.data.gov.uk/id/local-authority/00FC,Cap Resources,Cap Commission & Inform System,Agile Working - Civic Pilot,Cap Comm Asset-Purchase,Cap Comm Asset-Purchase,YD101,11/06/2012,116528,"1,075.20",Capital,TRUSTMARQUE SOLUTIONS LTD,101275
North East Lincolnshire Council,http://statistics.data.gov.uk/id/local-authority/00FC,Cap Resources,Cap Commission & Inform System,Agile Working - Civic Pilot,Cap Comm Asset-Purchase,Cap Comm Asset-Purchase,YD101,11/06/2012,116528,"3,582.60",Capital,TRUSTMARQUE SOLUTIONS LTD,101275
North East Lincolnshire Council,http://statistics.data.gov.uk/id/local-authority/00FC,Cap Resources,Cap Commission & Inform System,Frontier Isms Project,Cap Veh Plt Eqp-Purchase,Cap Veh Plt Eqp-Purchase,YB101,26/06/2012,119951,"1,428.56",Capital,BADENOCH & CLARK,101427
North East Lincolnshire Council,http://statistics.data.gov.uk/id/local-authority/00FC,Cap Resources,Cap Commission & Inform System,Frontier Isms Project,Cap Veh Plt Eqp-Purchase,Cap Veh Plt Eqp-Purchase,YB101,26/06/2012,119974,"1,428.56",Capital,BADENOCH & CLARK,101427
North East Lincolnshire Council,http://statistics.data.gov.uk/id/local-authority/00FC,Cap Resources,Cap Commission & Inform System,Frontier Isms Project,Cap Veh Plt Eqp-Purchase,Cap Veh Plt Eqp-Purchase,YB101,26/06/2012,119975,"1,428.56",Capital,BADENOCH & CLARK,101427
North East Lincolnshire Council,http://statistics.data.gov.uk/id/local-authority/00FC,Cap Resources,Cap Commission & Inform System,Frontier Isms Project,Cap Veh Plt Eqp-Purchase,Cap Veh Plt Eqp-Purchase,YB101,26/06/2012,119973,"1,785.70",Capital,BADENOCH & CLARK,101427
North East Lincolnshire Council,http://statistics.data.gov.uk/id/local-authority/00FC,Cap Resources,Cap Commission & Inform System,Frontier Isms Project,Cap Veh Plt Eqp-Purchase,Cap Veh Plt Eqp-Purchase,YB101,26/06/2012,119972,"1,785.70",Capital,BADENOCH & CLARK,101427
North East Lincolnshire Council,http://statistics.data.gov.uk/id/local-authority/00FC,Cap Resources,Cap Commission & Inform System,Frontier Isms Project,Cap Veh Plt Eqp-Purchase,Cap Veh Plt Eqp-Purchase,YB101,26/06/2012,119971,"1,785.70",Capital,BADENOCH & CLARK,101427
North East Lincolnshire Council,http://statistics.data.gov.uk/id/local-authority/00FC,Cap Resources,Cap Commission & Inform System,Frontier Isms Project,Cap Veh Plt Eqp-Purchase,Cap Veh Plt Eqp-Purchase,YB101,29/06/2012,120669,"5,995.00",Capital,IT GOVERNANCE LTD,109560
North East Lincolnshire Council,http://statistics.data.gov.uk/id/local-authority/00FC,Cap Resources,Cap Finance And Assets,Dda Work,Cap Auc-Build Enh Wrk,Cap Auc-Build Enh Wrk,YF102,21/06/2012,119143,807.89,Capital,MANTA SHOPFITTERS LTD,102230
North East Lincolnshire Council,http://statistics.data.gov.uk/id/local-authority/00FC,Cap Resources,Cap Finance And Assets,Devolved Formula Cap Grant,Cap Land/Build-Build Enh Wrk,Cap Land/Build-Build Enh Wrk,YA102,20/06/2012,118207,"9,963.00",Capital,ARK JOINERY AND BUILDING MAINTENANCE LTD,101126
North East Lincolnshire Council,http://statistics.data.gov.uk/id/local-authority/00FC,Cap Resources,Cap Finance And Assets,School'S Kitchens,Cap Land/Build-Build Enh Wrk,Cap Land/Build-Build Enh Wrk,YA102,13/06/2012,117342,"9,727.69",Capital,UNIBUILD BUILDING CONT LTD,101469
North East Lincolnshire Council,http://statistics.data.gov.uk/id/local-authority/00FC,Cap Resources,Cap Finance And Assets,Schools - Capital Allocation,Cap Land/Build-Build Enh Wrk,Cap Land/Build-Build Enh Wrk,YA102,29/06/2012,121128,640.00,Capital,ETON-LINCS LIMITED,101510
North East Lincolnshire Council,http://statistics.data.gov.uk/id/local-authority/00FC,Cap Resources,Cap Finance And Assets,Schools - Capital Allocation,Cap Land/Build-Build Enh Wrk,Cap Land/Build-Build Enh Wrk,YA102,22/06/2012,119609,"4,680.00",Capital,EXCELL ELECTRICAL CONTRACTORS,100601
North East Lincolnshire Council,http://statistics.data.gov.uk/id/local-authority/00FC,Cap Resources,Cap Finance And Assets,Schools - Capital Allocation,Cap Land/Build-Build Enh Wrk,Cap Land/Build-Build Enh Wrk,YA102,11/06/2012,116894,"17,996.68",Capital,ABM ROOFING CONTRACTORS,100505
North East Lincolnshire Council,http://statistics.data.gov.uk/id/local-authority/00FC,Cap Resources,Cap Finance And Assets,Schools - Capital Allocation,Cap Land/Build-Build Enh Wrk,Cap Land/Build-Build Enh Wrk,YA102,11/06/2012,116896,"28,379.73",Capital,NRA ROOFING & FLOORING SERVICES,101810
North East Lincolnshire Council,http://statistics.data.gov.uk/id/local-authority/00FC,Cap Resources,Cap Finance And Assets,Schools - Capital Allocation,Cap Auc-Build Enh Wrk,Cap Auc-Build Enh Wrk,YF102,21/06/2012,119144,"32,348.04",Capital,P G INGOLDBY & SONS LTD,100591
North East Lincolnshire Council,http://statistics.data.gov.uk/id/local-authority/00FC,Cap Resources,Cap Finance And Assets,Schools - Capital Allocation,Cap Land/Build-Build Enh Wrk,Cap Land/Build-Build Enh Wrk,YA102,21/06/2012,119153,"68,093.61",Capital,NRA ROOFING & FLOORING SERVICES,101810
North East Lincolnshire Council,http://statistics.data.gov.uk/id/local-authority/00FC,Cap Resources,Cap Finance And Assets,Schools - Basic Needs,Cap Infrastr-Build Enh Wrk,Cap Infrastr-Build Enh Wrk,YC102,25/06/2012,119547,"1,654.00",Capital,SAFE CONTROL LTD,100989
North East Lincolnshire Council,http://statistics.data.gov.uk/id/local-authority/00FC,Cap Resources,Cap Finance And Assets,Schools - Basic Needs,Cap Land/Build-Build Enh Wrk,Cap Land/Build-Build Enh Wrk,YA102,22/06/2012,119326,"31,229.50",Capital,GAIA TECHNOLOGIES PLC,102572
North East Lincolnshire Council,http://statistics.data.gov.uk/id/local-authority/00FC,Cap Resources,Cap Finance And Assets,Surplus Place Removal,Cap Land/Build-Build Enh Wrk,Cap Land/Build-Build Enh Wrk,YA102,18/06/2012,118198,689.00,Capital,ARK JOINERY AND BUILDING MAINTENANCE LTD,101126
North East Lincolnshire Council,http://statistics.data.gov.uk/id/local-authority/00FC,Cap Resources,Cap Finance And Assets,Surplus Place Removal,Cap Land/Build-Build Enh Wrk,Cap Land/Build-Build Enh Wrk,YA102,18/06/2012,118199,"1,679.00",Capital,ARK JOINERY AND BUILDING MAINTENANCE LTD,101126
North East Lincolnshire Council,http://statistics.data.gov.uk/id/local-authority/00FC,Cap Resources,Cap Finance And Assets,Primary Capital Programme,Cap Auc-Build Enh Wrk,Cap Auc-Build Enh Wrk,YF102,07/06/2012,115908,874.50,Capital,HAMPSHIRE FLAG COMPANY,106041
North East Lincolnshire Council,http://statistics.data.gov.uk/id/local-authority/00FC,Cap Resources,Cap Finance And Assets,Primary Capital Programme,Cap Auc-Build Enh Wrk,Cap Auc-Build Enh Wrk,YF102,18/06/2012,118192,880.00,Capital,HAMPSHIRE FLAG COMPANY,106041
North East Lincolnshire Council,http://statistics.data.gov.uk/id/local-authority/00FC,Cap Resources,Cap Finance And Assets,Primary Capital Programme,Cap Veh Plt Eqp-Build Enh Wrk,Cap Veh Plt Eqp-Build Enh Wrk,YB102,22/06/2012,119328,"24,999.00",Capital,GAIA TECHNOLOGIES PLC,102572
North East Lincolnshire Council,http://statistics.data.gov.uk/id/local-authority/00FC,Cap Resources,Cap Finance And Assets,Primary Capital Programme,Cap Veh Plt Eqp-Build Enh Wrk,Cap Veh Plt Eqp-Build Enh Wrk,YB102,22/06/2012,119330,"121,131.75",Capital,GAIA TECHNOLOGIES PLC,102572
North East Lincolnshire Council,http://statistics.data.gov.uk/id/local-authority/00FC,Cap Resources,Cap Finance And Assets,Primary Capital Programme,Cap Auc-Build Enh Wrk,Cap Auc-Build Enh Wrk,YF102,28/06/2012,121040,"304,600.68",Capital,GEO HOULTON & SONS LTD,102697
North East Lincolnshire Council,http://statistics.data.gov.uk/id/local-authority/00FC,Cap Resources,Cap Finance And Assets,Property Rationalisation,Cap Infrastr-Build Enh Wrk,Cap Infrastr-Build Enh Wrk,YC102,20/06/2012,118899,"2,924.20",Capital,AQUILA BUSINESS PRODUCTS LTD,100607
North East Lincolnshire Council,http://statistics.data.gov.uk/id/local-authority/00FC,Cap Economy Env And Housing,Cap Neighbourhood Services,Cremator Replacement,Cap Land/Build-Build Enh Wrk,Cap Land/Build-Build Enh Wrk,YA102,13/06/2012,117354,"29,274.00",Capital,NORTHERN POWERGRID YORKSHIRE PLC,110628
North East Lincolnshire Council,http://statistics.data.gov.uk/id/local-authority/00FC,Cap Economy Env And Housing,Cap Development,Hps-Disabled Fac. Grants,Cap Grants To O/Side Sources,Cap Grants To O/Side Sources,YJ101,07/06/2012,115440,525.98,Capital,JAMES BRATTON & CO LTD,100714
North East Lincolnshire Council,http://statistics.data.gov.uk/id/local-authority/00FC,Cap Economy Env And Housing,Cap Development,Hps-Disabled Fac. Grants,Cap Grants To O/Side Sources,Cap Grants To O/Side Sources,YJ101,18/06/2012,118048,531.60,Capital,VIC HANSEN BUILDING & JOINERY LTD,103981
North East Lincolnshire Council,http://statistics.data.gov.uk/id/local-authority/00FC,Cap Economy Env And Housing,Cap Development,Hps-Disabled Fac. Grants,Cap Grants To O/Side Sources,Cap Grants To O/Side Sources,YJ101,26/06/2012,120342,532.32,Capital,BLAKES BUILDING SERVICES,101805
North East Lincolnshire Council,http://statistics.data.gov.uk/id/local-authority/00FC,Cap Economy Env And Housing,Cap Development,Hps-Disabled Fac. Grants,Cap Grants To O/Side Sources,Cap Grants To O/Side Sources,YJ101,07/06/2012,116269,672.14,Capital,MARK BENNETT,101838
North East Lincolnshire Council,http://statistics.data.gov.uk/id/local-authority/00FC,Cap Economy Env And Housing,Cap Development,Hps-Disabled Fac. Grants,Cap Grants To O/Side Sources,Cap Grants To O/Side Sources,YJ101,07/06/2012,116272,691.10,Capital,E J PARMENTER,100924
North East Lincolnshire Council,http://statistics.data.gov.uk/id/local-authority/00FC,Cap Economy Env And Housing,Cap Development,Hps-Disabled Fac. Grants,Cap Grants To O/Side Sources,Cap Grants To O/Side Sources,YJ101,18/06/2012,118047,740.48,Capital,JOHN P SEARBY,110673
North East Lincolnshire Council,http://statistics.data.gov.uk/id/local-authority/00FC,Cap Economy Env And Housing,Cap Development,Hps-Disabled Fac. Grants,Cap Grants To O/Side Sources,Cap Grants To O/Side Sources,YJ101,21/06/2012,119279,"1,610.00",Capital,M D BUILDING,103356
North East Lincolnshire Council,http://statistics.data.gov.uk/id/local-authority/00FC,Cap Economy Env And Housing,Cap Development,Hps-Disabled Fac. Grants,Cap Grants To O/Side Sources,Cap Grants To O/Side Sources,YJ101,07/06/2012,115459,"1,651.00",Capital,DOLPHIN MOBILITY EAST MIDLANDS LTD,101317
North East Lincolnshire Council,http://statistics.data.gov.uk/id/local-authority/00FC,Cap Economy Env And Housing,Cap Development,Hps-Disabled Fac. Grants,Cap Land/Build-Build Enh Wrk,Cap Land/Build-Build Enh Wrk,YA102,27/06/2012,117738,"3,801.00",Capital,VIC HANSEN BUILDING & JOINERY LTD,103981
North East Lincolnshire Council,http://statistics.data.gov.uk/id/local-authority/00FC,Cap Economy Env And Housing,Cap Development,Hps-Disabled Fac. Grants,Cap Grants To O/Side Sources,Cap Grants To O/Side Sources,YJ101,06/06/2012,116121,"3,900.00",Capital,VIC HANSEN BUILDING & JOINERY LTD,103981
North East Lincolnshire Council,http://statistics.data.gov.uk/id/local-authority/00FC,Cap Economy Env And Housing,Cap Development,Hps-Disabled Fac. Grants,Cap Grants To O/Side Sources,Cap Grants To O/Side Sources,YJ101,07/06/2012,116285,"4,384.00",Capital,M D BUILDING,103356
North East Lincolnshire Council,http://statistics.data.gov.uk/id/local-authority/00FC,Cap Economy Env And Housing,Cap Development,Hps-Disabled Fac. Grants,Cap Grants To O/Side Sources,Cap Grants To O/Side Sources,YJ101,21/06/2012,119281,"4,854.00",Capital,HANDICARE ACCESSIIBILITY LTD,102647
North East Lincolnshire Council,http://statistics.data.gov.uk/id/local-authority/00FC,Cap Economy Env And Housing,Cap Development,Hps-Disabled Fac. Grants,Cap Grants To O/Side Sources,Cap Grants To O/Side Sources,YJ101,11/06/2012,116897,"5,055.00",Capital,BLAKES BUILDING SERVICES,101805
North East Lincolnshire Council,http://statistics.data.gov.uk/id/local-authority/00FC,Cap Economy Env And Housing,Cap Development,Hps-Disabled Fac. Grants,Cap Grants To O/Side Sources,Cap Grants To O/Side Sources,YJ101,07/06/2012,115440,"5,479.01",Capital,JAMES BRATTON & CO LTD,100714
North East Lincolnshire Council,http://statistics.data.gov.uk/id/local-authority/00FC,Cap Economy Env And Housing,Cap Development,Hps-Disabled Fac. Grants,Cap Grants To O/Side Sources,Cap Grants To O/Side Sources,YJ101,18/06/2012,118048,"5,537.50",Capital,VIC HANSEN BUILDING & JOINERY LTD,103981
North East Lincolnshire Council,http://statistics.data.gov.uk/id/local-authority/00FC,Cap Economy Env And Housing,Cap Development,Hps-Disabled Fac. Grants,Cap Grants To O/Side Sources,Cap Grants To O/Side Sources,YJ101,26/06/2012,120342,"5,545.00",Capital,BLAKES BUILDING SERVICES,101805
North East Lincolnshire Council,http://statistics.data.gov.uk/id/local-authority/00FC,Cap Economy Env And Housing,Cap Development,Hps-Disabled Fac. Grants,Cap Grants To O/Side Sources,Cap Grants To O/Side Sources,YJ101,07/06/2012,116272,"7,199.00",Capital,E J PARMENTER,100924
North East Lincolnshire Council,http://statistics.data.gov.uk/id/local-authority/00FC,Cap Economy Env And Housing,Cap Development,Hps-Disabled Fac. Grants,Cap Grants To O/Side Sources,Cap Grants To O/Side Sources,YJ101,18/06/2012,118047,"7,751.00",Capital,JOHN P SEARBY,110673
North East Lincolnshire Council,http://statistics.data.gov.uk/id/local-authority/00FC,Cap Economy Env And Housing,Cap Development,Hps-Disabled Fac. Grants,Cap Grants To O/Side Sources,Cap Grants To O/Side Sources,YJ101,07/06/2012,116269,"14,003.00",Capital,MARK BENNETT,101838
North East Lincolnshire Council,http://statistics.data.gov.uk/id/local-authority/00FC,Cap Economy Env And Housing,Cap Development,Integrated Transport,Cap Infrastr-Build Enh Wrk,Cap Infrastr-Build Enh Wrk,YC102,20/06/2012,118614,669.00,Capital,NORTHERN POWERGRID (YORKSHIRE) PLC,108328
North East Lincolnshire Council,http://statistics.data.gov.uk/id/local-authority/00FC,Cap Economy Env And Housing,Cap Development,Integrated Transport,Cap Infrastr-Build Enh Wrk,Cap Infrastr-Build Enh Wrk,YC102,20/06/2012,118818,680.00,Capital,J MCCANN & CO LTD,100841
North East Lincolnshire Council,http://statistics.data.gov.uk/id/local-authority/00FC,Cap Economy Env And Housing,Cap Development,Integrated Transport,Cap Infrastr-Purchase,Cap Infrastr-Purchase,YC101,08/06/2012,114223,"1,158.24",Capital,FIRSTCAR LTD,110408
North East Lincolnshire Council,http://statistics.data.gov.uk/id/local-authority/00FC,Cap Economy Env And Housing,Cap Development,Integrated Transport,Cap Infrastr-Build Enh Wrk,Cap Infrastr-Build Enh Wrk,YC102,01/06/2012,114647,"1,246.00",Capital,ALLPARK LTD,110428
North East Lincolnshire Council,http://statistics.data.gov.uk/id/local-authority/00FC,Cap Economy Env And Housing,Cap Development,Integrated Transport,Cap Infrastr-Build Enh Wrk,Cap Infrastr-Build Enh Wrk,YC102,21/06/2012,119108,"1,409.04",Capital,PELL FRISCHMANN CONSULTANTS,100880
North East Lincolnshire Council,http://statistics.data.gov.uk/id/local-authority/00FC,Cap Economy Env And Housing,Cap Development,Integrated Transport,Cap Infrastr-Build Enh Wrk,Cap Infrastr-Build Enh Wrk,YC102,19/06/2012,118601,"1,589.04",Capital,NORTHERN POWERGRID (YORKSHIRE) PLC,108328
North East Lincolnshire Council,http://statistics.data.gov.uk/id/local-authority/00FC,Cap Economy Env And Housing,Cap Development,Integrated Transport,Cap Infrastr-Purchase,Cap Infrastr-Purchase,YC101,08/06/2012,115280,"1,883.00",Capital,LOCK IT SAFE LTD,101779
North East Lincolnshire Council,http://statistics.data.gov.uk/id/local-authority/00FC,Cap Economy Env And Housing,Cap Development,Integrated Transport,Cap Infrastr-Purchase,Cap Infrastr-Purchase,YC101,20/06/2012,118818,"2,367.09",Capital,J MCCANN & CO LTD,100841
North East Lincolnshire Council,http://statistics.data.gov.uk/id/local-authority/00FC,Cap Economy Env And Housing,Cap Development,Integrated Transport,Cap Infrastr-Build Enh Wrk,Cap Infrastr-Build Enh Wrk,YC102,21/06/2012,119107,"3,644.60",Capital,PELL FRISCHMANN CONSULTANTS,100880
North East Lincolnshire Council,http://statistics.data.gov.uk/id/local-authority/00FC,Cap Economy Env And Housing,Cap Development,Integrated Transport,Cap Infrastr-Build Enh Wrk,Cap Infrastr-Build Enh Wrk,YC102,07/06/2012,116331,"4,522.18",Capital,SPECIALIST SURFACING LIMITED,100579
North East Lincolnshire Council,http://statistics.data.gov.uk/id/local-authority/00FC,Cap Economy Env And Housing,Cap Development,Integrated Transport,Cap Infrastr-Build Enh Wrk,Cap Infrastr-Build Enh Wrk,YC102,07/06/2012,116332,"7,724.01",Capital,P H CONSTRUCTION SERVICES LTD,102107
North East Lincolnshire Council,http://statistics.data.gov.uk/id/local-authority/00FC,Cap Economy Env And Housing,Cap Development,Integrated Transport,Cap Infrastr-Build Enh Wrk,Cap Infrastr-Build Enh Wrk,YC102,07/06/2012,116331,"8,000.00",Capital,SPECIALIST SURFACING LIMITED,100579
North East Lincolnshire Council,http://statistics.data.gov.uk/id/local-authority/00FC,Cap Economy Env And Housing,Cap Development,Integrated Transport,Cap Infrastr-Build Enh Wrk,Cap Infrastr-Build Enh Wrk,YC102,07/06/2012,116333,"9,500.00",Capital,P & T CONTRACTS,102128
North East Lincolnshire Council,http://statistics.data.gov.uk/id/local-authority/00FC,Cap Economy Env And Housing,Cap Development,Integrated Transport,Cap Infrastr-Build Enh Wrk,Cap Infrastr-Build Enh Wrk,YC102,19/06/2012,118448,"63,466.47",Capital,WRIGHT CIVIL ENGINEERING LTD,100624
North East Lincolnshire Council,http://statistics.data.gov.uk/id/local-authority/00FC,Cap Economy Env And Housing,Cap Development,East Marsh Renewal,Cap Land/Build-Build Enh Wrk,Cap Land/Build-Build Enh Wrk,YA102,25/06/2012,120155,"66,089.30",Capital,THOMAS BOW LTD,102567
North East Lincolnshire Council,http://statistics.data.gov.uk/id/local-authority/00FC,Cap Economy Env And Housing,Cap Development,Housing Assistance,Cap Grants To O/Side Sources,Cap Grants To O/Side Sources,YJ101,07/06/2012,116282,535.20,Capital,R D L,110536
North East Lincolnshire Council,http://statistics.data.gov.uk/id/local-authority/00FC,Cap Economy Env And Housing,Cap Development,Housing Assistance,Cap Grants To O/Side Sources,Cap Grants To O/Side Sources,YJ101,07/06/2012,116275,"1,153.63",Capital,TRIMAR,110063
North East Lincolnshire Council,http://statistics.data.gov.uk/id/local-authority/00FC,Cap Economy Env And Housing,Cap Development,Housing Assistance,Cap Grants To O/Side Sources,Cap Grants To O/Side Sources,YJ101,21/06/2012,119278,"1,170.00",Capital,DEAN WILLETT & SONS,101982
North East Lincolnshire Council,http://statistics.data.gov.uk/id/local-authority/00FC,Cap Economy Env And Housing,Cap Development,Housing Assistance,Cap Grants To O/Side Sources,Cap Grants To O/Side Sources,YJ101,21/06/2012,119280,"1,432.00",Capital,M J QUICKFALL,102499
North East Lincolnshire Council,http://statistics.data.gov.uk/id/local-authority/00FC,Cap Economy Env And Housing,Cap Development,Housing Assistance,Cap Grants To O/Side Sources,Cap Grants To O/Side Sources,YJ101,07/06/2012,116273,"1,632.40",Capital,M J QUICKFALL,102499
North East Lincolnshire Council,http://statistics.data.gov.uk/id/local-authority/00FC,Cap Economy Env And Housing,Cap Development,Housing Assistance,Cap Grants To O/Side Sources,Cap Grants To O/Side Sources,YJ101,07/06/2012,116274,"2,200.00",Capital,MAYNE GAS HEATING LTD,101861
North East Lincolnshire Council,http://statistics.data.gov.uk/id/local-authority/00FC,Cap Economy Env And Housing,Cap Development,Housing Assistance,Cap Grants To O/Side Sources,Cap Grants To O/Side Sources,YJ101,06/06/2012,116122,"2,785.00",Capital,HOGAN AND JOHNSON,101127
North East Lincolnshire Council,http://statistics.data.gov.uk/id/local-authority/00FC,Cap Economy Env And Housing,Cap Development,Housing Assistance,Cap Grants To O/Side Sources,Cap Grants To O/Side Sources,YJ101,07/06/2012,116282,"6,690.00",Capital,R D L,110536
North East Lincolnshire Council,http://statistics.data.gov.uk/id/local-authority/00FC,Cap Economy Env And Housing,Cap Development,Housing Assistance,Cap Grants To O/Side Sources,Cap Grants To O/Side Sources,YJ101,07/06/2012,116275,"12,017.00",Capital,TRIMAR,110063
North East Lincolnshire Council,http://statistics.data.gov.uk/id/local-authority/00FC,Cap Economy Env And Housing,Cap Development,Albert St West Car Park,Cap Land/Build-Build Enh Wrk,Cap Land/Build-Build Enh Wrk,YA102,07/06/2012,116330,"39,682.81",Capital,P H CONSTRUCTION SERVICES LTD,102107
North East Lincolnshire Council,http://statistics.data.gov.uk/id/local-authority/00FC,Cap Economy Env And Housing,Cap Culture Leisure And Sport,Bradley Playing Fields,Cap Auc-Purchase,Cap Auc-Purchase,YF101,21/06/2012,119272,"6,386.87",Capital,AGRIPOWER LTD,102404
North East Lincolnshire Council,http://statistics.data.gov.uk/id/local-authority/00FC,Cap Governance And Trans,Cap Future Shape Trnsform Proj,Future Shape,Cap Intangible Assets,Cap Intangible Assets,YH101,20/06/2012,118486,"1,500.00",Capital,CEDAR OPEN ACCOUNTS,101614
North East Lincolnshire Council,http://statistics.data.gov.uk/id/local-authority/00FC,Cap Governance And Trans,Cap Future Shape Trnsform Proj,Future Shape,Cap Intangible Assets,Cap Intangible Assets,YH101,25/06/2012,119684,"1,610.92",Capital,MIDLAND SOFTWARE LTD,102633
North East Lincolnshire Council,http://statistics.data.gov.uk/id/local-authority/00FC,Cap Governance And Trans,Cap Future Shape Trnsform Proj,Future Shape,Cap Intangible Assets,Cap Intangible Assets,YH101,25/06/2012,119683,"13,600.00",Capital,MIDLAND SOFTWARE LTD,102633
North East Lincolnshire Council,http://statistics.data.gov.uk/id/local-authority/00FC,Chief Executive,Chief Executive,Chief Exec & Support,Car Allowances,Travel - Employees,JF101,15/06/2012,116509,-126.77,Revenue,NYS CORPORATE,102444
North East Lincolnshire Council,http://statistics.data.gov.uk/id/local-authority/00FC,Chief Executive,Chief Executive,Chief Exec & Support,Contributions To Provisions,Contributions - Third Sector,LK102,14/06/2012,117306,500.00,Revenue,RAF ASSOCIATION,109232
North East Lincolnshire Council,http://statistics.data.gov.uk/id/local-authority/00FC,Chief Executive,Chief Executive,Chief Exec & Support,Contributions To Provisions,Contributions - Third Sector,LK102,26/06/2012,120213,500.00,Revenue,Redacted Personal Information,Redacted Personal Information
North East Lincolnshire Council,http://statistics.data.gov.uk/id/local-authority/00FC,Chief Executive,Chief Executive,Chief Exec & Support,Contributions To Provisions,Contributions - Communities,LK101,29/06/2012,120670,500.00,Revenue,LINCOLNSHIRE COUNTY COUNCIL,100389
North East Lincolnshire Council,http://statistics.data.gov.uk/id/local-authority/00FC,Chief Executive,Chief Executive,Chief Exec & Support,Contributions To Provisions,Contributions - Communities,LK101,27/06/2012,120452,641.00,Revenue,WINDSOCK COMPANY LTD,110159
North East Lincolnshire Council,http://statistics.data.gov.uk/id/local-authority/00FC,Chief Executive,Chief Executive,Chief Exec & Support,Contributions To Provisions,Contributions - Communities,LK101,27/06/2012,120451,845.00,Revenue,BLUEFIN,102750
North East Lincolnshire Council,http://statistics.data.gov.uk/id/local-authority/00FC,Chief Executive,Chief Executive,Chief Exec & Support,Contributions To Provisions,Contributions - Communities,LK101,15/06/2012,117309,"1,000.00",Revenue,RAF ASSOCIATION,109232
North East Lincolnshire Council,http://statistics.data.gov.uk/id/local-authority/00FC,Chief Executive,Chief Executive,Chief Exec & Support,Contributions To Provisions,Contributions - Third Sector,LK102,14/06/2012,117332,"1,000.00",Revenue,RAF ASSOCIATION GY & CLEETHORPES,109747
North East Lincolnshire Council,http://statistics.data.gov.uk/id/local-authority/00FC,Chief Executive,Chief Executive,Chief Exec & Support,Contributions To Provisions,Contributions - Communities,LK101,29/06/2012,121005,"1,200.00",Revenue,SCARTHO METHODIST CHURCH,110481
North East Lincolnshire Council,http://statistics.data.gov.uk/id/local-authority/00FC,Chief Executive,Chief Executive,Chief Exec & Support,Contributions To Provisions,Contributions - Communities,LK101,15/06/2012,117305,"1,250.00",Revenue,RAF ASSOCIATION,109232
North East Lincolnshire Council,http://statistics.data.gov.uk/id/local-authority/00FC,Chief Executive,Chief Executive,Chief Exec & Support,Contributions To Provisions,Contributions - Communities,LK101,29/06/2012,121004,"1,400.00",Revenue,SCARTHO COMMUNITY GARDEN PROJECT,110480
North East Lincolnshire Council,http://statistics.data.gov.uk/id/local-authority/00FC,Chief Executive,Chief Executive,Chief Exec & Support,Contributions To Provisions,Contributions - Communities,LK101,27/06/2012,120443,"1,500.00",Revenue,NEW WALTHAM PARISH COUNCIL,106748
North East Lincolnshire Council,http://statistics.data.gov.uk/id/local-authority/00FC,Chief Executive,Chief Executive,Chief Exec & Support,Contributions To Provisions,Contributions - Third Sector,LK102,14/06/2012,117307,"2,500.00",Revenue,RAF ASSOCIATION,109232
North East Lincolnshire Council,http://statistics.data.gov.uk/id/local-authority/00FC,Other Corporate Budgets,Borrowing Costs,Misc Interest Bank Charges Etc,Other Agencies,Fees & Commissions (Clf),PJ141,29/06/2012,120920,"2,085.00",Revenue,CIPFA BUSINESS LIMITED,102338
North East Lincolnshire Council,http://statistics.data.gov.uk/id/local-authority/00FC,Other Corporate Budgets,Other Corporate Budgets,Corporate Budgets - Other,Miscellaneous Expenses,Other Expenses General,LL119,28/06/2012,121137,"3,750.00",Revenue,MR JAMES GOUDIE QC,110782
North East Lincolnshire Council,http://statistics.data.gov.uk/id/local-authority/00FC,Other Corporate Budgets,Other Corporate Budgets,Appropriations,Miscellaneous Expenses,Other Expenses General,LL119,27/06/2012,120574,"10,950.00",Revenue,HYMANS ROBERTSON LLP,107021
North East Lincolnshire Council,http://statistics.data.gov.uk/id/local-authority/00FC,Other Corporate Budgets,Other Corporate Budgets,Lsvt Receipts,Voluntary Associations,Third Pp - Third Sector,PF101,13/06/2012,117263,"5,125.00",Revenue,SHORELINE HOUSING PARTNERSHIP LTD,100139
North East Lincolnshire Council,http://statistics.data.gov.uk/id/local-authority/00FC,People And Communities,Childrens Hlth & Family Supp,Integrated Youth Services,Direct Transport Costs,Hired Transport - Employees,JA101,25/06/2012,120154,-15.42,Revenue,NYS CORPORATE,102444
North East Lincolnshire Council,http://statistics.data.gov.uk/id/local-authority/00FC,People And Communities,Childrens Hlth & Family Supp,Integrated Youth Services,Miscellaneous Expenses,Activities - Service Users,LL114,07/06/2012,116292,500.00,Revenue,THE NISESKATEBOARDSCHOOL,110537
North East Lincolnshire Council,http://statistics.data.gov.uk/id/local-authority/00FC,People And Communities,Childrens Hlth & Family Supp,Integrated Youth Services,Miscellaneous Expenses,Other Supplies & Services,LL110,21/06/2012,117771,500.00,Revenue,GREEN FUTURES GRIMSBY,110102
North East Lincolnshire Council,http://statistics.data.gov.uk/id/local-authority/00FC,People And Communities,Childrens Hlth & Family Supp,Integrated Youth Services,Clothes Uniforms And Laundry,Protective Clothing,LC101,14/06/2012,117659,532.00,Revenue,TRIN YOUNG PEOPLES CENTRE,110648
North East Lincolnshire Council,http://statistics.data.gov.uk/id/local-authority/00FC,People And Communities,Childrens Hlth & Family Supp,Integrated Youth Services,Miscellaneous Expenses,Activities - Service Users,LL114,12/06/2012,116667,590.00,Revenue,BRITISH YOUTH COUNCIL,102822
North East Lincolnshire Council,http://statistics.data.gov.uk/id/local-authority/00FC,People And Communities,Childrens Hlth & Family Supp,Integrated Youth Services,Equip / Furniture / Materials,Equipment - Purchase,LA101,21/06/2012,117768,900.00,Revenue,GREEN FUTURES GRIMSBY,110102
North East Lincolnshire Council,http://statistics.data.gov.uk/id/local-authority/00FC,People And Communities,Childrens Hlth & Family Supp,Integrated Youth Services,Direct Transport Costs,Hired Transport - Service User,JA102,13/06/2012,117311,"1,138.80",Revenue,COXONS CARS LIMITED,100578
North East Lincolnshire Council,http://statistics.data.gov.uk/id/local-authority/00FC,People And Communities,Childrens Hlth & Family Supp,Integrated Youth Services,Communications And Computing,Computer S/Ware - Maintenance,LF102,19/06/2012,117753,"2,100.00",Revenue,CAREERVISION LTD,103701
North East Lincolnshire Council,http://statistics.data.gov.uk/id/local-authority/00FC,People And Communities,Childrens Hlth & Family Supp,Integrated Youth Services,Miscellaneous Expenses,Activities - Service Users,LL114,20/06/2012,118817,Redacted Commercially Sensitive,Revenue,BALFOUR BEATTY,102595
North East Lincolnshire Council,http://statistics.data.gov.uk/id/local-authority/00FC,People And Communities,Childrens Hlth & Family Supp,Childrens Health Provision,Rents,Rent,GC101,15/06/2012,117195,715.00,Revenue,GRIMSBY CENTRAL HALL TRUST,100882
North East Lincolnshire Council,http://statistics.data.gov.uk/id/local-authority/00FC,People And Communities,Childrens Hlth & Family Supp,Childrens Health Provision,Private Contractors,Third Party Prov - Private,PH101,08/06/2012,116342,"1,221.08",Revenue,THE ROXTON PRACTICE,104396
North East Lincolnshire Council,http://statistics.data.gov.uk/id/local-authority/00FC,People And Communities,Childrens Hlth & Family Supp,Childrens Health Provision,Communications And Computing,Computer S/Ware - Maintenance,LF102,20/06/2012,118884,"8,000.00",Revenue,NORTH EAST LINCOLNSHIRE CARE TRUST PLUS,110616
North East Lincolnshire Council,http://statistics.data.gov.uk/id/local-authority/00FC,People And Communities,Childrens Hlth & Family Supp,Childrens Health Provision,Private Contractors,Third Party Prov - Private,PH101,14/06/2012,117519,"193,485.00",Revenue,LINCS PARTNERSHIP NHS FOUNDATION TRUST,105021
North East Lincolnshire Council,http://statistics.data.gov.uk/id/local-authority/00FC,People And Communities,Childrens Hlth & Family Supp,Childrens Health Provision,Private Contractors,Third Party Prov - Private,PH101,12/06/2012,116707,"193,485.00",Revenue,LINCS PARTNERSHIP NHS FOUNDATION TRUST,105021
North East Lincolnshire Council,http://statistics.data.gov.uk/id/local-authority/00FC,People And Communities,Childrens Hlth & Family Supp,Childrens Centre Development,Other Grants Reimburse/Contrib,Cont Received - Other Sources,VB102,14/06/2012,117642,-19.84,Revenue,FUTURE CLEANING SERVICES LTD,102557
North East Lincolnshire Council,http://statistics.data.gov.uk/id/local-authority/00FC,People And Communities,Childrens Hlth & Family Supp,Childrens Centre Development,Rep Alterations Maint Building,Buildings - Repairs And Maint,GA102,06/06/2012,115907,500.00,Revenue,DENTON & NICKELS LTD,107629
North East Lincolnshire Council,http://statistics.data.gov.uk/id/local-authority/00FC,People And Communities,Childrens Hlth & Family Supp,Childrens Centre Development,Direct Employee Expenses,Agency Staff,EA105,15/06/2012,117639,529.00,Revenue,FUTURE CLEANING SERVICES LTD,102557
North East Lincolnshire Council,http://statistics.data.gov.uk/id/local-authority/00FC,People And Communities,Childrens Hlth & Family Supp,Childrens Centre Development,Direct Employee Expenses,Agency Staff,EA105,29/06/2012,121336,529.00,Revenue,FUTURE CLEANING SERVICES LTD,102557
North East Lincolnshire Council,http://statistics.data.gov.uk/id/local-authority/00FC,People And Communities,Childrens Hlth & Family Supp,Childrens Centre Development,Energy Costs,Electricity,GB102,25/06/2012,120138,625.69,Revenue,NPOWER LIMITED,101414
North East Lincolnshire Council,http://statistics.data.gov.uk/id/local-authority/00FC,People And Communities,Childrens Hlth & Family Supp,Childrens Centre Development,Water Services,Water,GE101,21/06/2012,119233,666.28,Revenue,ANGLIAN WATER,100508
North East Lincolnshire Council,http://statistics.data.gov.uk/id/local-authority/00FC,People And Communities,Childrens Hlth & Family Supp,Childrens Centre Development,Other Agencies,Child Care Payments,PJ104,27/06/2012,120599,687.42,Revenue,FOR UNDER FIVES,101931
North East Lincolnshire Council,http://statistics.data.gov.uk/id/local-authority/00FC,People And Communities,Childrens Hlth & Family Supp,Childrens Centre Development,Energy Costs,Heating Fuel,GB103,11/06/2012,116865,"1,217.48",Revenue,WATSON PETROLEUM LTD,101348
North East Lincolnshire Council,http://statistics.data.gov.uk/id/local-authority/00FC,People And Communities,Childrens Hlth & Family Supp,Childrens Centre Development,Other Agencies,Child Care Payments,PJ104,12/06/2012,115635,"2,524.59",Revenue,FIRST STEPS GRIMSBY LTD,101602
North East Lincolnshire Council,http://statistics.data.gov.uk/id/local-authority/00FC,People And Communities,Childrens Hlth & Family Supp,Childrens Centre Development,Rates,Rates,GD101,20/06/2012,118890,"3,825.00",Revenue,NORTH EAST LINCOLNSHIRE COUNCIL,100894
North East Lincolnshire Council,http://statistics.data.gov.uk/id/local-authority/00FC,People And Communities,Childrens Hlth & Family Supp,Childrens Centre Development,Rates,Rates,GD101,20/06/2012,118888,"4,320.00",Revenue,NORTH EAST LINCOLNSHIRE COUNCIL,100894
North East Lincolnshire Council,http://statistics.data.gov.uk/id/local-authority/00FC,People And Communities,Childrens Hlth & Family Supp,Childrens Centre Development,Rates,Rates,GD101,08/06/2012,116488,"4,756.21",Revenue,NORTH EAST LINCOLNSHIRE COUNCIL,100894
North East Lincolnshire Council,http://statistics.data.gov.uk/id/local-authority/00FC,People And Communities,Childrens Hlth & Family Supp,Childrens Centre Development,Rates,Rates,GD101,20/06/2012,118885,"5,287.50",Revenue,NORTH EAST LINCOLNSHIRE COUNCIL,100894
North East Lincolnshire Council,http://statistics.data.gov.uk/id/local-authority/00FC,People And Communities,Childrens Hlth & Family Supp,Childrens Centre Development,Rates,Rates,GD101,20/06/2012,118892,"5,962.50",Revenue,NORTH EAST LINCOLNSHIRE COUNCIL,100894
North East Lincolnshire Council,http://statistics.data.gov.uk/id/local-authority/00FC,People And Communities,Childrens Hlth & Family Supp,Childrens Centre Development,Rates,Rates,GD101,20/06/2012,118880,"9,389.00",Revenue,NORTH EAST LINCOLNSHIRE COUNCIL,100894
North East Lincolnshire Council,http://statistics.data.gov.uk/id/local-authority/00FC,People And Communities,Childrens Hlth & Family Supp,Childrens Centre Development,Rates,Rates,GD101,20/06/2012,118883,"10,305.00",Revenue,NORTH EAST LINCOLNSHIRE COUNCIL,100894
North East Lincolnshire Council,http://statistics.data.gov.uk/id/local-authority/00FC,People And Communities,Childrens Hlth & Family Supp,Childrens Centre Development,Rates,Rates,GD101,26/06/2012,120032,"10,305.00",Revenue,NORTH EAST LINCOLNSHIRE COUNCIL,100894
North East Lincolnshire Council,http://statistics.data.gov.uk/id/local-authority/00FC,People And Communities,Childrens Hlth & Family Supp,Childrens Centre Development,Rates,Rates,GD101,20/06/2012,118882,"10,763.00",Revenue,NORTH EAST LINCOLNSHIRE COUNCIL,100894
North East Lincolnshire Council,http://statistics.data.gov.uk/id/local-authority/00FC,People And Communities,Childrens Hlth & Family Supp,Childrens Centre Development,Rates,Rates,GD101,26/06/2012,120036,"10,763.00",Revenue,NORTH EAST LINCOLNSHIRE COUNCIL,100894
North East Lincolnshire Council,http://statistics.data.gov.uk/id/local-authority/00FC,People And Communities,Childrens Hlth & Family Supp,Childrens Centre Development,Rates,Rates,GD101,20/06/2012,118878,"12,393.75",Revenue,NORTH EAST LINCOLNSHIRE COUNCIL,100894
North East Lincolnshire Council,http://statistics.data.gov.uk/id/local-authority/00FC,People And Communities,Childrens Hlth & Family Supp,Integ Local Service Delivery,Other Agencies,Nursery Educ Fund - Standard,PJ139,20/06/2012,118833,"-18,316.44",Revenue,ST JAMES SCHOOL,100940
North East Lincolnshire Council,http://statistics.data.gov.uk/id/local-authority/00FC,People And Communities,Childrens Hlth & Family Supp,Integ Local Service Delivery,Other Agencies,Nursery Educ Fund - Standard,PJ139,20/06/2012,118838,"-15,697.80",Revenue,WIZ KIDZ,102424
North East Lincolnshire Council,http://statistics.data.gov.uk/id/local-authority/00FC,People And Communities,Childrens Hlth & Family Supp,Integ Local Service Delivery,Other Agencies,Nursery Educ Fund - Standard,PJ139,20/06/2012,118828,"-3,824.64",Revenue,Redacted Personal Information,Redacted Personal Information
North East Lincolnshire Council,http://statistics.data.gov.uk/id/local-authority/00FC,People And Communities,Childrens Hlth & Family Supp,Integ Local Service Delivery,Direct Employee Expenses,Agency Staff,EA105,12/06/2012,117034,548.00,Revenue,MATRIX SCM LTD,108117
North East Lincolnshire Council,http://statistics.data.gov.uk/id/local-authority/00FC,People And Communities,Childrens Hlth & Family Supp,Integ Local Service Delivery,Other Agencies,Nursery Educ Fund - Standard,PJ139,13/06/2012,117291,617.52,Revenue,HUMBERSTON VILLAGE NURSERY,102006
North East Lincolnshire Council,http://statistics.data.gov.uk/id/local-authority/00FC,People And Communities,Childrens Hlth & Family Supp,Integ Local Service Delivery,Other Agencies,Nursery Educ Fund - Standard,PJ139,13/06/2012,117288,"1,045.80",Revenue,Redacted Personal Information,Redacted Personal Information
North East Lincolnshire Council,http://statistics.data.gov.uk/id/local-authority/00FC,People And Communities,Childrens Hlth & Family Supp,Integ Local Service Delivery,Other Agencies,Nursery Educ Fund - Standard,PJ139,13/06/2012,117297,"1,733.04",Revenue,EAST RAVENDALE PRE SCHOOL,100941
North East Lincolnshire Council,http://statistics.data.gov.uk/id/local-authority/00FC,People And Communities,Childrens Hlth & Family Supp,Integ Local Service Delivery,Other Agencies,Nursery Educ Fund - Standard,PJ139,13/06/2012,117294,"2,051.76",Revenue,FOR UNDER FIVES LTD,100647
North East Lincolnshire Council,http://statistics.data.gov.uk/id/local-authority/00FC,People And Communities,Childrens Hlth & Family Supp,Integ Local Service Delivery,Other Agencies,Nursery Educ Fund - Standard,PJ139,13/06/2012,117295,"2,380.44",Revenue,FOR UNDER FIVES LTD,100647
North East Lincolnshire Council,http://statistics.data.gov.uk/id/local-authority/00FC,People And Communities,Childrens Hlth & Family Supp,Integ Local Service Delivery,Other Agencies,Nursery Educ Fund - Standard,PJ139,13/06/2012,117210,"2,729.04",Revenue,READY TEDDY GO,100973
North East Lincolnshire Council,http://statistics.data.gov.uk/id/local-authority/00FC,People And Communities,Childrens Hlth & Family Supp,Integ Local Service Delivery,Other Agencies,Nursery Educ Fund - Standard,PJ139,13/06/2012,117202,"2,831.76",Revenue,THE AVENUE PLAYGROUP,103168
North East Lincolnshire Council,http://statistics.data.gov.uk/id/local-authority/00FC,People And Communities,Childrens Hlth & Family Supp,Integ Local Service Delivery,Other Agencies,Nursery Educ Fund - Standard,PJ139,13/06/2012,117208,"3,197.16",Revenue,FOR UNDER FIVES LTD,100647
North East Lincolnshire Council,http://statistics.data.gov.uk/id/local-authority/00FC,People And Communities,Childrens Hlth & Family Supp,Integ Local Service Delivery,Other Agencies,Nursery Educ Fund - Standard,PJ139,13/06/2012,117310,"3,293.46",Revenue,HAVEN METHODIST PRE SCHOOL,110623
North East Lincolnshire Council,http://statistics.data.gov.uk/id/local-authority/00FC,People And Communities,Childrens Hlth & Family Supp,Integ Local Service Delivery,Other Agencies,Nursery Educ Fund - Standard,PJ139,13/06/2012,117203,"3,774.84",Revenue,ST PETERS CHILDREN CENTRE,101322
North East Lincolnshire Council,http://statistics.data.gov.uk/id/local-authority/00FC,People And Communities,Childrens Hlth & Family Supp,Integ Local Service Delivery,Other Agencies,Nursery Educ Fund - Standard,PJ139,14/06/2012,117674,"3,974.04",Revenue,PRECIOUS TIMES CHILDCARE SERVICES,101420
North East Lincolnshire Council,http://statistics.data.gov.uk/id/local-authority/00FC,People And Communities,Childrens Hlth & Family Supp,Integ Local Service Delivery,Other Agencies,Nursery Educ Fund - Standard,PJ139,13/06/2012,117287,"4,043.76",Revenue,LITTLE BLOSSOMS DAY NURSERY,101816
North East Lincolnshire Council,http://statistics.data.gov.uk/id/local-authority/00FC,People And Communities,Childrens Hlth & Family Supp,Integ Local Service Delivery,Other Agencies,Nursery Educ Fund - Standard,PJ139,13/06/2012,117301,"4,310.19",Revenue,LITTLE LEGS DAYCARE,101753
North East Lincolnshire Council,http://statistics.data.gov.uk/id/local-authority/00FC,People And Communities,Childrens Hlth & Family Supp,Integ Local Service Delivery,Other Agencies,Nursery Educ Fund - Standard,PJ139,13/06/2012,117213,"4,541.76",Revenue,PRECIOUS TIMES CHILDCARE SERVICES,101420
North East Lincolnshire Council,http://statistics.data.gov.uk/id/local-authority/00FC,People And Communities,Childrens Hlth & Family Supp,Integ Local Service Delivery,Other Agencies,Nursery Educ Fund - Standard,PJ139,13/06/2012,117198,"4,621.44",Revenue,WENDOVER PRE-SCHOOL,101350
North East Lincolnshire Council,http://statistics.data.gov.uk/id/local-authority/00FC,People And Communities,Childrens Hlth & Family Supp,Integ Local Service Delivery,Other Agencies,Nursery Educ Fund - Standard,PJ139,13/06/2012,117289,"4,740.12",Revenue,JUDY CLARK PLAYGROUP,100939
North East Lincolnshire Council,http://statistics.data.gov.uk/id/local-authority/00FC,People And Communities,Childrens Hlth & Family Supp,Integ Local Service Delivery,Other Agencies,Nursery Educ Fund - Standard,PJ139,13/06/2012,117201,"5,238.96",Revenue,THE CHILDRENS HOUSE,101141
North East Lincolnshire Council,http://statistics.data.gov.uk/id/local-authority/00FC,People And Communities,Childrens Hlth & Family Supp,Integ Local Service Delivery,Other Agencies,Nursery Educ Fund - Standard,PJ139,13/06/2012,117286,"5,438.16",Revenue,CLEETHORPES CHILDCARE,101591
North East Lincolnshire Council,http://statistics.data.gov.uk/id/local-authority/00FC,People And Communities,Childrens Hlth & Family Supp,Integ Local Service Delivery,Other Agencies,Nursery Educ Fund - Standard,PJ139,13/06/2012,117214,"5,552.70",Revenue,NEW WALTHAM TRACKERS PLAYGROUP,100972
North East Lincolnshire Council,http://statistics.data.gov.uk/id/local-authority/00FC,People And Communities,Childrens Hlth & Family Supp,Integ Local Service Delivery,Other Agencies,Nursery Educ Fund - Standard,PJ139,13/06/2012,117238,"5,571.18",Revenue,BURSAR PRE-SCHOOL,103968
North East Lincolnshire Council,http://statistics.data.gov.uk/id/local-authority/00FC,People And Communities,Childrens Hlth & Family Supp,Integ Local Service Delivery,Other Agencies,Nursery Educ Fund - Standard,PJ139,13/06/2012,117205,"5,707.08",Revenue,ST MARGARETS PRE-SCHOOL,101724
North East Lincolnshire Council,http://statistics.data.gov.uk/id/local-authority/00FC,People And Communities,Childrens Hlth & Family Supp,Integ Local Service Delivery,Other Agencies,Nursery Educ Fund - Standard,PJ139,13/06/2012,117293,"5,751.90",Revenue,HEALING VILLAGE NURSERY,101096
North East Lincolnshire Council,http://statistics.data.gov.uk/id/local-authority/00FC,People And Communities,Childrens Hlth & Family Supp,Integ Local Service Delivery,Other Agencies,Nursery Educ Fund - Standard,PJ139,13/06/2012,117292,"5,766.84",Revenue,HUMBERSTON C E PRE SCHOOL,101153
North East Lincolnshire Council,http://statistics.data.gov.uk/id/local-authority/00FC,People And Communities,Childrens Hlth & Family Supp,Integ Local Service Delivery,Other Agencies,Nursery Educ Fund - Standard,PJ139,13/06/2012,117207,"5,807.16",Revenue,ST CHRISTOPHERS PLAYGROUP,102148
North East Lincolnshire Council,http://statistics.data.gov.uk/id/local-authority/00FC,People And Communities,Childrens Hlth & Family Supp,Integ Local Service Delivery,Other Agencies,Nursery Educ Fund - Standard,PJ139,13/06/2012,117216,"5,848.20",Revenue,BUTTERFLIES DAY NURSERY,101694
North East Lincolnshire Council,http://statistics.data.gov.uk/id/local-authority/00FC,People And Communities,Childrens Hlth & Family Supp,Integ Local Service Delivery,Other Agencies,Nursery Educ Fund - Standard,PJ139,13/06/2012,117290,"6,005.34",Revenue,CHAPPILLS DAY NURSERY,100998
North East Lincolnshire Council,http://statistics.data.gov.uk/id/local-authority/00FC,People And Communities,Childrens Hlth & Family Supp,Integ Local Service Delivery,Other Agencies,Nursery Educ Fund - Standard,PJ139,13/06/2012,117308,"6,045.72",Revenue,GRIMSBY INSTITUTE FOR FHE,101649
North East Lincolnshire Council,http://statistics.data.gov.uk/id/local-authority/00FC,People And Communities,Childrens Hlth & Family Supp,Integ Local Service Delivery,Other Agencies,Nursery Educ Fund - Standard,PJ139,13/06/2012,117197,"6,463.80",Revenue,WIZ KIDZ,102424
North East Lincolnshire Council,http://statistics.data.gov.uk/id/local-authority/00FC,People And Communities,Childrens Hlth & Family Supp,Integ Local Service Delivery,Other Agencies,Nursery Educ Fund - Standard,PJ139,13/06/2012,117209,"6,981.96",Revenue,CLEETHORPES CHILDCARE,101591
North East Lincolnshire Council,http://statistics.data.gov.uk/id/local-authority/00FC,People And Communities,Childrens Hlth & Family Supp,Integ Local Service Delivery,Other Agencies,Nursery Educ Fund - Standard,PJ139,13/06/2012,117239,"7,051.68",Revenue,FOR UNDER FIVES LTD,100647
North East Lincolnshire Council,http://statistics.data.gov.uk/id/local-authority/00FC,People And Communities,Childrens Hlth & Family Supp,Integ Local Service Delivery,Other Agencies,Nursery Educ Fund - Standard,PJ139,13/06/2012,117296,"7,541.10",Revenue,FIRST STEPS DAY NURSERY,105509
North East Lincolnshire Council,http://statistics.data.gov.uk/id/local-authority/00FC,People And Communities,Childrens Hlth & Family Supp,Integ Local Service Delivery,Other Agencies,Nursery Educ Fund - Standard,PJ139,14/06/2012,117673,"7,758.84",Revenue,ST JAMES SCHOOL,100940
North East Lincolnshire Council,http://statistics.data.gov.uk/id/local-authority/00FC,People And Communities,Childrens Hlth & Family Supp,Integ Local Service Delivery,Other Agencies,Nursery Educ Fund - Standard,PJ139,13/06/2012,117299,"7,859.16",Revenue,FOR UNDER FIVES LTD,100647
North East Lincolnshire Council,http://statistics.data.gov.uk/id/local-authority/00FC,People And Communities,Childrens Hlth & Family Supp,Integ Local Service Delivery,Other Agencies,Nursery Educ Fund - Standard,PJ139,13/06/2012,117298,"8,007.84",Revenue,CLOVERFIELDS PRE SCHOOL,100971
North East Lincolnshire Council,http://statistics.data.gov.uk/id/local-authority/00FC,People And Communities,Childrens Hlth & Family Supp,Integ Local Service Delivery,Other Agencies,Nursery Educ Fund - Standard,PJ139,13/06/2012,117215,"8,167.20",Revenue,CLEETHORPES CHILDCARE,101591
North East Lincolnshire Council,http://statistics.data.gov.uk/id/local-authority/00FC,People And Communities,Childrens Hlth & Family Supp,Integ Local Service Delivery,Other Agencies,Nursery Educ Fund - Standard,PJ139,13/06/2012,117199,"9,849.60",Revenue,WELHOLME PRE SCHOOL,101258
North East Lincolnshire Council,http://statistics.data.gov.uk/id/local-authority/00FC,People And Communities,Childrens Hlth & Family Supp,Integ Local Service Delivery,Other Agencies,Nursery Educ Fund - Standard,PJ139,13/06/2012,117300,"10,278.72",Revenue,LISLE MARSDEN CHILDCARE LIMITED,110493
North East Lincolnshire Council,http://statistics.data.gov.uk/id/local-authority/00FC,People And Communities,Childrens Hlth & Family Supp,Integ Local Service Delivery,Other Agencies,Nursery Educ Fund - Standard,PJ139,13/06/2012,117204,"22,708.80",Revenue,ST MARTINS PREPARATORY SCHOOL,100889
North East Lincolnshire Council,http://statistics.data.gov.uk/id/local-authority/00FC,People And Communities,Childrens Hlth & Family Supp,Integ Local Service Delivery,Other Agencies,Nursery Educ Fund - Standard,PJ139,13/06/2012,117200,"30,477.60",Revenue,WALTHAM LEAS PRE-SCHOOL,108236
North East Lincolnshire Council,http://statistics.data.gov.uk/id/local-authority/00FC,People And Communities,Childrens Hlth & Family Supp,Play 4 Success,Energy Costs,Electricity,GB102,20/06/2012,118844,617.80,Revenue,GRIMSBY TOWN FOOTBALL CLUB,100646
North East Lincolnshire Council,http://statistics.data.gov.uk/id/local-authority/00FC,People And Communities,Improved Health,Env Commerce Food & Health,Direct Employee Expenses,Agency Staff,EA105,27/06/2012,120686,718.88,Revenue,OSBORNE RICHARDSON,101354
North East Lincolnshire Council,http://statistics.data.gov.uk/id/local-authority/00FC,People And Communities,Improved Health,Env Commerce Food & Health,Direct Employee Expenses,Agency Staff,EA105,29/06/2012,120688,718.88,Revenue,OSBORNE RICHARDSON,101354
North East Lincolnshire Council,http://statistics.data.gov.uk/id/local-authority/00FC,People And Communities,Improved Health,Env Commerce Food & Health,Direct Employee Expenses,Agency Staff,EA105,27/06/2012,120685,958.50,Revenue,OSBORNE RICHARDSON,101354
North East Lincolnshire Council,http://statistics.data.gov.uk/id/local-authority/00FC,People And Communities,Improved Health,Trading Standards,Direct Employee Expenses,Agency Staff,EA105,26/06/2012,119997,512.00,Revenue,KENYON BLOCK CONSULTANTS,101878
North East Lincolnshire Council,http://statistics.data.gov.uk/id/local-authority/00FC,People And Communities,Improved Health,Trading Standards,Direct Employee Expenses,Agency Staff,EA105,26/06/2012,119990,960.00,Revenue,KENYON BLOCK CONSULTANTS,101878
North East Lincolnshire Council,http://statistics.data.gov.uk/id/local-authority/00FC,People And Communities,Improved Health,Trading Standards,Direct Employee Expenses,Agency Staff,EA105,26/06/2012,120028,960.00,Revenue,KENYON BLOCK CONSULTANTS,101878
North East Lincolnshire Council,http://statistics.data.gov.uk/id/local-authority/00FC,People And Communities,Improved Health,Trading Standards,Direct Employee Expenses,Agency Staff,EA105,27/06/2012,120205,960.00,Revenue,KENYON BLOCK CONSULTANTS,101878
North East Lincolnshire Council,http://statistics.data.gov.uk/id/local-authority/00FC,People And Communities,Improved Health,Trading Standards,Direct Employee Expenses,Agency Staff,EA105,29/06/2012,120994,"1,356.10",Revenue,KENYON BLOCK CONSULTANTS,101878
North East Lincolnshire Council,http://statistics.data.gov.uk/id/local-authority/00FC,People And Communities,Improved Health,Trading Standards,Direct Employee Expenses,Agency Staff,EA105,28/06/2012,120993,"1,372.63",Revenue,KENYON BLOCK CONSULTANTS,101878
North East Lincolnshire Council,http://statistics.data.gov.uk/id/local-authority/00FC,People And Communities,Improved Health,Trading Standards,Direct Employee Expenses,Agency Staff,EA105,29/06/2012,120992,"1,375.94",Revenue,KENYON BLOCK CONSULTANTS,101878
North East Lincolnshire Council,http://statistics.data.gov.uk/id/local-authority/00FC,People And Communities,Improved Health,Trading Standards,Direct Employee Expenses,Agency Staff,EA105,28/06/2012,120996,"1,377.50",Revenue,KENYON BLOCK CONSULTANTS,101878
North East Lincolnshire Council,http://statistics.data.gov.uk/id/local-authority/00FC,People And Communities,Improved Health,Trading Standards,Direct Employee Expenses,Agency Staff,EA105,11/06/2012,116857,"1,385.85",Revenue,KENYON BLOCK CONSULTANTS,101878
North East Lincolnshire Council,http://statistics.data.gov.uk/id/local-authority/00FC,People And Communities,Improved Health,Supporting People,Other Agencies,Third Pp - Block Subsidy,PJ102,20/06/2012,118851,Redacted Commercially Sensitive,Revenue,CARE PLUS GROUP,106467
North East Lincolnshire Council,http://statistics.data.gov.uk/id/local-authority/00FC,People And Communities,Improved Health,Supporting People,Other Agencies,Third Pp - Block Subsidy,PJ102,20/06/2012,118864,Redacted Commercially Sensitive,Revenue,HUMBERCARE LTD,100311
North East Lincolnshire Council,http://statistics.data.gov.uk/id/local-authority/00FC,People And Communities,Improved Health,Supporting People,Other Agencies,Third Pp - Block Gross,PJ103,28/06/2012,121176,Redacted Commercially Sensitive,Revenue,YORK HOUSING ASSOCIATION LTD,100341
North East Lincolnshire Council,http://statistics.data.gov.uk/id/local-authority/00FC,People And Communities,Improved Health,Supporting People,Other Agencies,Third Pp - Block Subsidy,PJ102,20/06/2012,118875,Redacted Commercially Sensitive,Revenue,CREATIVE SUPPORT LTD,107198
North East Lincolnshire Council,http://statistics.data.gov.uk/id/local-authority/00FC,People And Communities,Improved Health,Supporting People,Other Agencies,Third Pp - Block Subsidy,PJ102,20/06/2012,118852,Redacted Commercially Sensitive,Revenue,NORTH EAST LINCOLNSHIRE CARE TRUST PLUS,110616
North East Lincolnshire Council,http://statistics.data.gov.uk/id/local-authority/00FC,People And Communities,Improved Health,Supporting People,Other Agencies,Third Pp - Block Subsidy,PJ102,20/06/2012,118872,Redacted Commercially Sensitive,Revenue,OPEN DOOR (HEALTH) LTD,103147
North East Lincolnshire Council,http://statistics.data.gov.uk/id/local-authority/00FC,People And Communities,Improved Health,Supporting People,Other Agencies,Third Pp - Block Gross,PJ103,28/06/2012,121178,Redacted Commercially Sensitive,Revenue,SANCTUARY HOUSING ASSOCIATION,103289
North East Lincolnshire Council,http://statistics.data.gov.uk/id/local-authority/00FC,People And Communities,Improved Health,Supporting People,Other Agencies,Third Pp - Block Gross,PJ103,28/06/2012,121174,Redacted Commercially Sensitive,Revenue,CARE,100314
North East Lincolnshire Council,http://statistics.data.gov.uk/id/local-authority/00FC,People And Communities,Improved Health,Supporting People,Other Agencies,Third Pp - Block Subsidy,PJ102,20/06/2012,118865,Redacted Commercially Sensitive,Revenue,HICA,100319
North East Lincolnshire Council,http://statistics.data.gov.uk/id/local-authority/00FC,People And Communities,Improved Health,Supporting People,Other Agencies,Third Pp - Block Subsidy,PJ102,20/06/2012,118873,Redacted Commercially Sensitive,Revenue,NAVIGO HEALTH AND SOCIAL CARE CIC,104262
North East Lincolnshire Council,http://statistics.data.gov.uk/id/local-authority/00FC,People And Communities,Improved Health,Supporting People,Other Agencies,Third Pp - Block Gross,PJ103,28/06/2012,121173,Redacted Commercially Sensitive,Revenue,HUMBERCARE LTD,100311
North East Lincolnshire Council,http://statistics.data.gov.uk/id/local-authority/00FC,People And Communities,Improved Health,Supporting People,Other Agencies,Third Pp - Block Subsidy,PJ102,20/06/2012,118874,Redacted Commercially Sensitive,Revenue,CARE PLUS GROUP,106467
North East Lincolnshire Council,http://statistics.data.gov.uk/id/local-authority/00FC,People And Communities,Improved Health,Supporting People,Other Agencies,Third Pp - Block Gross,PJ103,28/06/2012,121175,Redacted Commercially Sensitive,Revenue,WOMENS AID,100326
North East Lincolnshire Council,http://statistics.data.gov.uk/id/local-authority/00FC,People And Communities,Improved Health,Supporting People,Other Agencies,Third Pp - Block Gross,PJ103,28/06/2012,121171,Redacted Commercially Sensitive,Revenue,THE SALVATION ARMY,100309
North East Lincolnshire Council,http://statistics.data.gov.uk/id/local-authority/00FC,People And Communities,Improved Health,Supporting People,Other Agencies,Third Pp - Block Gross,PJ103,28/06/2012,121172,Redacted Commercially Sensitive,Revenue,DOORSTEP,100310
North East Lincolnshire Council,http://statistics.data.gov.uk/id/local-authority/00FC,People And Communities,Improved Health,Supporting People,Other Agencies,Third Pp - Block Subsidy,PJ102,20/06/2012,118867,Redacted Commercially Sensitive,Revenue,HOUSING & SUPPORT SOLUTIONS,100321
North East Lincolnshire Council,http://statistics.data.gov.uk/id/local-authority/00FC,People And Communities,Improved Health,Supporting People,Other Agencies,Third Pp - Block Gross,PJ103,28/06/2012,121177,Redacted Commercially Sensitive,Revenue,LONGHURST AND HAVELOK HOMES LTD,100342
North East Lincolnshire Council,http://statistics.data.gov.uk/id/local-authority/00FC,People And Communities,Improved Health,Supporting People,Other Agencies,Third Pp - Block Gross,PJ103,28/06/2012,121170,Redacted Commercially Sensitive,Revenue,GRIMSBY AND CLEETHORPES YMCA,100305
North East Lincolnshire Council,http://statistics.data.gov.uk/id/local-authority/00FC,People And Communities,Improved Health,Supporting People,Other Agencies,Third Pp - Block Subsidy,PJ102,20/06/2012,118871,Redacted Commercially Sensitive,Revenue,LONGHURST AND HAVELOK HOMES LTD,100342
North East Lincolnshire Council,http://statistics.data.gov.uk/id/local-authority/00FC,People And Communities,Improved Health,Health Promotion,Equip / Furniture / Materials,Equipment - Purchase,LA101,28/06/2012,120726,-199.00,Revenue,LYRECO UK LIMITED,101120
North East Lincolnshire Council,http://statistics.data.gov.uk/id/local-authority/00FC,People And Communities,Improved Health,Smoking Cessation,Miscellaneous Expenses,Medical Supplies And Services,LL109,27/06/2012,117583,710.00,Revenue,INTERMEDICAL,108219
North East Lincolnshire Council,http://statistics.data.gov.uk/id/local-authority/00FC,People And Communities,Improved Health,Smoking Cessation,Miscellaneous Expenses,Medical Supplies And Services,LL109,22/06/2012,119685,794.67,Revenue,COHENS CHEMIST,108177
North East Lincolnshire Council,http://statistics.data.gov.uk/id/local-authority/00FC,People And Communities,Improved Health,Improved Health Operational,Equip / Furniture / Materials,Health & Safety Supplies,LA116,15/06/2012,117607,500.00,Revenue,WESTHOLME,100608
North East Lincolnshire Council,http://statistics.data.gov.uk/id/local-authority/00FC,People And Communities,Improved Health,Improved Health Operational,Equip / Furniture / Materials,Health & Safety Supplies,LA116,25/06/2012,120111,514.15,Revenue,F R TOWNSEND & CO LTD,104217
North East Lincolnshire Council,http://statistics.data.gov.uk/id/local-authority/00FC,People And Communities,Improved Health,Improved Health Operational,Equip / Furniture / Materials,Health & Safety Supplies,LA116,27/06/2012,120087,540.00,Revenue,ULTIMATE CARE GROUP LTD,103469
North East Lincolnshire Council,http://statistics.data.gov.uk/id/local-authority/00FC,People And Communities,Improved Health,Improved Health Operational,Equip / Furniture / Materials,Health & Safety Supplies,LA116,27/06/2012,120364,561.00,Revenue,AIDAPT BATHROOMS LTD,101164
North East Lincolnshire Council,http://statistics.data.gov.uk/id/local-authority/00FC,People And Communities,Improved Health,Improved Health Operational,Equip / Furniture / Materials,Health & Safety Supplies,LA116,26/06/2012,119769,582.00,Revenue,VIKING HARDWARE LTD,101792
North East Lincolnshire Council,http://statistics.data.gov.uk/id/local-authority/00FC,People And Communities,Improved Health,Improved Health Operational,Equip / Furniture / Materials,Health & Safety Supplies,LA116,15/06/2012,117614,590.40,Revenue,SMITCARE LTD,101070
North East Lincolnshire Council,http://statistics.data.gov.uk/id/local-authority/00FC,People And Communities,Improved Health,Improved Health Operational,Equip / Furniture / Materials,Health & Safety Supplies,LA116,25/06/2012,120062,595.69,Revenue,F R TOWNSEND & CO LTD,104217
North East Lincolnshire Council,http://statistics.data.gov.uk/id/local-authority/00FC,People And Communities,Improved Health,Improved Health Operational,Equip / Furniture / Materials,Health & Safety Supplies,LA116,15/06/2012,117624,604.00,Revenue,WESTHOLME,100608
North East Lincolnshire Council,http://statistics.data.gov.uk/id/local-authority/00FC,People And Communities,Improved Health,Improved Health Operational,Equip / Furniture / Materials,Health & Safety Supplies,LA116,26/06/2012,119769,622.00,Revenue,VIKING HARDWARE LTD,101792
North East Lincolnshire Council,http://statistics.data.gov.uk/id/local-authority/00FC,People And Communities,Improved Health,Improved Health Operational,Equip / Furniture / Materials,Health & Safety Supplies,LA116,25/06/2012,120118,659.23,Revenue,F R TOWNSEND & CO LTD,104217
North East Lincolnshire Council,http://statistics.data.gov.uk/id/local-authority/00FC,People And Communities,Improved Health,Improved Health Operational,Equip / Furniture / Materials,Health & Safety Supplies,LA116,15/06/2012,117577,780.00,Revenue,DRIVE MEDICAL,101627
North East Lincolnshire Council,http://statistics.data.gov.uk/id/local-authority/00FC,People And Communities,Improved Health,Improved Health Operational,Equip / Furniture / Materials,Health & Safety Supplies,LA116,25/06/2012,120110,959.23,Revenue,F R TOWNSEND & CO LTD,104217
North East Lincolnshire Council,http://statistics.data.gov.uk/id/local-authority/00FC,People And Communities,Improved Health,Improved Health Operational,Equip / Furniture / Materials,Health & Safety Supplies,LA116,27/06/2012,120350,983.00,Revenue,JENX LTD,100833
North East Lincolnshire Council,http://statistics.data.gov.uk/id/local-authority/00FC,People And Communities,Improved Health,Improved Health Operational,Equip / Furniture / Materials,Health & Safety Supplies,LA116,20/06/2012,118559,"1,087.50",Revenue,LINDALE HEALTHCARE,102517
North East Lincolnshire Council,http://statistics.data.gov.uk/id/local-authority/00FC,People And Communities,Improved Health,Improved Health Operational,Equip / Furniture / Materials,Health & Safety Supplies,LA116,06/06/2012,114045,"2,050.00",Revenue,LINDALE HEALTHCARE,102517
North East Lincolnshire Council,http://statistics.data.gov.uk/id/local-authority/00FC,People And Communities,Improved Health,Improved Health Operational,Equip / Furniture / Materials,Health & Safety Supplies,LA116,26/06/2012,120082,"2,550.00",Revenue,ULTIMATE CARE GROUP LTD,103469
North East Lincolnshire Council,http://statistics.data.gov.uk/id/local-authority/00FC,People And Communities,Improved Health,Improved Health Operational,Equip / Furniture / Materials,Health & Safety Supplies,LA116,08/06/2012,114035,"3,790.00",Revenue,MOUNTWAY LTD,101232
North East Lincolnshire Council,http://statistics.data.gov.uk/id/local-authority/00FC,People And Communities,Improved Health,Improved Health Operational,Equip / Furniture / Materials,Health & Safety Supplies,LA116,26/06/2012,120049,"4,380.00",Revenue,AQUAJOY BATHLIFTS LTD,101315
North East Lincolnshire Council,http://statistics.data.gov.uk/id/local-authority/00FC,People And Communities,Improved Health,Improved Health Operational,Equip / Furniture / Materials,Health & Safety Supplies,LA116,26/06/2012,120050,"4,760.00",Revenue,AQUAJOY BATHLIFTS LTD,101315
North East Lincolnshire Council,http://statistics.data.gov.uk/id/local-authority/00FC,People And Communities,Vulnerable Young People,Additional & Enhanced Needs,Direct Employee Expenses,Agency Staff,EA105,26/06/2012,120190,555.50,Revenue,RANDSTAD EDUCATION LTD,102465
North East Lincolnshire Council,http://statistics.data.gov.uk/id/local-authority/00FC,People And Communities,Vulnerable Young People,Additional & Enhanced Needs,Direct Employee Expenses,Agency Staff,EA105,27/06/2012,120375,555.50,Revenue,RANDSTAD EDUCATION LTD,102465
North East Lincolnshire Council,http://statistics.data.gov.uk/id/local-authority/00FC,People And Communities,Vulnerable Young People,Additional & Enhanced Needs,Direct Employee Expenses,Agency Staff,EA105,26/06/2012,120188,555.50,Revenue,RANDSTAD EDUCATION LTD,102465
North East Lincolnshire Council,http://statistics.data.gov.uk/id/local-authority/00FC,People And Communities,Vulnerable Young People,Additional & Enhanced Needs,Direct Employee Expenses,Agency Staff,EA105,27/06/2012,120374,555.50,Revenue,RANDSTAD EDUCATION LTD,102465
North East Lincolnshire Council,http://statistics.data.gov.uk/id/local-authority/00FC,People And Communities,Vulnerable Young People,Additional & Enhanced Needs,Consultancy,Consultancy,PL101,06/06/2012,115772,660.00,Revenue,GLENN ALLGOOD,109255
North East Lincolnshire Council,http://statistics.data.gov.uk/id/local-authority/00FC,People And Communities,Vulnerable Young People,Additional & Enhanced Needs,Contributions To Provisions,Contributions - Other,LK103,08/06/2012,116076,"1,045.00",Revenue,DKM ASSESSMENT & VERIFICATION LTD,101643
North East Lincolnshire Council,http://statistics.data.gov.uk/id/local-authority/00FC,People And Communities,Vulnerable Young People,Additional & Enhanced Needs,Consultancy,Consultancy,PL101,29/06/2012,121346,"1,270.48",Revenue,SUE SMITH,102975
North East Lincolnshire Council,http://statistics.data.gov.uk/id/local-authority/00FC,People And Communities,Vulnerable Young People,Additional & Enhanced Needs,Other Local Authorities,Third Pp - Other Local Auth,PC101,08/06/2012,116073,"2,280.00",Revenue,RAINBOW,102123
North East Lincolnshire Council,http://statistics.data.gov.uk/id/local-authority/00FC,People And Communities,Vulnerable Young People,Additional & Enhanced Needs,Contributions To Provisions,Contributions - Other,LK103,08/06/2012,116071,"2,280.00",Revenue,THE CAMBRIDGE PARK ACADEMY,107472
North East Lincolnshire Council,http://statistics.data.gov.uk/id/local-authority/00FC,People And Communities,Vulnerable Young People,Additional & Enhanced Needs,Consultancy,Consultancy,PL101,26/06/2012,119969,"2,383.45",Revenue,SUE SMITH,102975
North East Lincolnshire Council,http://statistics.data.gov.uk/id/local-authority/00FC,People And Communities,Vulnerable Young People,Additional & Enhanced Needs,Private Contractors,Third Party Prov - Private,PH101,08/06/2012,116070,"2,660.00",Revenue,DKM ASSESSMENT & VERIFICATION LTD,101643
North East Lincolnshire Council,http://statistics.data.gov.uk/id/local-authority/00FC,People And Communities,Vulnerable Young People,Additional & Enhanced Needs,Private Contractors,Third Party Prov - Private,PH101,06/06/2012,115773,"2,970.00",Revenue,REFLEXION CARE GROUP LIMITED,106975
North East Lincolnshire Council,http://statistics.data.gov.uk/id/local-authority/00FC,People And Communities,Vulnerable Young People,Additional & Enhanced Needs,Other Local Authorities,Third Pp - Other Local Auth,PC101,06/06/2012,115957,"3,630.00",Revenue,DKM ASSESSMENT & VERIFICATION LTD,101643
North East Lincolnshire Council,http://statistics.data.gov.uk/id/local-authority/00FC,People And Communities,Vulnerable Young People,Additional & Enhanced Needs,Other Local Authorities,Third Pp - Other Local Auth,PC101,08/06/2012,116075,"4,554.89",Revenue,NEW OPTIONS LTD,105590
North East Lincolnshire Council,http://statistics.data.gov.uk/id/local-authority/00FC,People And Communities,Vulnerable Young People,Additional & Enhanced Needs,Other Local Authorities,Third Pp - Other Local Auth,PC101,08/06/2012,116072,"5,690.53",Revenue,NEW OPTIONS LTD,105590
North East Lincolnshire Council,http://statistics.data.gov.uk/id/local-authority/00FC,People And Communities,Vulnerable Young People,Additional & Enhanced Needs,Other Local Authorities,Third Pp - Other Local Auth,PC101,19/06/2012,118289,"7,185.00",Revenue,NORTH LINCOLNSHIRE COUNCIL,101186
North East Lincolnshire Council,http://statistics.data.gov.uk/id/local-authority/00FC,People And Communities,Vulnerable Young People,Additional & Enhanced Needs,Other Local Authorities,Third Pp - Other Local Auth,PC101,08/06/2012,116070,"7,980.00",Revenue,DKM ASSESSMENT & VERIFICATION LTD,101643
North East Lincolnshire Council,http://statistics.data.gov.uk/id/local-authority/00FC,People And Communities,Vulnerable Young People,Additional & Enhanced Needs,Other Local Authorities,Third Pp - Other Local Auth,PC101,08/06/2012,116071,"9,550.00",Revenue,THE CAMBRIDGE PARK ACADEMY,107472
North East Lincolnshire Council,http://statistics.data.gov.uk/id/local-authority/00FC,People And Communities,Vulnerable Young People,Additional & Enhanced Needs,Contributions To Provisions,Contributions - Other,LK103,08/06/2012,116071,"16,550.00",Revenue,THE CAMBRIDGE PARK ACADEMY,107472
North East Lincolnshire Council,http://statistics.data.gov.uk/id/local-authority/00FC,People And Communities,Vulnerable Young People,Additional & Enhanced Needs,Private Contractors,Third Party Prov - Private,PH101,06/06/2012,115773,"18,223.05",Revenue,REFLEXION CARE GROUP LIMITED,106975
North East Lincolnshire Council,http://statistics.data.gov.uk/id/local-authority/00FC,People And Communities,Vulnerable Young People,Child Care Performance & Ict,Indirect Employee Expenses,Staff Training,EB122,27/06/2012,120727,"-5,000.00",Revenue,NORTHGATE INFORMATION SOLUTIONS UK LTD,101841
North East Lincolnshire Council,http://statistics.data.gov.uk/id/local-authority/00FC,People And Communities,Vulnerable Young People,Child Care Performance & Ict,Communications And Computing,Computer S/Ware - Purchases,LF101,25/06/2012,119737,"2,515.43",Revenue,NATIONAL CONSORTIUM FOR EXAMINATION RESULTS,110067
North East Lincolnshire Council,http://statistics.data.gov.uk/id/local-authority/00FC,People And Communities,Vulnerable Young People,Child Care Performance & Ict,Indirect Employee Expenses,Staff Training,EB122,20/06/2012,118853,"3,750.00",Revenue,NORTHGATE INFORMATION SOLUTIONS UK LTD,101841
North East Lincolnshire Council,http://statistics.data.gov.uk/id/local-authority/00FC,People And Communities,Vulnerable Young People,Child Care Performance & Ict,Indirect Employee Expenses,Staff Training,EB122,20/06/2012,118854,"5,000.00",Revenue,NORTHGATE INFORMATION SOLUTIONS UK LTD,101841
North East Lincolnshire Council,http://statistics.data.gov.uk/id/local-authority/00FC,People And Communities,Vulnerable Young People,Child Care Performance & Ict,Communications And Computing,Computer S/Ware - Purchases,LF101,20/06/2012,118640,"5,125.00",Revenue,FISCHER EDUCATION PROJECT LTD,110710
North East Lincolnshire Council,http://statistics.data.gov.uk/id/local-authority/00FC,People And Communities,Vulnerable Young People,Commissioning & Performance,Miscellaneous Expenses,Other Expenses General,LL119,26/06/2012,119505,Redacted Commercially Sensitive,Revenue,CYGNET CATERING,108880
North East Lincolnshire Council,http://statistics.data.gov.uk/id/local-authority/00FC,People And Communities,Vulnerable Young People,Commissioning & Performance,Catering,Purchase School Meals,LB103,20/06/2012,118483,Redacted Commercially Sensitive,Revenue,CYGNET CATERING,108880
North East Lincolnshire Council,http://statistics.data.gov.uk/id/local-authority/00FC,People And Communities,Vulnerable Young People,Commissioning & Performance,Catering,Purchase School Meals,LB103,26/06/2012,119505,Redacted Commercially Sensitive,Revenue,CYGNET CATERING,108880
North East Lincolnshire Council,http://statistics.data.gov.uk/id/local-authority/00FC,People And Communities,Vulnerable Young People,School Access Governor Student,Contract Hire-Operating Leases,Vehicles - Contract Hire,JC101,12/06/2012,116871,Redacted Commercially Sensitive,Revenue,LINKS TAXIS,100546
North East Lincolnshire Council,http://statistics.data.gov.uk/id/local-authority/00FC,People And Communities,Vulnerable Young People,School Access Governor Student,Contract Hire-Operating Leases,Vehicles - Contract Hire,JC101,12/06/2012,116778,Redacted Commercially Sensitive,Revenue,WHEELCHAIR FRIENDLY TAXI SERVICE,101915
North East Lincolnshire Council,http://statistics.data.gov.uk/id/local-authority/00FC,People And Communities,Vulnerable Young People,School Access Governor Student,Contract Hire-Operating Leases,Vehicles - Contract Hire,JC101,13/06/2012,117229,Redacted Commercially Sensitive,Revenue,MINICABS CLEETHORPES (LINCS) LTD,102124
North East Lincolnshire Council,http://statistics.data.gov.uk/id/local-authority/00FC,People And Communities,Vulnerable Young People,School Access Governor Student,Contract Hire-Operating Leases,Vehicles - Contract Hire,JC101,13/06/2012,117088,Redacted Commercially Sensitive,Revenue,LINKS TAXIS,100546
North East Lincolnshire Council,http://statistics.data.gov.uk/id/local-authority/00FC,People And Communities,Vulnerable Young People,School Access Governor Student,Contract Hire-Operating Leases,Vehicles - Contract Hire,JC101,20/06/2012,118455,Redacted Commercially Sensitive,Revenue,MINICABS CLEETHORPES (LINCS) LTD,102124
North East Lincolnshire Council,http://statistics.data.gov.uk/id/local-authority/00FC,People And Communities,Vulnerable Young People,School Access Governor Student,Contract Hire-Operating Leases,Vehicles - Contract Hire,JC101,13/06/2012,116726,Redacted Commercially Sensitive,Revenue,MINICABS CLEETHORPES (LINCS) LTD,102124
North East Lincolnshire Council,http://statistics.data.gov.uk/id/local-authority/00FC,People And Communities,Vulnerable Young People,School Access Governor Student,Contract Hire-Operating Leases,Vehicles - Contract Hire,JC101,13/06/2012,117224,Redacted Commercially Sensitive,Revenue,MINICABS CLEETHORPES (LINCS) LTD,102124
North East Lincolnshire Council,http://statistics.data.gov.uk/id/local-authority/00FC,People And Communities,Vulnerable Young People,School Access Governor Student,Contract Hire-Operating Leases,Vehicles - Contract Hire,JC101,08/06/2012,116068,Redacted Commercially Sensitive,Revenue,AIRPORT TRAVEL ( DO NOT USE),107220
North East Lincolnshire Council,http://statistics.data.gov.uk/id/local-authority/00FC,People And Communities,Vulnerable Young People,School Access Governor Student,Contract Hire-Operating Leases,Vehicles - Contract Hire,JC101,11/06/2012,116716,Redacted Commercially Sensitive,Revenue,LINKS TAXIS,100546
North East Lincolnshire Council,http://statistics.data.gov.uk/id/local-authority/00FC,People And Communities,Vulnerable Young People,School Access Governor Student,Contract Hire-Operating Leases,Vehicles - Contract Hire,JC101,12/06/2012,116866,Redacted Commercially Sensitive,Revenue,LINKS TAXIS,100546
North East Lincolnshire Council,http://statistics.data.gov.uk/id/local-authority/00FC,People And Communities,Vulnerable Young People,School Access Governor Student,Contract Hire-Operating Leases,Vehicles - Contract Hire,JC101,08/06/2012,116452,Redacted Commercially Sensitive,Revenue,AA RADIO CARS LTD,101222
North East Lincolnshire Council,http://statistics.data.gov.uk/id/local-authority/00FC,People And Communities,Vulnerable Young People,School Access Governor Student,Contract Hire-Operating Leases,Vehicles - Contract Hire,JC101,12/06/2012,116878,Redacted Commercially Sensitive,Revenue,LINKS TAXIS,100546
North East Lincolnshire Council,http://statistics.data.gov.uk/id/local-authority/00FC,People And Communities,Vulnerable Young People,School Access Governor Student,Contract Hire-Operating Leases,Vehicles - Contract Hire,JC101,11/06/2012,116535,Redacted Commercially Sensitive,Revenue,LINKS TAXIS,100546
North East Lincolnshire Council,http://statistics.data.gov.uk/id/local-authority/00FC,People And Communities,Vulnerable Young People,School Access Governor Student,Contract Hire-Operating Leases,Vehicles - Contract Hire,JC101,08/06/2012,116069,Redacted Commercially Sensitive,Revenue,TREV'S MINIBUS,101098
North East Lincolnshire Council,http://statistics.data.gov.uk/id/local-authority/00FC,People And Communities,Vulnerable Young People,School Access Governor Student,Contract Hire-Operating Leases,Vehicles - Contract Hire,JC101,13/06/2012,117246,Redacted Commercially Sensitive,Revenue,MAYALLS CARS,104414
North East Lincolnshire Council,http://statistics.data.gov.uk/id/local-authority/00FC,People And Communities,Vulnerable Young People,School Access Governor Student,Contract Hire-Operating Leases,Vehicles - Contract Hire,JC101,11/06/2012,116715,Redacted Commercially Sensitive,Revenue,LINKS TAXIS,100546
North East Lincolnshire Council,http://statistics.data.gov.uk/id/local-authority/00FC,People And Communities,Vulnerable Young People,School Access Governor Student,Contract Hire-Operating Leases,Vehicles - Contract Hire,JC101,15/06/2012,117015,Redacted Commercially Sensitive,Revenue,AIRPORT TRAVEL ( DO NOT USE),107220
North East Lincolnshire Council,http://statistics.data.gov.uk/id/local-authority/00FC,People And Communities,Vulnerable Young People,School Access Governor Student,Contract Hire-Operating Leases,Vehicles - Contract Hire,JC101,13/06/2012,116749,Redacted Commercially Sensitive,Revenue,AMVALE LIMITED,101030
North East Lincolnshire Council,http://statistics.data.gov.uk/id/local-authority/00FC,People And Communities,Vulnerable Young People,School Access Governor Student,Contract Hire-Operating Leases,Vehicles - Contract Hire,JC101,12/06/2012,116723,Redacted Commercially Sensitive,Revenue,AMVALE LIMITED,101030
North East Lincolnshire Council,http://statistics.data.gov.uk/id/local-authority/00FC,People And Communities,Vulnerable Young People,School Access Governor Student,Contract Hire-Operating Leases,Vehicles - Contract Hire,JC101,08/06/2012,116066,Redacted Commercially Sensitive,Revenue,AMVALE LIMITED,101030
North East Lincolnshire Council,http://statistics.data.gov.uk/id/local-authority/00FC,People And Communities,Vulnerable Young People,School Access Governor Student,Contract Hire-Operating Leases,Vehicles - Contract Hire,JC101,08/06/2012,116065,Redacted Commercially Sensitive,Revenue,AMVALE LIMITED,101030
North East Lincolnshire Council,http://statistics.data.gov.uk/id/local-authority/00FC,People And Communities,Vulnerable Young People,School Access Governor Student,Contract Hire-Operating Leases,Vehicles - Contract Hire,JC101,13/06/2012,116722,Redacted Commercially Sensitive,Revenue,AMVALE LIMITED,101030
North East Lincolnshire Council,http://statistics.data.gov.uk/id/local-authority/00FC,People And Communities,Vulnerable Young People,School Access Governor Student,Contract Hire-Operating Leases,Vehicles - Contract Hire,JC101,11/06/2012,116714,Redacted Commercially Sensitive,Revenue,LINKS TAXIS,100546
North East Lincolnshire Council,http://statistics.data.gov.uk/id/local-authority/00FC,People And Communities,Vulnerable Young People,School Access Governor Student,Contract Hire-Operating Leases,Vehicles - Contract Hire,JC101,15/06/2012,117593,Redacted Commercially Sensitive,Revenue,REVELLS TAXIS (ED/SOC SERV),100559
North East Lincolnshire Council,http://statistics.data.gov.uk/id/local-authority/00FC,People And Communities,Vulnerable Young People,School Access Governor Student,Contract Hire-Operating Leases,Vehicles - Contract Hire,JC101,11/06/2012,116710,Redacted Commercially Sensitive,Revenue,LINKS TAXIS,100546
North East Lincolnshire Council,http://statistics.data.gov.uk/id/local-authority/00FC,People And Communities,Vulnerable Young People,School Access Governor Student,Contract Hire-Operating Leases,Vehicles - Contract Hire,JC101,12/06/2012,116877,Redacted Commercially Sensitive,Revenue,LINKS TAXIS,100546
North East Lincolnshire Council,http://statistics.data.gov.uk/id/local-authority/00FC,People And Communities,Vulnerable Young People,School Access Governor Student,Contract Hire-Operating Leases,Vehicles - Contract Hire,JC101,15/06/2012,117244,Redacted Commercially Sensitive,Revenue,WHEELCHAIR FRIENDLY TAXI SERVICE,101915
North East Lincolnshire Council,http://statistics.data.gov.uk/id/local-authority/00FC,People And Communities,Vulnerable Young People,School Access Governor Student,Contract Hire-Operating Leases,Vehicles - Contract Hire,JC101,15/06/2012,117235,Redacted Commercially Sensitive,Revenue,MARTIN HORTON,102171
North East Lincolnshire Council,http://statistics.data.gov.uk/id/local-authority/00FC,People And Communities,Vulnerable Young People,School Access Governor Student,Contract Hire-Operating Leases,Vehicles - Contract Hire,JC101,15/06/2012,117277,Redacted Commercially Sensitive,Revenue,WHEELCHAIR FRIENDLY TAXI SERVICE,101915
North East Lincolnshire Council,http://statistics.data.gov.uk/id/local-authority/00FC,People And Communities,Vulnerable Young People,School Access Governor Student,Contract Hire-Operating Leases,Vehicles - Contract Hire,JC101,06/06/2012,116062,Redacted Commercially Sensitive,Revenue,CABBYCARS,100847
North East Lincolnshire Council,http://statistics.data.gov.uk/id/local-authority/00FC,People And Communities,Vulnerable Young People,School Access Governor Student,Contract Hire-Operating Leases,Vehicles - Contract Hire,JC101,15/06/2012,117241,Redacted Commercially Sensitive,Revenue,MINICABS CLEETHORPES (LINCS) LTD,102124
North East Lincolnshire Council,http://statistics.data.gov.uk/id/local-authority/00FC,People And Communities,Vulnerable Young People,School Access Governor Student,Contract Hire-Operating Leases,Vehicles - Contract Hire,JC101,27/06/2012,117333,Redacted Commercially Sensitive,Revenue,MINICABS CLEETHORPES (LINCS) LTD,102124
North East Lincolnshire Council,http://statistics.data.gov.uk/id/local-authority/00FC,People And Communities,Vulnerable Young People,School Access Governor Student,Contract Hire-Operating Leases,Vehicles - Contract Hire,JC101,12/06/2012,116759,Redacted Commercially Sensitive,Revenue,AMVALE LIMITED,101030
North East Lincolnshire Council,http://statistics.data.gov.uk/id/local-authority/00FC,People And Communities,Vulnerable Young People,School Access Governor Student,Contract Hire-Operating Leases,Vehicles - Contract Hire,JC101,08/06/2012,116064,Redacted Commercially Sensitive,Revenue,HUXMANOR LTD,101444
North East Lincolnshire Council,http://statistics.data.gov.uk/id/local-authority/00FC,People And Communities,Vulnerable Young People,School Access Governor Student,Contract Hire-Operating Leases,Vehicles - Contract Hire,JC101,13/06/2012,117228,Redacted Commercially Sensitive,Revenue,MILLMAN COACHES,100700
North East Lincolnshire Council,http://statistics.data.gov.uk/id/local-authority/00FC,People And Communities,Vulnerable Young People,School Access Governor Student,Contract Hire-Operating Leases,Vehicles - Contract Hire,JC101,13/06/2012,116708,Redacted Commercially Sensitive,Revenue,MINICABS CLEETHORPES (LINCS) LTD,102124
North East Lincolnshire Council,http://statistics.data.gov.uk/id/local-authority/00FC,People And Communities,Vulnerable Young People,School Access Governor Student,Contract Hire-Operating Leases,Vehicles - Contract Hire,JC101,13/06/2012,117236,Redacted Commercially Sensitive,Revenue,WHEELCHAIR FRIENDLY TAXI SERVICE,101915
North East Lincolnshire Council,http://statistics.data.gov.uk/id/local-authority/00FC,People And Communities,Vulnerable Young People,School Access Governor Student,Contract Hire-Operating Leases,Vehicles - Contract Hire,JC101,08/06/2012,116063,Redacted Commercially Sensitive,Revenue,HUXMANOR LTD,101444
North East Lincolnshire Council,http://statistics.data.gov.uk/id/local-authority/00FC,People And Communities,Vulnerable Young People,School Access Governor Student,Contract Hire-Operating Leases,Vehicles - Contract Hire,JC101,12/06/2012,116761,Redacted Commercially Sensitive,Revenue,AMVALE LIMITED,101030
North East Lincolnshire Council,http://statistics.data.gov.uk/id/local-authority/00FC,People And Communities,Vulnerable Young People,School Access Governor Student,Contract Hire-Operating Leases,Vehicles - Contract Hire,JC101,12/06/2012,116757,Redacted Commercially Sensitive,Revenue,AMVALE LIMITED,101030
North East Lincolnshire Council,http://statistics.data.gov.uk/id/local-authority/00FC,People And Communities,Vulnerable Young People,School Access Governor Student,Contract Hire-Operating Leases,Vehicles - Contract Hire,JC101,13/06/2012,116756,Redacted Commercially Sensitive,Revenue,AMVALE LIMITED,101030
North East Lincolnshire Council,http://statistics.data.gov.uk/id/local-authority/00FC,People And Communities,Vulnerable Young People,School Access Governor Student,Contract Hire-Operating Leases,Vehicles - Contract Hire,JC101,13/06/2012,116770,Redacted Commercially Sensitive,Revenue,AMVALE LIMITED,101030
North East Lincolnshire Council,http://statistics.data.gov.uk/id/local-authority/00FC,People And Communities,Vulnerable Young People,School Access Governor Student,Contract Hire-Operating Leases,Vehicles - Contract Hire,JC101,15/06/2012,117596,Redacted Commercially Sensitive,Revenue,REVELLS TAXIS (ED/SOC SERV),100559
North East Lincolnshire Council,http://statistics.data.gov.uk/id/local-authority/00FC,People And Communities,Vulnerable Young People,School Access Governor Student,Contract Hire-Operating Leases,Vehicles - Contract Hire,JC101,12/06/2012,116728,Redacted Commercially Sensitive,Revenue,MINICABS CLEETHORPES (LINCS) LTD,102124
North East Lincolnshire Council,http://statistics.data.gov.uk/id/local-authority/00FC,People And Communities,Vulnerable Young People,School Access Governor Student,Contract Hire-Operating Leases,Vehicles - Contract Hire,JC101,15/06/2012,117247,Redacted Commercially Sensitive,Revenue,MINICABS CLEETHORPES (LINCS) LTD,102124
North East Lincolnshire Council,http://statistics.data.gov.uk/id/local-authority/00FC,People And Communities,Vulnerable Young People,School Access Governor Student,Contract Hire-Operating Leases,Vehicles - Contract Hire,JC101,12/06/2012,117071,Redacted Commercially Sensitive,Revenue,AIRPORT TRAVEL ( DO NOT USE),107220
North East Lincolnshire Council,http://statistics.data.gov.uk/id/local-authority/00FC,People And Communities,Vulnerable Young People,School Access Governor Student,Contract Hire-Operating Leases,Vehicles - Contract Hire,JC101,13/06/2012,117232,Redacted Commercially Sensitive,Revenue,HUXMANOR LTD,101444
North East Lincolnshire Council,http://statistics.data.gov.uk/id/local-authority/00FC,People And Communities,Vulnerable Young People,School Access Governor Student,Contract Hire-Operating Leases,Vehicles - Contract Hire,JC101,12/06/2012,116754,Redacted Commercially Sensitive,Revenue,AMVALE LIMITED,101030
North East Lincolnshire Council,http://statistics.data.gov.uk/id/local-authority/00FC,People And Communities,Vulnerable Young People,School Access Governor Student,Contract Hire-Operating Leases,Vehicles - Contract Hire,JC101,20/06/2012,118453,Redacted Commercially Sensitive,Revenue,STAGECOACH SERVICES,101404
North East Lincolnshire Council,http://statistics.data.gov.uk/id/local-authority/00FC,People And Communities,Vulnerable Young People,School Access Governor Student,Contract Hire-Operating Leases,Vehicles - Contract Hire,JC101,20/06/2012,118453,Redacted Commercially Sensitive,Revenue,STAGECOACH SERVICES,101404
North East Lincolnshire Council,http://statistics.data.gov.uk/id/local-authority/00FC,People And Communities,Vulnerable Young People,School Access Governor Student,Contract Hire-Operating Leases,Vehicles - Contract Hire,JC101,15/06/2012,117240,Redacted Commercially Sensitive,Revenue,TREV'S MINIBUS,101098
North East Lincolnshire Council,http://statistics.data.gov.uk/id/local-authority/00FC,People And Communities,Vulnerable Young People,School Access Governor Student,Contract Hire-Operating Leases,Vehicles - Contract Hire,JC101,14/06/2012,117676,Redacted Commercially Sensitive,Revenue,MR W DRINKELL,101208
North East Lincolnshire Council,http://statistics.data.gov.uk/id/local-authority/00FC,People And Communities,Vulnerable Young People,School Access Governor Student,Contract Hire-Operating Leases,Vehicles - Contract Hire,JC101,12/06/2012,116755,Redacted Commercially Sensitive,Revenue,AMVALE LIMITED,101030
North East Lincolnshire Council,http://statistics.data.gov.uk/id/local-authority/00FC,People And Communities,Vulnerable Young People,School Access Governor Student,Contract Hire-Operating Leases,Vehicles - Contract Hire,JC101,15/06/2012,117338,Redacted Commercially Sensitive,Revenue,MINICABS CLEETHORPES (LINCS) LTD,102124
North East Lincolnshire Council,http://statistics.data.gov.uk/id/local-authority/00FC,People And Communities,Vulnerable Young People,School Access Governor Student,Contract Hire-Operating Leases,Vehicles - Contract Hire,JC101,15/06/2012,117237,Redacted Commercially Sensitive,Revenue,THE BUS RUN,101522
North East Lincolnshire Council,http://statistics.data.gov.uk/id/local-authority/00FC,People And Communities,Vulnerable Young People,School Access Governor Student,Contract Hire-Operating Leases,Vehicles - Contract Hire,JC101,13/06/2012,117245,Redacted Commercially Sensitive,Revenue,MINICABS CLEETHORPES (LINCS) LTD,102124
North East Lincolnshire Council,http://statistics.data.gov.uk/id/local-authority/00FC,People And Communities,Vulnerable Young People,School Access Governor Student,Contract Hire-Operating Leases,Vehicles - Contract Hire,JC101,15/06/2012,117234,Redacted Commercially Sensitive,Revenue,CABBYCARS,100847
North East Lincolnshire Council,http://statistics.data.gov.uk/id/local-authority/00FC,People And Communities,Vulnerable Young People,School Access Governor Student,Contract Hire-Operating Leases,Vehicles - Contract Hire,JC101,13/06/2012,117233,Redacted Commercially Sensitive,Revenue,HUXMANOR LTD,101444
North East Lincolnshire Council,http://statistics.data.gov.uk/id/local-authority/00FC,People And Communities,Vulnerable Young People,School Access Governor Student,Contract Hire-Operating Leases,Vehicles - Contract Hire,JC101,13/06/2012,117230,Redacted Commercially Sensitive,Revenue,HUXMANOR LTD,101444
North East Lincolnshire Council,http://statistics.data.gov.uk/id/local-authority/00FC,People And Communities,Vulnerable Young People,School Access Governor Student,Contract Hire-Operating Leases,Vehicles - Contract Hire,JC101,15/06/2012,117599,Redacted Commercially Sensitive,Revenue,SHERWOOD TRAVEL,100868
North East Lincolnshire Council,http://statistics.data.gov.uk/id/local-authority/00FC,People And Communities,Vulnerable Young People,School Access Governor Student,Contract Hire-Operating Leases,Vehicles - Contract Hire,JC101,13/06/2012,117232,Redacted Commercially Sensitive,Revenue,HUXMANOR LTD,101444
North East Lincolnshire Council,http://statistics.data.gov.uk/id/local-authority/00FC,People And Communities,Vulnerable Young People,School Access Governor Student,Contract Hire-Operating Leases,Vehicles - Contract Hire,JC101,13/06/2012,117231,Redacted Commercially Sensitive,Revenue,E M EMMERSON,100576
North East Lincolnshire Council,http://statistics.data.gov.uk/id/local-authority/00FC,People And Communities,Vulnerable Young People,School Access Governor Student,Contract Hire-Operating Leases,Vehicles - Contract Hire,JC101,13/06/2012,117225,Redacted Commercially Sensitive,Revenue,SHERWOOD TRAVEL,100868
North East Lincolnshire Council,http://statistics.data.gov.uk/id/local-authority/00FC,People And Communities,Vulnerable Young People,Strategic Management,Indirect Employee Expenses,Allowances - Employees,EB110,06/06/2012,115966,850.50,Revenue,GRIMSBY & DISTRICT TEACHERS ASSOCIATION,107358
North East Lincolnshire Council,http://statistics.data.gov.uk/id/local-authority/00FC,People And Communities,Vulnerable Young People,Strategic Management,Direct Employee Expenses,Agency Staff,EA105,12/06/2012,116804,"13,153.25",Revenue,JD AND KM BLACKMORE PARTNERS,102197
North East Lincolnshire Council,http://statistics.data.gov.uk/id/local-authority/00FC,People And Communities,Vulnerable Young People,Sen/Inclusion,Private Contractors,Third Party Prov - Private,PH101,15/06/2012,117571,500.00,Revenue,DKM ASSESSMENT & VERIFICATION LTD,101643
North East Lincolnshire Council,http://statistics.data.gov.uk/id/local-authority/00FC,People And Communities,Vulnerable Young People,Sen/Inclusion,Private Contractors,Third Party Prov - Private,PH101,06/06/2012,115742,528.00,Revenue,NORTH EAST LINCS MOTOR PROJECT,101121
North East Lincolnshire Council,http://statistics.data.gov.uk/id/local-authority/00FC,People And Communities,Vulnerable Young People,Sen/Inclusion,Energy Costs,Gas,GB101,26/06/2012,119970,544.27,Revenue,NPOWER LIMITED,101414
North East Lincolnshire Council,http://statistics.data.gov.uk/id/local-authority/00FC,People And Communities,Vulnerable Young People,Sen/Inclusion,Private Contractors,Third Party Prov - Private,PH101,25/06/2012,120299,550.00,Revenue,DKM ASSESSMENT & VERIFICATION LTD,101643
North East Lincolnshire Council,http://statistics.data.gov.uk/id/local-authority/00FC,People And Communities,Vulnerable Young People,Sen/Inclusion,Private Contractors,Third Party Prov - Private,PH101,06/06/2012,115728,550.00,Revenue,DKM ASSESSMENT & VERIFICATION LTD,101643
North East Lincolnshire Council,http://statistics.data.gov.uk/id/local-authority/00FC,People And Communities,Vulnerable Young People,Sen/Inclusion,Private Contractors,Third Party Prov - Private,PH101,06/06/2012,115731,550.00,Revenue,DKM ASSESSMENT & VERIFICATION LTD,101643
North East Lincolnshire Council,http://statistics.data.gov.uk/id/local-authority/00FC,People And Communities,Vulnerable Young People,Sen/Inclusion,Private Contractors,Third Party Prov - Private,PH101,06/06/2012,115733,550.00,Revenue,DKM ASSESSMENT & VERIFICATION LTD,101643
North East Lincolnshire Council,http://statistics.data.gov.uk/id/local-authority/00FC,People And Communities,Vulnerable Young People,Sen/Inclusion,Private Contractors,Third Party Prov - Private,PH101,06/06/2012,115736,550.00,Revenue,DKM ASSESSMENT & VERIFICATION LTD,101643
North East Lincolnshire Council,http://statistics.data.gov.uk/id/local-authority/00FC,People And Communities,Vulnerable Young People,Sen/Inclusion,Private Contractors,Third Party Prov - Private,PH101,06/06/2012,115740,550.00,Revenue,DKM ASSESSMENT & VERIFICATION LTD,101643
North East Lincolnshire Council,http://statistics.data.gov.uk/id/local-authority/00FC,People And Communities,Vulnerable Young People,Sen/Inclusion,Private Contractors,Third Party Prov - Private,PH101,06/06/2012,115744,550.00,Revenue,DKM ASSESSMENT & VERIFICATION LTD,101643
North East Lincolnshire Council,http://statistics.data.gov.uk/id/local-authority/00FC,People And Communities,Vulnerable Young People,Sen/Inclusion,Private Contractors,Third Party Prov - Private,PH101,06/06/2012,115746,550.00,Revenue,DKM ASSESSMENT & VERIFICATION LTD,101643
North East Lincolnshire Council,http://statistics.data.gov.uk/id/local-authority/00FC,People And Communities,Vulnerable Young People,Sen/Inclusion,Private Contractors,Third Party Prov - Private,PH101,06/06/2012,115747,550.00,Revenue,DKM ASSESSMENT & VERIFICATION LTD,101643
North East Lincolnshire Council,http://statistics.data.gov.uk/id/local-authority/00FC,People And Communities,Vulnerable Young People,Sen/Inclusion,Private Contractors,Third Party Prov - Private,PH101,06/06/2012,115751,550.00,Revenue,DKM ASSESSMENT & VERIFICATION LTD,101643
North East Lincolnshire Council,http://statistics.data.gov.uk/id/local-authority/00FC,People And Communities,Vulnerable Young People,Sen/Inclusion,Private Contractors,Third Party Prov - Private,PH101,06/06/2012,115752,550.00,Revenue,DKM ASSESSMENT & VERIFICATION LTD,101643
North East Lincolnshire Council,http://statistics.data.gov.uk/id/local-authority/00FC,People And Communities,Vulnerable Young People,Sen/Inclusion,Private Contractors,Third Party Prov - Private,PH101,06/06/2012,115753,550.00,Revenue,DKM ASSESSMENT & VERIFICATION LTD,101643
North East Lincolnshire Council,http://statistics.data.gov.uk/id/local-authority/00FC,People And Communities,Vulnerable Young People,Sen/Inclusion,Private Contractors,Third Party Prov - Private,PH101,06/06/2012,115754,550.00,Revenue,DKM ASSESSMENT & VERIFICATION LTD,101643
North East Lincolnshire Council,http://statistics.data.gov.uk/id/local-authority/00FC,People And Communities,Vulnerable Young People,Sen/Inclusion,Private Contractors,Third Party Prov - Private,PH101,26/06/2012,120343,550.00,Revenue,DKM ASSESSMENT & VERIFICATION LTD,101643
North East Lincolnshire Council,http://statistics.data.gov.uk/id/local-authority/00FC,People And Communities,Vulnerable Young People,Sen/Inclusion,Private Contractors,Third Party Prov - Private,PH101,15/06/2012,117572,650.00,Revenue,DKM ASSESSMENT & VERIFICATION LTD,101643
North East Lincolnshire Council,http://statistics.data.gov.uk/id/local-authority/00FC,People And Communities,Vulnerable Young People,Sen/Inclusion,Private Contractors,Third Party Prov - Private,PH101,29/06/2012,121314,871.20,Revenue,DKM ASSESSMENT & VERIFICATION LTD,101643
North East Lincolnshire Council,http://statistics.data.gov.uk/id/local-authority/00FC,People And Communities,Vulnerable Young People,Sen/Inclusion,Contributions To Provisions,Contributions - Other,LK103,06/06/2012,115780,950.00,Revenue,BISHOP GROSSETESTE COLLEGE,101219
North East Lincolnshire Council,http://statistics.data.gov.uk/id/local-authority/00FC,People And Communities,Vulnerable Young People,Sen/Inclusion,Direct Employee Expenses,Pay Teachers Supply Cover,EA106,26/06/2012,120486,"1,049.00",Revenue,TEACHING PERSONNEL LTD,101305
North East Lincolnshire Council,http://statistics.data.gov.uk/id/local-authority/00FC,People And Communities,Vulnerable Young People,Sen/Inclusion,Private Contractors,Third Party Prov - Private,PH101,29/06/2012,121341,"1,100.00",Revenue,DKM ASSESSMENT & VERIFICATION LTD,101643
North East Lincolnshire Council,http://statistics.data.gov.uk/id/local-authority/00FC,People And Communities,Vulnerable Young People,Sen/Inclusion,Private Contractors,Third Party Prov - Private,PH101,29/06/2012,121303,"1,100.00",Revenue,DKM ASSESSMENT & VERIFICATION LTD,101643
North East Lincolnshire Council,http://statistics.data.gov.uk/id/local-authority/00FC,People And Communities,Vulnerable Young People,Sen/Inclusion,Private Contractors,Third Party Prov - Private,PH101,29/06/2012,121304,"1,100.00",Revenue,DKM ASSESSMENT & VERIFICATION LTD,101643
North East Lincolnshire Council,http://statistics.data.gov.uk/id/local-authority/00FC,People And Communities,Vulnerable Young People,Sen/Inclusion,Private Contractors,Third Party Prov - Private,PH101,29/06/2012,121305,"1,100.00",Revenue,DKM ASSESSMENT & VERIFICATION LTD,101643
North East Lincolnshire Council,http://statistics.data.gov.uk/id/local-authority/00FC,People And Communities,Vulnerable Young People,Sen/Inclusion,Private Contractors,Third Party Prov - Private,PH101,29/06/2012,121307,"1,100.00",Revenue,DKM ASSESSMENT & VERIFICATION LTD,101643
North East Lincolnshire Council,http://statistics.data.gov.uk/id/local-authority/00FC,People And Communities,Vulnerable Young People,Sen/Inclusion,Private Contractors,Third Party Prov - Private,PH101,29/06/2012,121308,"1,100.00",Revenue,DKM ASSESSMENT & VERIFICATION LTD,101643
North East Lincolnshire Council,http://statistics.data.gov.uk/id/local-authority/00FC,People And Communities,Vulnerable Young People,Sen/Inclusion,Private Contractors,Third Party Prov - Private,PH101,29/06/2012,121310,"1,100.00",Revenue,DKM ASSESSMENT & VERIFICATION LTD,101643
North East Lincolnshire Council,http://statistics.data.gov.uk/id/local-authority/00FC,People And Communities,Vulnerable Young People,Sen/Inclusion,Private Contractors,Third Party Prov - Private,PH101,29/06/2012,121311,"1,100.00",Revenue,DKM ASSESSMENT & VERIFICATION LTD,101643
North East Lincolnshire Council,http://statistics.data.gov.uk/id/local-authority/00FC,People And Communities,Vulnerable Young People,Sen/Inclusion,Private Contractors,Third Party Prov - Private,PH101,29/06/2012,121312,"1,100.00",Revenue,DKM ASSESSMENT & VERIFICATION LTD,101643
North East Lincolnshire Council,http://statistics.data.gov.uk/id/local-authority/00FC,People And Communities,Vulnerable Young People,Sen/Inclusion,Private Contractors,Third Party Prov - Private,PH101,29/06/2012,121313,"1,100.00",Revenue,DKM ASSESSMENT & VERIFICATION LTD,101643
North East Lincolnshire Council,http://statistics.data.gov.uk/id/local-authority/00FC,People And Communities,Vulnerable Young People,Sen/Inclusion,Private Contractors,Third Party Prov - Private,PH101,29/06/2012,121233,"1,100.00",Revenue,DKM ASSESSMENT & VERIFICATION LTD,101643
North East Lincolnshire Council,http://statistics.data.gov.uk/id/local-authority/00FC,People And Communities,Vulnerable Young People,Sen/Inclusion,Private Contractors,Third Party Prov - Private,PH101,29/06/2012,121235,"1,100.00",Revenue,DKM ASSESSMENT & VERIFICATION LTD,101643
North East Lincolnshire Council,http://statistics.data.gov.uk/id/local-authority/00FC,People And Communities,Vulnerable Young People,Sen/Inclusion,Private Contractors,Third Party Prov - Private,PH101,29/06/2012,121236,"1,100.00",Revenue,DKM ASSESSMENT & VERIFICATION LTD,101643
North East Lincolnshire Council,http://statistics.data.gov.uk/id/local-authority/00FC,People And Communities,Vulnerable Young People,Sen/Inclusion,Private Contractors,Third Party Prov - Private,PH101,29/06/2012,121344,"1,100.00",Revenue,DKM ASSESSMENT & VERIFICATION LTD,101643
North East Lincolnshire Council,http://statistics.data.gov.uk/id/local-authority/00FC,People And Communities,Vulnerable Young People,Sen/Inclusion,Private Contractors,Third Party Prov - Private,PH101,29/06/2012,121345,"1,100.00",Revenue,DKM ASSESSMENT & VERIFICATION LTD,101643
North East Lincolnshire Council,http://statistics.data.gov.uk/id/local-authority/00FC,People And Communities,Vulnerable Young People,Sen/Inclusion,Direct Employee Expenses,Pay Teachers Supply Cover,EA106,26/06/2012,120047,"1,154.70",Revenue,TEACHING PERSONNEL LTD,101305
North East Lincolnshire Council,http://statistics.data.gov.uk/id/local-authority/00FC,People And Communities,Vulnerable Young People,Sen/Inclusion,Other Local Authorities,Third Pp - Other Local Auth,PC101,19/06/2012,118352,"1,200.00",Revenue,MR R G FLOWERDAY,107027
North East Lincolnshire Council,http://statistics.data.gov.uk/id/local-authority/00FC,People And Communities,Vulnerable Young People,Sen/Inclusion,Contributions To Provisions,Contributions - Other,LK103,26/06/2012,120301,"1,495.83",Revenue,PRI LIBERATOR LTD,101858
North East Lincolnshire Council,http://statistics.data.gov.uk/id/local-authority/00FC,People And Communities,Vulnerable Young People,Sen/Inclusion,Private Contractors,Third Party Prov - Private,PH101,06/06/2012,115726,"1,540.00",Revenue,DKM ASSESSMENT & VERIFICATION LTD,101643
North East Lincolnshire Council,http://statistics.data.gov.uk/id/local-authority/00FC,People And Communities,Vulnerable Young People,Sen/Inclusion,Private Contractors,Third Party Prov - Private,PH101,06/06/2012,115750,"1,540.00",Revenue,DKM ASSESSMENT & VERIFICATION LTD,101643
North East Lincolnshire Council,http://statistics.data.gov.uk/id/local-authority/00FC,People And Communities,Vulnerable Young People,Sen/Inclusion,Consultancy,Consultancy,PL101,06/06/2012,115772,"2,640.00",Revenue,GLENN ALLGOOD,109255
North East Lincolnshire Council,http://statistics.data.gov.uk/id/local-authority/00FC,People And Communities,Vulnerable Young People,Sen/Inclusion,Private Contractors,Third Party Prov - Private,PH101,26/06/2012,120344,"2,850.00",Revenue,SHALOM YOUTH PROJECT,103924
North East Lincolnshire Council,http://statistics.data.gov.uk/id/local-authority/00FC,People And Communities,Vulnerable Young People,Sen/Inclusion,Private Contractors,Third Party Prov - Private,PH101,29/06/2012,121306,"3,080.00",Revenue,DKM ASSESSMENT & VERIFICATION LTD,101643
North East Lincolnshire Council,http://statistics.data.gov.uk/id/local-authority/00FC,People And Communities,Vulnerable Young People,Sen/Inclusion,Private Contractors,Third Party Prov - Private,PH101,29/06/2012,121309,"3,080.00",Revenue,DKM ASSESSMENT & VERIFICATION LTD,101643
North East Lincolnshire Council,http://statistics.data.gov.uk/id/local-authority/00FC,People And Communities,Vulnerable Young People,Sen/Inclusion,Private Contractors,Third Party Prov - Private,PH101,29/06/2012,121317,"3,080.00",Revenue,DKM ASSESSMENT & VERIFICATION LTD,101643
North East Lincolnshire Council,http://statistics.data.gov.uk/id/local-authority/00FC,People And Communities,Vulnerable Young People,Sen/Inclusion,Private Contractors,Third Party Prov - Private,PH101,29/06/2012,121234,"3,080.00",Revenue,DKM ASSESSMENT & VERIFICATION LTD,101643
North East Lincolnshire Council,http://statistics.data.gov.uk/id/local-authority/00FC,People And Communities,Vulnerable Young People,Sen/Inclusion,Private Contractors,Third Party Prov - Private,PH101,15/06/2012,117573,"8,170.00",Revenue,A4E CONSULT LTD,101656
North East Lincolnshire Council,http://statistics.data.gov.uk/id/local-authority/00FC,People And Communities,Vulnerable Young People,Sen/Inclusion,Other Local Authorities,Third Pp - Other Local Auth,PC101,13/06/2012,116693,"79,917.00",Revenue,HUMBERSTON PARK SPECIAL SCHOOL,107911
North East Lincolnshire Council,http://statistics.data.gov.uk/id/local-authority/00FC,People And Communities,Vulnerable Young People,Placement & Support,Other Agencies,Child Care Payments,PJ104,12/06/2012,86405,-629.00,Revenue,Redacted Personal Information,Redacted Personal Information
North East Lincolnshire Council,http://statistics.data.gov.uk/id/local-authority/00FC,People And Communities,Vulnerable Young People,Placement & Support,Other Agencies,Child Care Payments,PJ104,19/06/2012,88554,-296.14,Revenue,Redacted Personal Information,Redacted Personal Information
North East Lincolnshire Council,http://statistics.data.gov.uk/id/local-authority/00FC,People And Communities,Vulnerable Young People,Placement & Support,Print Stationery / Gen Off Exp,Printing And Stationery,LD103,27/06/2012,120497,-92.46,Revenue,LYRECO UK LIMITED,101120
North East Lincolnshire Council,http://statistics.data.gov.uk/id/local-authority/00FC,People And Communities,Vulnerable Young People,Placement & Support,Other Agencies,Child Care Payments,PJ104,01/06/2012,85434,-75.21,Revenue,Redacted Personal Information,Redacted Personal Information
North East Lincolnshire Council,http://statistics.data.gov.uk/id/local-authority/00FC,People And Communities,Vulnerable Young People,Placement & Support,Other Agencies,Child Care Payments,PJ104,01/06/2012,85434,-75.21,Revenue,Redacted Personal Information,Redacted Personal Information
North East Lincolnshire Council,http://statistics.data.gov.uk/id/local-authority/00FC,People And Communities,Vulnerable Young People,Placement & Support,Other Agencies,Child Care Payments,PJ104,01/06/2012,85434,-75.21,Revenue,Redacted Personal Information,Redacted Personal Information
North East Lincolnshire Council,http://statistics.data.gov.uk/id/local-authority/00FC,People And Communities,Vulnerable Young People,Placement & Support,Other Agencies,Child Care Payments,PJ104,12/06/2012,86332,-63.43,Revenue,Redacted Personal Information,Redacted Personal Information
North East Lincolnshire Council,http://statistics.data.gov.uk/id/local-authority/00FC,People And Communities,Vulnerable Young People,Placement & Support,Other Agencies,Birthday,PJ110,26/06/2012,90164,-54.86,Revenue,Redacted Personal Information,Redacted Personal Information
North East Lincolnshire Council,http://statistics.data.gov.uk/id/local-authority/00FC,People And Communities,Vulnerable Young People,Placement & Support,Other Agencies,Child Care Payments,PJ104,19/06/2012,88502,-52.86,Revenue,Redacted Personal Information,Redacted Personal Information
North East Lincolnshire Council,http://statistics.data.gov.uk/id/local-authority/00FC,People And Communities,Vulnerable Young People,Placement & Support,Other Agencies,Birthday,PJ110,19/06/2012,88532,-50.00,Revenue,Redacted Personal Information,Redacted Personal Information
North East Lincolnshire Council,http://statistics.data.gov.uk/id/local-authority/00FC,People And Communities,Vulnerable Young People,Placement & Support,Other Agencies,Child Care Payments,PJ104,01/06/2012,85449,-50.00,Revenue,Redacted Personal Information,Redacted Personal Information
North East Lincolnshire Council,http://statistics.data.gov.uk/id/local-authority/00FC,People And Communities,Vulnerable Young People,Placement & Support,Other Agencies,Child Care Payments,PJ104,12/06/2012,86457,-50.00,Revenue,Redacted Personal Information,Redacted Personal Information
North East Lincolnshire Council,http://statistics.data.gov.uk/id/local-authority/00FC,People And Communities,Vulnerable Young People,Placement & Support,Other Agencies,Child Care Payments,PJ104,01/06/2012,85358,-50.00,Revenue,Redacted Personal Information,Redacted Personal Information
North East Lincolnshire Council,http://statistics.data.gov.uk/id/local-authority/00FC,People And Communities,Vulnerable Young People,Placement & Support,Other Agencies,Child Care Payments,PJ104,26/06/2012,90257,-50.00,Revenue,Redacted Personal Information,Redacted Personal Information
North East Lincolnshire Council,http://statistics.data.gov.uk/id/local-authority/00FC,People And Communities,Vulnerable Young People,Placement & Support,Other Agencies,Adoption Allowance,PJ118,19/06/2012,88564,-50.00,Revenue,Redacted Personal Information,Redacted Personal Information
North East Lincolnshire Council,http://statistics.data.gov.uk/id/local-authority/00FC,People And Communities,Vulnerable Young People,Placement & Support,Other Agencies,Adoption Allowance,PJ118,26/06/2012,90196,-50.00,Revenue,Redacted Personal Information,Redacted Personal Information
North East Lincolnshire Council,http://statistics.data.gov.uk/id/local-authority/00FC,People And Communities,Vulnerable Young People,Placement & Support,Other Agencies,Child Care Payments,PJ104,19/06/2012,88478,-42.29,Revenue,Redacted Personal Information,Redacted Personal Information
North East Lincolnshire Council,http://statistics.data.gov.uk/id/local-authority/00FC,People And Communities,Vulnerable Young People,Placement & Support,Other Agencies,Child Care Payments,PJ104,12/06/2012,86307,-42.29,Revenue,Redacted Personal Information,Redacted Personal Information
North East Lincolnshire Council,http://statistics.data.gov.uk/id/local-authority/00FC,People And Communities,Vulnerable Young People,Placement & Support,Other Agencies,Child Care Payments,PJ104,12/06/2012,86364,-40.86,Revenue,Redacted Personal Information,Redacted Personal Information
North East Lincolnshire Council,http://statistics.data.gov.uk/id/local-authority/00FC,People And Communities,Vulnerable Young People,Placement & Support,Indirect Employee Expenses,Staff Training,EB122,19/06/2012,118357,-40.83,Revenue,NYS CORPORATE,102444
North East Lincolnshire Council,http://statistics.data.gov.uk/id/local-authority/00FC,People And Communities,Vulnerable Young People,Placement & Support,Other Agencies,Child Care Payments,PJ104,19/06/2012,88623,-37.00,Revenue,Redacted Personal Information,Redacted Personal Information
North East Lincolnshire Council,http://statistics.data.gov.uk/id/local-authority/00FC,People And Communities,Vulnerable Young People,Placement & Support,Other Agencies,Exceptional Task,PJ113,12/06/2012,86311,-32.90,Revenue,Redacted Personal Information,Redacted Personal Information
North East Lincolnshire Council,http://statistics.data.gov.uk/id/local-authority/00FC,People And Communities,Vulnerable Young People,Placement & Support,Other Agencies,Child Care Payments,PJ104,12/06/2012,86386,-27.00,Revenue,Redacted Personal Information,Redacted Personal Information
North East Lincolnshire Council,http://statistics.data.gov.uk/id/local-authority/00FC,People And Communities,Vulnerable Young People,Placement & Support,Other Agencies,Child Care Payments,PJ104,26/06/2012,90249,-25.07,Revenue,Redacted Personal Information,Redacted Personal Information
North East Lincolnshire Council,http://statistics.data.gov.uk/id/local-authority/00FC,People And Communities,Vulnerable Young People,Placement & Support,Other Agencies,Child Care Payments,PJ104,01/06/2012,85407,-25.00,Revenue,Redacted Personal Information,Redacted Personal Information
North East Lincolnshire Council,http://statistics.data.gov.uk/id/local-authority/00FC,People And Communities,Vulnerable Young People,Placement & Support,Other Agencies,Child Care Payments,PJ104,12/06/2012,86414,-25.00,Revenue,Redacted Personal Information,Redacted Personal Information
North East Lincolnshire Council,http://statistics.data.gov.uk/id/local-authority/00FC,People And Communities,Vulnerable Young People,Placement & Support,Other Agencies,Child Care Payments,PJ104,19/06/2012,88580,-25.00,Revenue,Redacted Personal Information,Redacted Personal Information
North East Lincolnshire Council,http://statistics.data.gov.uk/id/local-authority/00FC,People And Communities,Vulnerable Young People,Placement & Support,Other Agencies,Child Care Payments,PJ104,26/06/2012,90212,-25.00,Revenue,Redacted Personal Information,Redacted Personal Information
North East Lincolnshire Council,http://statistics.data.gov.uk/id/local-authority/00FC,People And Communities,Vulnerable Young People,Placement & Support,Communications And Computing,Telephones,LF112,25/06/2012,119531,-23.52,Revenue,VIRGIN MEDIA,107612
North East Lincolnshire Council,http://statistics.data.gov.uk/id/local-authority/00FC,People And Communities,Vulnerable Young People,Placement & Support,Other Agencies,Child Care Payments,PJ104,19/06/2012,88505,-21.14,Revenue,Redacted Personal Information,Redacted Personal Information
North East Lincolnshire Council,http://statistics.data.gov.uk/id/local-authority/00FC,People And Communities,Vulnerable Young People,Placement & Support,Other Agencies,Child Care Payments,PJ104,01/06/2012,85379,-20.14,Revenue,Redacted Personal Information,Redacted Personal Information
North East Lincolnshire Council,http://statistics.data.gov.uk/id/local-authority/00FC,People And Communities,Vulnerable Young People,Placement & Support,Other Agencies,Child Care Payments,PJ104,19/06/2012,88505,-18.43,Revenue,Redacted Personal Information,Redacted Personal Information
North East Lincolnshire Council,http://statistics.data.gov.uk/id/local-authority/00FC,People And Communities,Vulnerable Young People,Placement & Support,Other Agencies,Child Care Payments,PJ104,01/06/2012,85407,-16.71,Revenue,Redacted Personal Information,Redacted Personal Information
North East Lincolnshire Council,http://statistics.data.gov.uk/id/local-authority/00FC,People And Communities,Vulnerable Young People,Placement & Support,Other Agencies,Child Care Payments,PJ104,19/06/2012,88623,-13.00,Revenue,Redacted Personal Information,Redacted Personal Information
North East Lincolnshire Council,http://statistics.data.gov.uk/id/local-authority/00FC,People And Communities,Vulnerable Young People,Placement & Support,Other Agencies,Child Care Payments,PJ104,12/06/2012,86367,-10.57,Revenue,Redacted Personal Information,Redacted Personal Information
North East Lincolnshire Council,http://statistics.data.gov.uk/id/local-authority/00FC,People And Communities,Vulnerable Young People,Placement & Support,Other Agencies,Child Care Payments,PJ104,12/06/2012,86371,-10.57,Revenue,Redacted Personal Information,Redacted Personal Information
North East Lincolnshire Council,http://statistics.data.gov.uk/id/local-authority/00FC,People And Communities,Vulnerable Young People,Placement & Support,Other Agencies,Child Care Payments,PJ104,26/06/2012,90235,-10.36,Revenue,Redacted Personal Information,Redacted Personal Information
North East Lincolnshire Council,http://statistics.data.gov.uk/id/local-authority/00FC,People And Communities,Vulnerable Young People,Placement & Support,Other Agencies,Birthday,PJ110,12/06/2012,86364,-9.14,Revenue,Redacted Personal Information,Redacted Personal Information
North East Lincolnshire Council,http://statistics.data.gov.uk/id/local-authority/00FC,People And Communities,Vulnerable Young People,Placement & Support,Other Agencies,Child Care Payments,PJ104,26/06/2012,90249,-8.36,Revenue,Redacted Personal Information,Redacted Personal Information
North East Lincolnshire Council,http://statistics.data.gov.uk/id/local-authority/00FC,People And Communities,Vulnerable Young People,Placement & Support,Other Agencies,Child Care Payments,PJ104,01/06/2012,85379,-6.86,Revenue,Redacted Personal Information,Redacted Personal Information
North East Lincolnshire Council,http://statistics.data.gov.uk/id/local-authority/00FC,People And Communities,Vulnerable Young People,Placement & Support,Cleaning And Domestic Supplies,Cleaning - Services,GH102,20/06/2012,118345,-3.99,Revenue,OCS LIMITED,101291
North East Lincolnshire Council,http://statistics.data.gov.uk/id/local-authority/00FC,People And Communities,Vulnerable Young People,Placement & Support,Other Agencies,Child Care Payments,PJ104,01/06/2012,85323,-0.57,Revenue,Redacted Personal Information,Redacted Personal Information
North East Lincolnshire Council,http://statistics.data.gov.uk/id/local-authority/00FC,People And Communities,Vulnerable Young People,Placement & Support,Other Agencies,Additional Cost,PJ114,12/06/2012,86483,500.00,Revenue,Redacted Personal Information,Redacted Personal Information
North East Lincolnshire Council,http://statistics.data.gov.uk/id/local-authority/00FC,People And Communities,Vulnerable Young People,Placement & Support,Other Agencies,Setting Up,PJ111,26/06/2012,90248,580.00,Revenue,Redacted Personal Information,Redacted Personal Information
North East Lincolnshire Council,http://statistics.data.gov.uk/id/local-authority/00FC,People And Communities,Vulnerable Young People,Placement & Support,Other Agencies,Setting Up,PJ111,26/06/2012,90289,580.00,Revenue,Redacted Personal Information,Redacted Personal Information
North East Lincolnshire Council,http://statistics.data.gov.uk/id/local-authority/00FC,People And Communities,Vulnerable Young People,Placement & Support,Private Contractors,Third Party Prov - Private,PH101,15/06/2012,117629,617.00,Revenue,GRIMSBY & SCUNTHORPE MEDIA GROUP LTD,101827
North East Lincolnshire Council,http://statistics.data.gov.uk/id/local-authority/00FC,People And Communities,Vulnerable Young People,Placement & Support,Catering,Provisions,LB101,14/06/2012,117523,691.85,Revenue,PETTY CASH,Redacted Information
North East Lincolnshire Council,http://statistics.data.gov.uk/id/local-authority/00FC,People And Communities,Vulnerable Young People,Placement & Support,Other Agencies,Special Carer Payments,PJ128,01/06/2012,85330,704.54,Revenue,Redacted Personal Information,Redacted Personal Information
North East Lincolnshire Council,http://statistics.data.gov.uk/id/local-authority/00FC,People And Communities,Vulnerable Young People,Placement & Support,Other Agencies,Special Carer Payments,PJ128,01/06/2012,85344,704.54,Revenue,Redacted Personal Information,Redacted Personal Information
North East Lincolnshire Council,http://statistics.data.gov.uk/id/local-authority/00FC,People And Communities,Vulnerable Young People,Placement & Support,Other Agencies,Special Carer Payments,PJ128,01/06/2012,85360,704.54,Revenue,Redacted Personal Information,Redacted Personal Information
North East Lincolnshire Council,http://statistics.data.gov.uk/id/local-authority/00FC,People And Communities,Vulnerable Young People,Placement & Support,Other Agencies,Special Carer Payments,PJ128,01/06/2012,85361,704.54,Revenue,Redacted Personal Information,Redacted Personal Information
North East Lincolnshire Council,http://statistics.data.gov.uk/id/local-authority/00FC,People And Communities,Vulnerable Young People,Placement & Support,Other Agencies,Special Carer Payments,PJ128,01/06/2012,85364,704.54,Revenue,Redacted Personal Information,Redacted Personal Information
North East Lincolnshire Council,http://statistics.data.gov.uk/id/local-authority/00FC,People And Communities,Vulnerable Young People,Placement & Support,Other Agencies,Special Carer Payments,PJ128,12/06/2012,86349,704.54,Revenue,Redacted Personal Information,Redacted Personal Information
North East Lincolnshire Council,http://statistics.data.gov.uk/id/local-authority/00FC,People And Communities,Vulnerable Young People,Placement & Support,Other Agencies,Special Carer Payments,PJ128,12/06/2012,86366,704.54,Revenue,Redacted Personal Information,Redacted Personal Information
North East Lincolnshire Council,http://statistics.data.gov.uk/id/local-authority/00FC,People And Communities,Vulnerable Young People,Placement & Support,Other Agencies,Special Carer Payments,PJ128,12/06/2012,86367,704.54,Revenue,Redacted Personal Information,Redacted Personal Information
North East Lincolnshire Council,http://statistics.data.gov.uk/id/local-authority/00FC,People And Communities,Vulnerable Young People,Placement & Support,Other Agencies,Special Carer Payments,PJ128,12/06/2012,86371,704.54,Revenue,Redacted Personal Information,Redacted Personal Information
North East Lincolnshire Council,http://statistics.data.gov.uk/id/local-authority/00FC,People And Communities,Vulnerable Young People,Placement & Support,Other Agencies,Special Carer Payments,PJ128,12/06/2012,86334,704.54,Revenue,Redacted Personal Information,Redacted Personal Information
North East Lincolnshire Council,http://statistics.data.gov.uk/id/local-authority/00FC,People And Communities,Vulnerable Young People,Placement & Support,Other Agencies,Special Carer Payments,PJ128,19/06/2012,88504,704.54,Revenue,Redacted Personal Information,Redacted Personal Information
North East Lincolnshire Council,http://statistics.data.gov.uk/id/local-authority/00FC,People And Communities,Vulnerable Young People,Placement & Support,Other Agencies,Special Carer Payments,PJ128,19/06/2012,88518,704.54,Revenue,Redacted Personal Information,Redacted Personal Information
North East Lincolnshire Council,http://statistics.data.gov.uk/id/local-authority/00FC,People And Communities,Vulnerable Young People,Placement & Support,Other Agencies,Special Carer Payments,PJ128,19/06/2012,88534,704.54,Revenue,Redacted Personal Information,Redacted Personal Information
North East Lincolnshire Council,http://statistics.data.gov.uk/id/local-authority/00FC,People And Communities,Vulnerable Young People,Placement & Support,Other Agencies,Special Carer Payments,PJ128,19/06/2012,88535,704.54,Revenue,Redacted Personal Information,Redacted Personal Information
North East Lincolnshire Council,http://statistics.data.gov.uk/id/local-authority/00FC,People And Communities,Vulnerable Young People,Placement & Support,Other Agencies,Special Carer Payments,PJ128,19/06/2012,88538,704.54,Revenue,Redacted Personal Information,Redacted Personal Information
North East Lincolnshire Council,http://statistics.data.gov.uk/id/local-authority/00FC,People And Communities,Vulnerable Young People,Placement & Support,Other Agencies,Special Carer Payments,PJ128,26/06/2012,90134,704.54,Revenue,Redacted Personal Information,Redacted Personal Information
North East Lincolnshire Council,http://statistics.data.gov.uk/id/local-authority/00FC,People And Communities,Vulnerable Young People,Placement & Support,Other Agencies,Special Carer Payments,PJ128,26/06/2012,90149,704.54,Revenue,Redacted Personal Information,Redacted Personal Information
North East Lincolnshire Council,http://statistics.data.gov.uk/id/local-authority/00FC,People And Communities,Vulnerable Young People,Placement & Support,Other Agencies,Special Carer Payments,PJ128,26/06/2012,90166,704.54,Revenue,Redacted Personal Information,Redacted Personal Information
North East Lincolnshire Council,http://statistics.data.gov.uk/id/local-authority/00FC,People And Communities,Vulnerable Young People,Placement & Support,Other Agencies,Special Carer Payments,PJ128,26/06/2012,90167,704.54,Revenue,Redacted Personal Information,Redacted Personal Information
North East Lincolnshire Council,http://statistics.data.gov.uk/id/local-authority/00FC,People And Communities,Vulnerable Young People,Placement & Support,Other Agencies,Special Carer Payments,PJ128,26/06/2012,90170,704.54,Revenue,Redacted Personal Information,Redacted Personal Information
North East Lincolnshire Council,http://statistics.data.gov.uk/id/local-authority/00FC,People And Communities,Vulnerable Young People,Placement & Support,Private Contractors,Third Party Prov - Private,PH101,13/06/2012,117109,750.00,Revenue,FAMILIES FOR CHILDREN,109586
North East Lincolnshire Council,http://statistics.data.gov.uk/id/local-authority/00FC,People And Communities,Vulnerable Young People,Placement & Support,Other Agencies,Panel Expenses,PJ137,20/06/2012,117779,750.00,Revenue,Redacted Personal Information,Redacted Personal Information
North East Lincolnshire Council,http://statistics.data.gov.uk/id/local-authority/00FC,People And Communities,Vulnerable Young People,Placement & Support,Equip / Furniture / Materials,Equipment - Maintenance,LA104,26/06/2012,119759,800.00,Revenue,REGENT MOTORCROSS LTD,101953
North East Lincolnshire Council,http://statistics.data.gov.uk/id/local-authority/00FC,People And Communities,Vulnerable Young People,Placement & Support,Direct Employee Expenses,Agency Staff,EA105,12/06/2012,117034,834.70,Revenue,MATRIX SCM LTD,108117
North East Lincolnshire Council,http://statistics.data.gov.uk/id/local-authority/00FC,People And Communities,Vulnerable Young People,Placement & Support,Private Contractors,Third Party Prov - Private,PH101,21/06/2012,119103,"1,172.36",Revenue,SHORELINE HOUSING PARTNERSHIP LTD,100139
North East Lincolnshire Council,http://statistics.data.gov.uk/id/local-authority/00FC,People And Communities,Vulnerable Young People,Placement & Support,Miscellaneous Expenses,Other Expenses General,LL119,27/06/2012,120484,"1,188.18",Revenue,SHORELINE HOUSING PARTNERSHIP LTD,100139
North East Lincolnshire Council,http://statistics.data.gov.uk/id/local-authority/00FC,People And Communities,Vulnerable Young People,Placement & Support,Private Contractors,Third Party Prov - Private,PH101,21/06/2012,119104,"1,188.18",Revenue,SHORELINE HOUSING PARTNERSHIP LTD,100139
North East Lincolnshire Council,http://statistics.data.gov.uk/id/local-authority/00FC,People And Communities,Vulnerable Young People,Placement & Support,Private Contractors,Third Party Prov - Private,PH101,13/06/2012,117110,"1,314.00",Revenue,ACTION FOR CHILDREN SERVICES LTD,105607
North East Lincolnshire Council,http://statistics.data.gov.uk/id/local-authority/00FC,People And Communities,Vulnerable Young People,Placement & Support,Rep Alterations Maint Building,Buildings - Repairs And Maint,GA102,22/06/2012,119284,"1,602.00",Revenue,PORTLOCK PAINTING,101144
North East Lincolnshire Council,http://statistics.data.gov.uk/id/local-authority/00FC,People And Communities,Vulnerable Young People,Placement & Support,Private Contractors,Third Party Prov - Private,PH101,21/06/2012,117915,"3,595.20",Revenue,TREE HOUSE CARE FOSTERING SOLUTIONS LTD,101150
North East Lincolnshire Council,http://statistics.data.gov.uk/id/local-authority/00FC,People And Communities,Vulnerable Young People,Placement & Support,Equip / Furniture / Materials,Equipment - Purchase,LA101,19/06/2012,88889,"9,000.00",Revenue,Redacted Personal Information,Redacted Personal Information
North East Lincolnshire Council,http://statistics.data.gov.uk/id/local-authority/00FC,People And Communities,Vulnerable Young People,Placement & Support,Private Contractors,Third Party Prov - Private,PH101,21/06/2012,118008,"14,167.00",Revenue,ASPIREONE CARE LTD,110181
North East Lincolnshire Council,http://statistics.data.gov.uk/id/local-authority/00FC,People And Communities,Vulnerable Young People,Safeguarding,Other Agencies,Contact,PJ126,25/06/2012,120153,-37.92,Revenue,NYS CORPORATE,102444
North East Lincolnshire Council,http://statistics.data.gov.uk/id/local-authority/00FC,People And Communities,Vulnerable Young People,Safeguarding,Direct Transport Costs,Voluntary Drivers Expenses,JA107,21/06/2012,119274,715.66,Revenue,Redacted Personal Information,Redacted Personal Information
North East Lincolnshire Council,http://statistics.data.gov.uk/id/local-authority/00FC,People And Communities,Vulnerable Young People,Safeguarding,Direct Transport Costs,Voluntary Drivers Expenses,JA107,21/06/2012,119276,"1,153.62",Revenue,Redacted Personal Information,Redacted Personal Information
North East Lincolnshire Council,http://statistics.data.gov.uk/id/local-authority/00FC,People And Communities,Vulnerable Young People,Safeguarding,Miscellaneous Expenses,Legal Fees - General,LL103,19/06/2012,118312,"1,750.00",Revenue,MISS ALISON BALL,107964
North East Lincolnshire Council,http://statistics.data.gov.uk/id/local-authority/00FC,People And Communities,Vulnerable Young People,Through Care & Disability,Other Agencies,Personal Allowance,PJ122,13/06/2012,117243,860.00,Revenue,16+ SERVICES,100943
North East Lincolnshire Council,http://statistics.data.gov.uk/id/local-authority/00FC,People And Communities,Vulnerable Young People,Through Care & Disability,Private Contractors,Third Party Prov - Private,PH101,19/06/2012,88650,"1,169.60",Revenue,THE ROWAN ORGANISATION  (DIRECT PAYMENTS),109743
North East Lincolnshire Council,http://statistics.data.gov.uk/id/local-authority/00FC,People And Communities,Vulnerable Young People,Through Care & Disability,Private Contractors,Third Party Prov - Private,PH101,22/06/2012,119289,"1,957.85",Revenue,EAST MIDLANDS CROSSROADS,102400
North East Lincolnshire Council,http://statistics.data.gov.uk/id/local-authority/00FC,People And Communities,Vulnerable Young People,Through Care & Disability,Private Contractors,Third Party Prov - Private,PH101,07/06/2012,116255,"13,212.50",Revenue,HUMBERCARE LTD,100311
North East Lincolnshire Council,http://statistics.data.gov.uk/id/local-authority/00FC,People And Communities,Vulnerable Young People,Youth Offending Team,Miscellaneous Expenses,Other Supplies & Services,LL110,11/06/2012,116892,"5,870.00",Revenue,CACI LTD,110598
North East Lincolnshire Council,http://statistics.data.gov.uk/id/local-authority/00FC,People And Communities,Vulnerable Young People,Children'S Workforce Developme,Indirect Employee Expenses,Staff Training,EB122,20/06/2012,118450,625.00,Revenue,CARE-EX SERVICES LTD,104154
North East Lincolnshire Council,http://statistics.data.gov.uk/id/local-authority/00FC,People And Communities,Vulnerable Young People,Children'S Workforce Developme,Indirect Employee Expenses,Staff Training,EB122,20/06/2012,118023,811.00,Revenue,NORTH EAST LINCOLNSHIRE PRIMARY CARE TRUST,100337
North East Lincolnshire Council,http://statistics.data.gov.uk/id/local-authority/00FC,People And Communities,Vulnerable Young People,Children'S Workforce Developme,Indirect Employee Expenses,Staff Training,EB122,07/06/2012,85860,"1,250.00",Revenue,Redacted Personal Information,Redacted Personal Information
North East Lincolnshire Council,http://statistics.data.gov.uk/id/local-authority/00FC,People And Communities,Vulnerable Young People,Children'S Workforce Developme,Indirect Employee Expenses,Staff Training,EB122,07/06/2012,85861,"1,250.00",Revenue,Redacted Personal Information,Redacted Personal Information
North East Lincolnshire Council,http://statistics.data.gov.uk/id/local-authority/00FC,People And Communities,Vulnerable Young People,Children'S Workforce Developme,Indirect Employee Expenses,Staff Training,EB122,07/06/2012,85862,"1,250.00",Revenue,Redacted Personal Information,Redacted Personal Information
North East Lincolnshire Council,http://statistics.data.gov.uk/id/local-authority/00FC,People And Communities,Vulnerable Young People,Children'S Workforce Developme,Indirect Employee Expenses,Staff Training,EB122,21/06/2012,119160,"1,250.00",Revenue,Redacted Personal Information,Redacted Personal Information
North East Lincolnshire Council,http://statistics.data.gov.uk/id/local-authority/00FC,People And Communities,Vulnerable Young People,Children'S Workforce Developme,Indirect Employee Expenses,Staff Training,EB122,21/06/2012,89237,"1,250.00",Revenue,Redacted Personal Information,Redacted Personal Information
North East Lincolnshire Council,http://statistics.data.gov.uk/id/local-authority/00FC,People And Communities,Vulnerable Young People,Children'S Workforce Developme,Indirect Employee Expenses,Staff Training,EB122,21/06/2012,89236,"1,250.00",Revenue,Redacted Personal Information,Redacted Personal Information
North East Lincolnshire Council,http://statistics.data.gov.uk/id/local-authority/00FC,People And Communities,Vulnerable Young People,Children'S Workforce Developme,Indirect Employee Expenses,Staff Training,EB122,21/06/2012,118021,"9,000.00",Revenue,KIRKLEES COUNCIL,103455
North East Lincolnshire Council,http://statistics.data.gov.uk/id/local-authority/00FC,Resources,Commission & Information Sys,Head Commission & Info Systems,Consultancy,Consultancy,PL101,13/06/2012,117304,"15,200.80",Revenue,LEONIE COWEN ASSOCIATES SOLICITORS,109641
North East Lincolnshire Council,http://statistics.data.gov.uk/id/local-authority/00FC,Resources,Commission & Information Sys,Information Technology,Indirect Employee Expenses,Staff Training,EB122,07/06/2012,116284,-66.33,Revenue,NYS CORPORATE,102444
North East Lincolnshire Council,http://statistics.data.gov.uk/id/local-authority/00FC,Resources,Commission & Information Sys,Information Technology,Indirect Employee Expenses,Staff Training,EB122,13/06/2012,117375,-37.92,Revenue,NYS CORPORATE,102444
North East Lincolnshire Council,http://statistics.data.gov.uk/id/local-authority/00FC,Resources,Commission & Information Sys,Information Technology,Communications And Computing,Telephones,LF112,27/06/2012,114330,-13.68,Revenue,VODAFONE LIMITED,101324
North East Lincolnshire Council,http://statistics.data.gov.uk/id/local-authority/00FC,Resources,Commission & Information Sys,Information Technology,Print Stationery / Gen Off Exp,Printing And Stationery,LD103,06/06/2012,116032,530.16,Revenue,UNITED CARLTON OFFICE SYSTEMS LTD,101652
North East Lincolnshire Council,http://statistics.data.gov.uk/id/local-authority/00FC,Resources,Commission & Information Sys,Information Technology,Print Stationery / Gen Off Exp,Photocopier - Running Costs,LD102,08/06/2012,115727,551.85,Revenue,UNITED CARLTON OFFICE SYSTEMS LTD,101652
North East Lincolnshire Council,http://statistics.data.gov.uk/id/local-authority/00FC,Resources,Commission & Information Sys,Information Technology,Print Stationery / Gen Off Exp,Printing And Stationery,LD103,08/06/2012,116091,557.87,Revenue,UNITED CARLTON OFFICE SYSTEMS LTD,101652
North East Lincolnshire Council,http://statistics.data.gov.uk/id/local-authority/00FC,Resources,Commission & Information Sys,Information Technology,Indirect Employee Expenses,Staff Training,EB122,13/06/2012,117248,574.92,Revenue,NYS CORPORATE,102444
North East Lincolnshire Council,http://statistics.data.gov.uk/id/local-authority/00FC,Resources,Commission & Information Sys,Information Technology,Print Stationery / Gen Off Exp,Printing And Stationery,LD103,08/06/2012,116039,638.04,Revenue,UNITED CARLTON OFFICE SYSTEMS LTD,101652
North East Lincolnshire Council,http://statistics.data.gov.uk/id/local-authority/00FC,Resources,Commission & Information Sys,Information Technology,Communications And Computing,Computer S/Ware - Purchases,LF101,26/06/2012,117561,660.00,Revenue,ALIGNED ASSETS LTD,101581
North East Lincolnshire Council,http://statistics.data.gov.uk/id/local-authority/00FC,Resources,Commission & Information Sys,Information Technology,Print Stationery / Gen Off Exp,Photocopier - Running Costs,LD102,08/06/2012,115738,665.62,Revenue,UNITED CARLTON OFFICE SYSTEMS LTD,101652
North East Lincolnshire Council,http://statistics.data.gov.uk/id/local-authority/00FC,Resources,Commission & Information Sys,Information Technology,Print Stationery / Gen Off Exp,Printing And Stationery,LD103,06/06/2012,116033,673.63,Revenue,UNITED CARLTON OFFICE SYSTEMS LTD,101652
North East Lincolnshire Council,http://statistics.data.gov.uk/id/local-authority/00FC,Resources,Commission & Information Sys,Information Technology,Print Stationery / Gen Off Exp,Printing And Stationery,LD103,08/06/2012,116067,701.76,Revenue,UNITED CARLTON OFFICE SYSTEMS LTD,101652
North East Lincolnshire Council,http://statistics.data.gov.uk/id/local-authority/00FC,Resources,Commission & Information Sys,Information Technology,Print Stationery / Gen Off Exp,Printing And Stationery,LD103,06/06/2012,116030,713.64,Revenue,UNITED CARLTON OFFICE SYSTEMS LTD,101652
North East Lincolnshire Council,http://statistics.data.gov.uk/id/local-authority/00FC,Resources,Commission & Information Sys,Information Technology,Print Stationery / Gen Off Exp,Printing And Stationery,LD103,06/06/2012,116038,801.82,Revenue,UNITED CARLTON OFFICE SYSTEMS LTD,101652
North East Lincolnshire Council,http://statistics.data.gov.uk/id/local-authority/00FC,Resources,Commission & Information Sys,Information Technology,Print Stationery / Gen Off Exp,Photocopier - Running Costs,LD102,08/06/2012,115749,840.76,Revenue,UNITED CARLTON OFFICE SYSTEMS LTD,101652
North East Lincolnshire Council,http://statistics.data.gov.uk/id/local-authority/00FC,Resources,Commission & Information Sys,Information Technology,Print Stationery / Gen Off Exp,Photocopier - Running Costs,LD102,26/06/2012,117323,881.06,Revenue,UNITED CARLTON OFFICE SYSTEMS LTD,101652
North East Lincolnshire Council,http://statistics.data.gov.uk/id/local-authority/00FC,Resources,Commission & Information Sys,Information Technology,Communications And Computing,Computer S/Ware - Maintenance,LF102,19/06/2012,118444,950.00,Revenue,TRUSTMARQUE SOLUTIONS LTD,101275
North East Lincolnshire Council,http://statistics.data.gov.uk/id/local-authority/00FC,Resources,Commission & Information Sys,Information Technology,Communications And Computing,Computer H/Ware - Purchases,LF105,27/06/2012,120590,999.00,Revenue,CABLE & WIRELESS,103661
North East Lincolnshire Council,http://statistics.data.gov.uk/id/local-authority/00FC,Resources,Commission & Information Sys,Information Technology,Direct Employee Expenses,Agency Staff,EA105,15/06/2012,117619,"1,026.72",Revenue,BADENOCH & CLARK,101427
North East Lincolnshire Council,http://statistics.data.gov.uk/id/local-authority/00FC,Resources,Commission & Information Sys,Information Technology,Direct Employee Expenses,Agency Staff,EA105,08/06/2012,115252,"1,026.72",Revenue,BADENOCH & CLARK,101427
North East Lincolnshire Council,http://statistics.data.gov.uk/id/local-authority/00FC,Resources,Commission & Information Sys,Information Technology,Direct Employee Expenses,Agency Staff,EA105,08/06/2012,115251,"1,041.60",Revenue,BADENOCH & CLARK,101427
North East Lincolnshire Council,http://statistics.data.gov.uk/id/local-authority/00FC,Resources,Commission & Information Sys,Information Technology,Direct Employee Expenses,Agency Staff,EA105,08/06/2012,115250,"1,041.60",Revenue,BADENOCH & CLARK,101427
North East Lincolnshire Council,http://statistics.data.gov.uk/id/local-authority/00FC,Resources,Commission & Information Sys,Information Technology,Communications And Computing,Computer H/Ware - Maintenance,LF106,27/06/2012,120044,"1,299.50",Revenue,IMERJA LTD,102238
North East Lincolnshire Council,http://statistics.data.gov.uk/id/local-authority/00FC,Resources,Commission & Information Sys,Information Technology,Print Stationery / Gen Off Exp,Photocopier - Running Costs,LD102,08/06/2012,115759,"1,578.27",Revenue,UNITED CARLTON OFFICE SYSTEMS LTD,101652
North East Lincolnshire Council,http://statistics.data.gov.uk/id/local-authority/00FC,Resources,Commission & Information Sys,Information Technology,Communications And Computing,Computer H/Ware - Purchases,LF105,26/06/2012,120214,"2,789.00",Revenue,SAFE CONTROL LTD,100989
North East Lincolnshire Council,http://statistics.data.gov.uk/id/local-authority/00FC,Resources,Commission & Information Sys,Information Technology,Communications And Computing,Computer S/Ware - Maintenance,LF102,08/06/2012,115721,"7,648.00",Revenue,SYMANTEC LTD,106501
North East Lincolnshire Council,http://statistics.data.gov.uk/id/local-authority/00FC,Resources,Commission & Information Sys,Information Technology,Communications And Computing,Telephones,LF112,20/06/2012,113449,"12,784.14",Revenue,VODAFONE LIMITED,101324
North East Lincolnshire Council,http://statistics.data.gov.uk/id/local-authority/00FC,Resources,Commission & Information Sys,Information Technology,Communications And Computing,Computer S/Ware - Purchases,LF101,29/06/2012,120043,"40,595.06",Revenue,IMERJA LTD,102238
North East Lincolnshire Council,http://statistics.data.gov.uk/id/local-authority/00FC,Resources,Commission & Information Sys,Communications And Marketing,Private Contractors,Third Party Prov - Private,PH101,29/06/2012,121034,633.00,Revenue,GSB PRINT & DESIGN LTD,101553
North East Lincolnshire Council,http://statistics.data.gov.uk/id/local-authority/00FC,Resources,Commission & Information Sys,Communications And Marketing,Private Contractors,Third Party Prov - Private,PH101,15/06/2012,116699,"1,420.00",Revenue,SYSTEMATIC PRINT MANAGEMENT LTD,104330
North East Lincolnshire Council,http://statistics.data.gov.uk/id/local-authority/00FC,Resources,Commission & Information Sys,Communications And Marketing,Private Contractors,Third Party Prov - Private,PH101,15/06/2012,117632,"1,600.00",Revenue,AR PRINTING LTD,100596
North East Lincolnshire Council,http://statistics.data.gov.uk/id/local-authority/00FC,Resources,Commission & Information Sys,Communications And Marketing,Print Stationery / Gen Off Exp,Photocopier - Running Costs,LD102,27/06/2012,120394,"3,004.83",Revenue,XEROX FINANCE,100572
North East Lincolnshire Council,http://statistics.data.gov.uk/id/local-authority/00FC,Resources,Commission & Information Sys,Communications And Marketing,Private Contractors,Third Party Prov - Private,PH101,12/06/2012,116735,"5,920.00",Revenue,AR PRINTING LTD,100596
North East Lincolnshire Council,http://statistics.data.gov.uk/id/local-authority/00FC,Resources,Finance & Assets,Accountancy,Direct Employee Expenses,Agency Staff,EA105,12/06/2012,117034,-127.50,Revenue,MATRIX SCM LTD,108117
North East Lincolnshire Council,http://statistics.data.gov.uk/id/local-authority/00FC,Resources,Finance & Assets,Accountancy,Equip / Furniture / Materials,Books,LA121,27/06/2012,120453,516.00,Revenue,CIPFA BUSINESS LIMITED,102338
North East Lincolnshire Council,http://statistics.data.gov.uk/id/local-authority/00FC,Resources,Finance & Assets,Accountancy,Equip / Furniture / Materials,Books,LA121,27/06/2012,120446,695.00,Revenue,CIPFA BUSINESS LIMITED,102338
North East Lincolnshire Council,http://statistics.data.gov.uk/id/local-authority/00FC,Resources,Finance & Assets,Accountancy,Print Stationery / Gen Off Exp,Printing And Stationery,LD103,19/06/2012,118045,834.50,Revenue,PULSTAR DATAPRINT LTD,108027
North East Lincolnshire Council,http://statistics.data.gov.uk/id/local-authority/00FC,Resources,Finance & Assets,Accountancy,Direct Employee Expenses,Agency Staff,EA105,13/06/2012,116838,"1,156.44",Revenue,BADENOCH & CLARK,101427
North East Lincolnshire Council,http://statistics.data.gov.uk/id/local-authority/00FC,Resources,Finance & Assets,Accountancy,Direct Employee Expenses,Agency Staff,EA105,29/06/2012,118452,"1,257.00",Revenue,BADENOCH & CLARK,101427
North East Lincolnshire Council,http://statistics.data.gov.uk/id/local-authority/00FC,Resources,Finance & Assets,Accountancy,Direct Employee Expenses,Agency Staff,EA105,12/06/2012,116825,"1,273.76",Revenue,BADENOCH & CLARK,101427
North East Lincolnshire Council,http://statistics.data.gov.uk/id/local-authority/00FC,Resources,Finance & Assets,Accountancy,Grants And Subscriptions,Subscriptions,LJ101,26/06/2012,120173,"1,300.00",Revenue,CIPFA BUSINESS LIMITED,102338
North East Lincolnshire Council,http://statistics.data.gov.uk/id/local-authority/00FC,Resources,Finance & Assets,Accountancy,Direct Employee Expenses,Agency Staff,EA105,18/06/2012,117536,"1,374.32",Revenue,BADENOCH & CLARK,101427
North East Lincolnshire Council,http://statistics.data.gov.uk/id/local-authority/00FC,Resources,Finance & Assets,Accountancy,Grants And Subscriptions,Subscriptions,LJ101,27/06/2012,120447,"3,300.00",Revenue,CIPFA BUSINESS LIMITED,102338
North East Lincolnshire Council,http://statistics.data.gov.uk/id/local-authority/00FC,Resources,Finance & Assets,Accountancy,Grants And Subscriptions,Subscriptions,LJ101,27/06/2012,120445,"3,465.00",Revenue,CIPFA BUSINESS LIMITED,102338
North East Lincolnshire Council,http://statistics.data.gov.uk/id/local-authority/00FC,Resources,Finance & Assets,Accountancy,Grants And Subscriptions,Subscriptions,LJ101,27/06/2012,120444,"6,125.00",Revenue,CIPFA BUSINESS LIMITED,102338
North East Lincolnshire Council,http://statistics.data.gov.uk/id/local-authority/00FC,Resources,Finance & Assets,Chief Finance Officer,Direct Employee Expenses,Agency Staff,EA105,21/06/2012,119148,"9,300.00",Revenue,ANGIE RIDGEWELL ASSOCIATES LTD,110200
North East Lincolnshire Council,http://statistics.data.gov.uk/id/local-authority/00FC,Resources,Finance & Assets,Chief Finance Officer,Direct Employee Expenses,Agency Staff,EA105,06/06/2012,116117,"10,240.00",Revenue,ANGIE RIDGEWELL ASSOCIATES LTD,110200
North East Lincolnshire Council,http://statistics.data.gov.uk/id/local-authority/00FC,Resources,Finance & Assets,Income & Payments Service,Grants And Subscriptions,Subscriptions,LJ101,26/06/2012,120173,600.00,Revenue,CIPFA BUSINESS LIMITED,102338
North East Lincolnshire Council,http://statistics.data.gov.uk/id/local-authority/00FC,Resources,Finance & Assets,Income & Payments Service,Grants And Subscriptions,Subscriptions,LJ101,26/06/2012,120173,600.00,Revenue,CIPFA BUSINESS LIMITED,102338
North East Lincolnshire Council,http://statistics.data.gov.uk/id/local-authority/00FC,Resources,Finance & Assets,Income & Payments Service,Grants And Subscriptions,Subscriptions,LJ101,26/06/2012,120173,600.00,Revenue,CIPFA BUSINESS LIMITED,102338
North East Lincolnshire Council,http://statistics.data.gov.uk/id/local-authority/00FC,Resources,Finance & Assets,Income & Payments Service,Communications And Computing,Computer S/Ware - Maintenance,LF102,28/06/2012,120947,696.41,Revenue,NORTHGATE INFORMATION SOLUTIONS UK LTD,101841
North East Lincolnshire Council,http://statistics.data.gov.uk/id/local-authority/00FC,Resources,Finance & Assets,Income & Payments Service,Miscellaneous Expenses,Debt Recovery Costs,LL111,21/06/2012,118561,970.00,Revenue,WILKIN CHAPMAN GRANGE,110446
North East Lincolnshire Council,http://statistics.data.gov.uk/id/local-authority/00FC,Resources,Finance & Assets,Income & Payments Service,Miscellaneous Expenses,Debt Recovery Costs,LL111,20/06/2012,118855,"1,001.16",Revenue,WILKIN CHAPMAN SOLICITORS,100948
North East Lincolnshire Council,http://statistics.data.gov.uk/id/local-authority/00FC,Resources,Finance & Assets,Income & Payments Service,Communications And Computing,Computer S/Ware - Maintenance,LF102,13/06/2012,117033,"2,814.14",Revenue,NORTHGATE INFORMATION SOLUTIONS UK LTD,101841
North East Lincolnshire Council,http://statistics.data.gov.uk/id/local-authority/00FC,Resources,Finance & Assets,Cfs Assets & Pc Programme,Print Stationery / Gen Off Exp,Advertising,LD104,20/06/2012,118358,600.00,Revenue,SCOTTS PROPERTY LLP,103513
North East Lincolnshire Council,http://statistics.data.gov.uk/id/local-authority/00FC,Resources,Finance & Assets,Cfs Assets & Pc Programme,Rep Alterations Maint Building,Buildings - Repairs And Maint,GA102,21/06/2012,118036,"2,960.00",Revenue,ETON-LINCS LIMITED,101510
North East Lincolnshire Council,http://statistics.data.gov.uk/id/local-authority/00FC,Resources,Finance & Assets,Cfs Assets & Pc Programme,Rep Alterations Maint Building,Client Funded R & M Work,GA123,20/06/2012,118817,Redacted Commercially Sensitive,Revenue,BALFOUR BEATTY,102595
North East Lincolnshire Council,http://statistics.data.gov.uk/id/local-authority/00FC,Resources,Finance & Assets,Cfs Assets & Pc Programme,Miscellaneous Expenses,Other Expenses General,LL119,29/06/2012,121380,"67,000.00",Revenue,NORTH EAST LINCOLNSHIRE CARE TRUST PLUS,110801
North East Lincolnshire Council,http://statistics.data.gov.uk/id/local-authority/00FC,Resources,Finance & Assets,Facilities Management,Cleaning And Domestic Supplies,Cleaning - Services,GH102,20/06/2012,118355,"-5,061.44",Revenue,FUTURE CLEANING SERVICES LTD,102557
North East Lincolnshire Council,http://statistics.data.gov.uk/id/local-authority/00FC,Resources,Finance & Assets,Facilities Management,Cleaning And Domestic Supplies,Cleaning - Services,GH102,20/06/2012,118354,"-1,322.87",Revenue,FUTURE CLEANING SERVICES LTD,102557
North East Lincolnshire Council,http://statistics.data.gov.uk/id/local-authority/00FC,Resources,Finance & Assets,Facilities Management,Cleaning And Domestic Supplies,Refuse Collection,GH104,08/06/2012,116506,-116.35,Revenue,BELL WASTE CONTROL,101433
North East Lincolnshire Council,http://statistics.data.gov.uk/id/local-authority/00FC,Resources,Finance & Assets,Facilities Management,Cleaning And Domestic Supplies,Cleaning - Window Cleaning,GH101,20/06/2012,118354,-28.15,Revenue,FUTURE CLEANING SERVICES LTD,102557
North East Lincolnshire Council,http://statistics.data.gov.uk/id/local-authority/00FC,Resources,Finance & Assets,Facilities Management,Cleaning And Domestic Supplies,Cleaning - Services,GH102,20/06/2012,118345,-3.99,Revenue,OCS LIMITED,101291
North East Lincolnshire Council,http://statistics.data.gov.uk/id/local-authority/00FC,Resources,Finance & Assets,Facilities Management,Water Services,Water,GE101,20/06/2012,118304,653.50,Revenue,ANGLIAN WATER,100508
North East Lincolnshire Council,http://statistics.data.gov.uk/id/local-authority/00FC,Resources,Finance & Assets,Facilities Management,Rates,Rates,GD101,06/06/2012,115941,686.25,Revenue,NORTH EAST LINCOLNSHIRE COUNCIL,100894
North East Lincolnshire Council,http://statistics.data.gov.uk/id/local-authority/00FC,Resources,Finance & Assets,Facilities Management,Rates,Rates,GD101,11/06/2012,116631,945.00,Revenue,NORTH EAST LINCOLNSHIRE COUNCIL,100894
North East Lincolnshire Council,http://statistics.data.gov.uk/id/local-authority/00FC,Resources,Finance & Assets,Facilities Management,Energy Costs,Heating Fuel,GB103,18/06/2012,118193,"1,064.99",Revenue,WATSON PETROLEUM LTD,101348
North East Lincolnshire Council,http://statistics.data.gov.uk/id/local-authority/00FC,Resources,Finance & Assets,Facilities Management,Rents,Rent,GC101,22/06/2012,119752,"1,137.50",Revenue,SHORELINE HOUSING PARTNERSHIP LTD,100139
North East Lincolnshire Council,http://statistics.data.gov.uk/id/local-authority/00FC,Resources,Finance & Assets,Facilities Management,Rates,Rates,GD101,06/06/2012,116003,"1,260.00",Revenue,NORTH EAST LINCOLNSHIRE COUNCIL,100894
North East Lincolnshire Council,http://statistics.data.gov.uk/id/local-authority/00FC,Resources,Finance & Assets,Facilities Management,Rates,Rates,GD101,11/06/2012,116629,"1,260.00",Revenue,NORTH EAST LINCOLNSHIRE COUNCIL,100894
North East Lincolnshire Council,http://statistics.data.gov.uk/id/local-authority/00FC,Resources,Finance & Assets,Facilities Management,Print Stationery / Gen Off Exp,Advertising,LD104,20/06/2012,118056,"1,300.00",Revenue,SCOTTS PROPERTY LLP,103513
North East Lincolnshire Council,http://statistics.data.gov.uk/id/local-authority/00FC,Resources,Finance & Assets,Facilities Management,Energy Costs,Heating Fuel,GB103,12/06/2012,116524,"1,306.06",Revenue,WATSON PETROLEUM LTD,101348
North East Lincolnshire Council,http://statistics.data.gov.uk/id/local-authority/00FC,Resources,Finance & Assets,Facilities Management,Rates,Rates,GD101,06/06/2012,116019,"1,575.00",Revenue,NORTH EAST LINCOLNSHIRE COUNCIL,100894
North East Lincolnshire Council,http://statistics.data.gov.uk/id/local-authority/00FC,Resources,Finance & Assets,Facilities Management,Rates,Rates,GD101,11/06/2012,116628,"1,980.00",Revenue,NORTH EAST LINCOLNSHIRE COUNCIL,100894
North East Lincolnshire Council,http://statistics.data.gov.uk/id/local-authority/00FC,Resources,Finance & Assets,Facilities Management,Rates,Rates,GD101,11/06/2012,116624,"2,115.00",Revenue,NORTH EAST LINCOLNSHIRE COUNCIL,100894
North East Lincolnshire Council,http://statistics.data.gov.uk/id/local-authority/00FC,Resources,Finance & Assets,Facilities Management,Rates,Rates,GD101,07/06/2012,115984,"2,182.50",Revenue,NORTH EAST LINCOLNSHIRE COUNCIL,100894
North East Lincolnshire Council,http://statistics.data.gov.uk/id/local-authority/00FC,Resources,Finance & Assets,Facilities Management,Rates,Rates,GD101,11/06/2012,116625,"2,227.50",Revenue,NORTH EAST LINCOLNSHIRE COUNCIL,100894
North East Lincolnshire Council,http://statistics.data.gov.uk/id/local-authority/00FC,Resources,Finance & Assets,Facilities Management,Rates,Rates,GD101,06/06/2012,115956,"2,250.00",Revenue,NORTH EAST LINCOLNSHIRE COUNCIL,100894
North East Lincolnshire Council,http://statistics.data.gov.uk/id/local-authority/00FC,Resources,Finance & Assets,Facilities Management,Rates,Rates,GD101,13/06/2012,116626,"2,520.00",Revenue,NORTH EAST LINCOLNSHIRE COUNCIL,100894
North East Lincolnshire Council,http://statistics.data.gov.uk/id/local-authority/00FC,Resources,Finance & Assets,Facilities Management,Cleaning And Domestic Supplies,Cleaning - Services,GH102,08/06/2012,116495,"2,608.41",Revenue,OCS LIMITED,101291
North East Lincolnshire Council,http://statistics.data.gov.uk/id/local-authority/00FC,Resources,Finance & Assets,Facilities Management,Rates,Rates,GD101,11/06/2012,116622,"2,610.00",Revenue,NORTH EAST LINCOLNSHIRE COUNCIL,100894
North East Lincolnshire Council,http://statistics.data.gov.uk/id/local-authority/00FC,Resources,Finance & Assets,Facilities Management,Rates,Rates,GD101,06/06/2012,115968,"2,790.00",Revenue,NORTH EAST LINCOLNSHIRE COUNCIL,100894
North East Lincolnshire Council,http://statistics.data.gov.uk/id/local-authority/00FC,Resources,Finance & Assets,Facilities Management,Rates,Rates,GD101,25/06/2012,119538,"3,105.00",Revenue,NORTH EAST LINCOLNSHIRE COUNCIL,100894
North East Lincolnshire Council,http://statistics.data.gov.uk/id/local-authority/00FC,Resources,Finance & Assets,Facilities Management,Rates,Rates,GD101,14/06/2012,117279,"3,195.00",Revenue,NORTH EAST LINCOLNSHIRE COUNCIL,100894
North East Lincolnshire Council,http://statistics.data.gov.uk/id/local-authority/00FC,Resources,Finance & Assets,Facilities Management,Rates,Rates,GD101,22/06/2012,119540,"3,195.00",Revenue,NORTH EAST LINCOLNSHIRE COUNCIL,100894
North East Lincolnshire Council,http://statistics.data.gov.uk/id/local-authority/00FC,Resources,Finance & Assets,Facilities Management,Rates,Rates,GD101,22/06/2012,119535,"3,375.00",Revenue,NORTH EAST LINCOLNSHIRE COUNCIL,100894
North East Lincolnshire Council,http://statistics.data.gov.uk/id/local-authority/00FC,Resources,Finance & Assets,Facilities Management,Rates,Rates,GD101,25/06/2012,119541,"3,870.00",Revenue,NORTH EAST LINCOLNSHIRE COUNCIL,100894
North East Lincolnshire Council,http://statistics.data.gov.uk/id/local-authority/00FC,Resources,Finance & Assets,Facilities Management,Rates,Rates,GD101,14/06/2012,117276,"3,915.00",Revenue,NORTH EAST LINCOLNSHIRE COUNCIL,100894
North East Lincolnshire Council,http://statistics.data.gov.uk/id/local-authority/00FC,Resources,Finance & Assets,Facilities Management,Rates,Rates,GD101,14/06/2012,117280,"4,050.00",Revenue,NORTH EAST LINCOLNSHIRE COUNCIL,100894
North East Lincolnshire Council,http://statistics.data.gov.uk/id/local-authority/00FC,Resources,Finance & Assets,Facilities Management,Rates,Rates,GD101,14/06/2012,117278,"4,050.00",Revenue,NORTH EAST LINCOLNSHIRE COUNCIL,100894
North East Lincolnshire Council,http://statistics.data.gov.uk/id/local-authority/00FC,Resources,Finance & Assets,Facilities Management,Rates,Rates,GD101,14/06/2012,117282,"4,230.00",Revenue,NORTH EAST LINCOLNSHIRE COUNCIL,100894
North East Lincolnshire Council,http://statistics.data.gov.uk/id/local-authority/00FC,Resources,Finance & Assets,Facilities Management,Rates,Rates,GD101,14/06/2012,117285,"4,275.00",Revenue,NORTH EAST LINCOLNSHIRE COUNCIL,100894
North East Lincolnshire Council,http://statistics.data.gov.uk/id/local-authority/00FC,Resources,Finance & Assets,Facilities Management,Rates,Rates,GD101,25/06/2012,119533,"4,725.00",Revenue,NORTH EAST LINCOLNSHIRE COUNCIL,100894
North East Lincolnshire Council,http://statistics.data.gov.uk/id/local-authority/00FC,Resources,Finance & Assets,Facilities Management,Water Services,Water,GE101,22/06/2012,119676,"4,791.72",Revenue,ANGLIAN WATER,100508
North East Lincolnshire Council,http://statistics.data.gov.uk/id/local-authority/00FC,Resources,Finance & Assets,Facilities Management,Cleaning And Domestic Supplies,Cleaning - Services,GH102,28/06/2012,120948,"4,942.14",Revenue,FUTURE CLEANING SERVICES LTD,102557
North East Lincolnshire Council,http://statistics.data.gov.uk/id/local-authority/00FC,Resources,Finance & Assets,Facilities Management,Cleaning And Domestic Supplies,Cleaning - Services,GH102,08/06/2012,116505,"5,061.44",Revenue,FUTURE CLEANING SERVICES LTD,102557
North East Lincolnshire Council,http://statistics.data.gov.uk/id/local-authority/00FC,Resources,Finance & Assets,Facilities Management,Rates,Rates,GD101,13/06/2012,117313,"5,737.50",Revenue,NORTH EAST LINCOLNSHIRE COUNCIL,100894
North East Lincolnshire Council,http://statistics.data.gov.uk/id/local-authority/00FC,Resources,Finance & Assets,Facilities Management,Rates,Rates,GD101,14/06/2012,117281,"6,300.00",Revenue,NORTH EAST LINCOLNSHIRE COUNCIL,100894
North East Lincolnshire Council,http://statistics.data.gov.uk/id/local-authority/00FC,Resources,Finance & Assets,Facilities Management,Rates,Rates,GD101,13/06/2012,117265,"6,510.63",Revenue,NORTH EAST LINCOLNSHIRE COUNCIL,100894
North East Lincolnshire Council,http://statistics.data.gov.uk/id/local-authority/00FC,Resources,Finance & Assets,Facilities Management,Rates,Rates,GD101,06/06/2012,115970,"6,637.50",Revenue,NORTH EAST LINCOLNSHIRE COUNCIL,100894
North East Lincolnshire Council,http://statistics.data.gov.uk/id/local-authority/00FC,Resources,Finance & Assets,Facilities Management,Rates,Rates,GD101,06/06/2012,115972,"7,087.50",Revenue,NORTH EAST LINCOLNSHIRE COUNCIL,100894
North East Lincolnshire Council,http://statistics.data.gov.uk/id/local-authority/00FC,Resources,Finance & Assets,Facilities Management,Rates,Rates,GD101,25/06/2012,119537,"7,812.76",Revenue,NORTH EAST LINCOLNSHIRE COUNCIL,100894
North East Lincolnshire Council,http://statistics.data.gov.uk/id/local-authority/00FC,Resources,Finance & Assets,Facilities Management,Rates,Rates,GD101,25/06/2012,119539,"8,358.50",Revenue,NORTH EAST LINCOLNSHIRE COUNCIL,100894
North East Lincolnshire Council,http://statistics.data.gov.uk/id/local-authority/00FC,Resources,Finance & Assets,Facilities Management,Rents,Rent,GC101,20/06/2012,118077,"8,730.00",Revenue,IMMINGHAM TOWN COUNCIL,101597
North East Lincolnshire Council,http://statistics.data.gov.uk/id/local-authority/00FC,Resources,Finance & Assets,Facilities Management,Rates,Rates,GD101,14/06/2012,117284,"8,816.50",Revenue,NORTH EAST LINCOLNSHIRE COUNCIL,100894
North East Lincolnshire Council,http://statistics.data.gov.uk/id/local-authority/00FC,Resources,Finance & Assets,Facilities Management,Rates,Rates,GD101,22/06/2012,119536,"10,879.50",Revenue,NORTH EAST LINCOLNSHIRE COUNCIL,100894
North East Lincolnshire Council,http://statistics.data.gov.uk/id/local-authority/00FC,Resources,Finance & Assets,Facilities Management,Rates,Rates,GD101,06/06/2012,115969,"14,312.50",Revenue,NORTH EAST LINCOLNSHIRE COUNCIL,100894
North East Lincolnshire Council,http://statistics.data.gov.uk/id/local-authority/00FC,Resources,Finance & Assets,Facilities Management,Rates,Rates,GD101,22/06/2012,119566,"14,885.00",Revenue,NORTH EAST LINCOLNSHIRE COUNCIL,100894
North East Lincolnshire Council,http://statistics.data.gov.uk/id/local-authority/00FC,Resources,Finance & Assets,Facilities Management,Rates,Rates,GD101,22/06/2012,119534,"19,465.00",Revenue,NORTH EAST LINCOLNSHIRE COUNCIL,100894
North East Lincolnshire Council,http://statistics.data.gov.uk/id/local-authority/00FC,Resources,Finance & Assets,Valuation & Consultancy,Water Services,Water,GE101,25/06/2012,119728,-37.83,Revenue,THE UTILITY WAREHOUSE DISCOUNT CLUB,105122
North East Lincolnshire Council,http://statistics.data.gov.uk/id/local-authority/00FC,Resources,Finance & Assets,Valuation & Consultancy,Miscellaneous Expenses,Other Expenses General,LL119,28/06/2012,120902,615.00,Revenue,BEACON HILL ALLOTMENT AND LEISURE,110786
North East Lincolnshire Council,http://statistics.data.gov.uk/id/local-authority/00FC,Resources,Finance & Assets,Valuation & Consultancy,Cleaning And Domestic Supplies,Refuse Collection,GH104,20/06/2012,118311,666.02,Revenue,VEOLIA ES CLEANAWAY (UK) LTD,101783
North East Lincolnshire Council,http://statistics.data.gov.uk/id/local-authority/00FC,Resources,Finance & Assets,Valuation & Consultancy,Energy Costs,Gas,GB101,06/06/2012,115905,697.20,Revenue,NPOWER LIMITED,101414
North East Lincolnshire Council,http://statistics.data.gov.uk/id/local-authority/00FC,Resources,Finance & Assets,Valuation & Consultancy,Cleaning And Domestic Supplies,Refuse Collection,GH104,19/06/2012,118317,731.76,Revenue,VEOLIA ES CLEANAWAY (UK) LTD,101783
North East Lincolnshire Council,http://statistics.data.gov.uk/id/local-authority/00FC,Resources,Finance & Assets,Valuation & Consultancy,Grounds Maintenance Costs,Grounds Maintenance,GJ101,22/06/2012,119661,880.00,Revenue,NEWBY LEISURE LTD,101227
North East Lincolnshire Council,http://statistics.data.gov.uk/id/local-authority/00FC,Resources,Finance & Assets,Valuation & Consultancy,Rates,Rates,GD101,06/06/2012,115973,"1,068.75",Revenue,NORTH EAST LINCOLNSHIRE COUNCIL,100894
North East Lincolnshire Council,http://statistics.data.gov.uk/id/local-authority/00FC,Resources,Finance & Assets,Valuation & Consultancy,Rates,Rates,GD101,11/06/2012,116623,"1,190.80",Revenue,NORTH EAST LINCOLNSHIRE COUNCIL,100894
North East Lincolnshire Council,http://statistics.data.gov.uk/id/local-authority/00FC,Resources,Finance & Assets,Valuation & Consultancy,Rates,Rates,GD101,06/06/2012,115975,"1,259.50",Revenue,NORTH EAST LINCOLNSHIRE COUNCIL,100894
North East Lincolnshire Council,http://statistics.data.gov.uk/id/local-authority/00FC,Resources,Finance & Assets,Valuation & Consultancy,Rates,Rates,GD101,06/06/2012,115974,"1,305.30",Revenue,NORTH EAST LINCOLNSHIRE COUNCIL,100894
North East Lincolnshire Council,http://statistics.data.gov.uk/id/local-authority/00FC,Resources,Finance & Assets,Valuation & Consultancy,Cleaning And Domestic Supplies,Refuse Collection,GH104,08/06/2012,116493,"1,332.15",Revenue,VEOLIA ES CLEANAWAY (UK) LTD,101783
North East Lincolnshire Council,http://statistics.data.gov.uk/id/local-authority/00FC,Resources,Finance & Assets,Valuation & Consultancy,Cleaning And Domestic Supplies,Refuse Collection,GH104,08/06/2012,116489,"1,345.10",Revenue,VEOLIA ES CLEANAWAY (UK) LTD,101783
North East Lincolnshire Council,http://statistics.data.gov.uk/id/local-authority/00FC,Resources,Finance & Assets,Valuation & Consultancy,Rates,Rates,GD101,06/06/2012,115977,"1,374.00",Revenue,NORTH EAST LINCOLNSHIRE COUNCIL,100894
North East Lincolnshire Council,http://statistics.data.gov.uk/id/local-authority/00FC,Resources,Finance & Assets,Valuation & Consultancy,Rates,Rates,GD101,06/06/2012,115978,"1,374.00",Revenue,NORTH EAST LINCOLNSHIRE COUNCIL,100894
North East Lincolnshire Council,http://statistics.data.gov.uk/id/local-authority/00FC,Resources,Finance & Assets,Valuation & Consultancy,Rents,Rent,GC101,22/06/2012,119664,"1,468.75",Revenue,ASSOCIATED BRITISH PORTS,100834
North East Lincolnshire Council,http://statistics.data.gov.uk/id/local-authority/00FC,Resources,Finance & Assets,Valuation & Consultancy,Rates,Rates,GD101,06/06/2012,115976,"1,534.30",Revenue,NORTH EAST LINCOLNSHIRE COUNCIL,100894
North East Lincolnshire Council,http://statistics.data.gov.uk/id/local-authority/00FC,Resources,Finance & Assets,Valuation & Consultancy,Rates,Rates,GD101,20/06/2012,118876,"1,755.00",Revenue,NORTH EAST LINCOLNSHIRE COUNCIL,100894
North East Lincolnshire Council,http://statistics.data.gov.uk/id/local-authority/00FC,Resources,Finance & Assets,Valuation & Consultancy,Rates,Rates,GD101,06/06/2012,115979,"1,912.50",Revenue,NORTH EAST LINCOLNSHIRE COUNCIL,100894
North East Lincolnshire Council,http://statistics.data.gov.uk/id/local-authority/00FC,Resources,Finance & Assets,Valuation & Consultancy,Rates,Rates,GD101,11/06/2012,116632,"2,343.83",Revenue,NORTH EAST LINCOLNSHIRE COUNCIL,100894
North East Lincolnshire Council,http://statistics.data.gov.uk/id/local-authority/00FC,Resources,Finance & Assets,Valuation & Consultancy,Grounds Maintenance Costs,Grounds Maintenance,GJ101,22/06/2012,119662,"2,490.00",Revenue,NEWBY LEISURE LTD,101227
North East Lincolnshire Council,http://statistics.data.gov.uk/id/local-authority/00FC,Resources,Finance & Assets,Valuation & Consultancy,Rents,Rent,GC101,22/06/2012,119665,"2,562.50",Revenue,ASSOCIATED BRITISH PORTS,100834
North East Lincolnshire Council,http://statistics.data.gov.uk/id/local-authority/00FC,Resources,Finance & Assets,Valuation & Consultancy,Water Services,Water,GE101,19/06/2012,118302,"17,774.11",Revenue,ANGLIAN WATER,100508
North East Lincolnshire Council,http://statistics.data.gov.uk/id/local-authority/00FC,Resources,Finance & Assets,Contract Fee Asset Management,Private Contractors,Contract Payments,PH105,27/06/2012,120592,Redacted Commercially Sensitive,Revenue,BALFOUR BEATTY,102595
North East Lincolnshire Council,http://statistics.data.gov.uk/id/local-authority/00FC,Resources,Finance & Assets,Contract Fee Asset Management,Private Contractors,Contract Payments,PH105,27/06/2012,120592,Redacted Commercially Sensitive,Revenue,BALFOUR BEATTY,102595
North East Lincolnshire Council,http://statistics.data.gov.uk/id/local-authority/00FC,Resources,Governance & Business Support,Payroll,Grants And Subscriptions,Subscriptions,LJ101,26/06/2012,120173,600.00,Revenue,CIPFA BUSINESS LIMITED,102338
North East Lincolnshire Council,http://statistics.data.gov.uk/id/local-authority/00FC,Resources,Governance & Business Support,Payroll,Print Stationery / Gen Off Exp,Printing And Stationery,LD103,11/06/2012,116645,875.00,Revenue,PITNEY BOWES LIMITED,101236
North East Lincolnshire Council,http://statistics.data.gov.uk/id/local-authority/00FC,Resources,Governance & Business Support,Coroners,Other Agencies,Post Mortems,PJ148,27/06/2012,120480,817.60,Revenue,D CLARK PATHOLOGY,107678
North East Lincolnshire Council,http://statistics.data.gov.uk/id/local-authority/00FC,Resources,Governance & Business Support,Coroners,Other Agencies,Post Mortems,PJ148,29/06/2012,120704,871.20,Revenue,Redacted Personal Information,Redacted Personal Information
North East Lincolnshire Council,http://statistics.data.gov.uk/id/local-authority/00FC,Resources,Governance & Business Support,Coroners,Other Agencies,Post Mortems,PJ148,26/06/2012,120471,"1,070.00",Revenue,SHEFFIELD TEACHING HOSPITALS NHS TRUST,101211
North East Lincolnshire Council,http://statistics.data.gov.uk/id/local-authority/00FC,Resources,Governance & Business Support,Coroners,Other Agencies,Post Mortems,PJ148,29/06/2012,120162,"1,077.00",Revenue,NORTHERN LINCOLNSHIRE & GOOLE HOSPITALS,101242
North East Lincolnshire Council,http://statistics.data.gov.uk/id/local-authority/00FC,Resources,Governance & Business Support,Coroners,Other Agencies,Post Mortems,PJ148,29/06/2012,121351,"1,107.60",Revenue,Redacted Personal Information,Redacted Personal Information
North East Lincolnshire Council,http://statistics.data.gov.uk/id/local-authority/00FC,Resources,Governance & Business Support,Coroners,Other Agencies,Post Mortems,PJ148,26/06/2012,120157,"4,891.00",Revenue,NORTHERN LINCOLNSHIRE & GOOLE HOSPITALS,101242
North East Lincolnshire Council,http://statistics.data.gov.uk/id/local-authority/00FC,Resources,Governance & Business Support,Coroners,Other Agencies,Post Mortems,PJ148,26/06/2012,120156,"4,973.00",Revenue,NORTHERN LINCOLNSHIRE & GOOLE HOSPITALS,101242
North East Lincolnshire Council,http://statistics.data.gov.uk/id/local-authority/00FC,Resources,Governance & Business Support,Coroners,Other Agencies,Post Mortems,PJ148,26/06/2012,120158,"5,570.00",Revenue,NORTHERN LINCOLNSHIRE & GOOLE HOSPITALS,101242
North East Lincolnshire Council,http://statistics.data.gov.uk/id/local-authority/00FC,Resources,Governance & Business Support,Democratic Services,Grants And Subscriptions,Subscriptions,LJ101,26/06/2012,120173,600.00,Revenue,CIPFA BUSINESS LIMITED,102338
North East Lincolnshire Council,http://statistics.data.gov.uk/id/local-authority/00FC,Resources,Governance & Business Support,Democratic Services,Rents,Rent,GC101,26/06/2012,120012,Redacted Commercially Sensitive,Revenue,ATG VENUES UK LTD,102453
North East Lincolnshire Council,http://statistics.data.gov.uk/id/local-authority/00FC,Resources,Governance & Business Support,Democratic Services,Communications And Computing,Postage,LF111,26/06/2012,119671,"2,122.69",Revenue,ROYAL MAIL GROUP PLC,101082
North East Lincolnshire Council,http://statistics.data.gov.uk/id/local-authority/00FC,Resources,Governance & Business Support,Democratic Services,Communications And Computing,Postage,LF111,08/06/2012,116461,"4,292.17",Revenue,ROYAL MAIL GROUP PLC,101082
North East Lincolnshire Council,http://statistics.data.gov.uk/id/local-authority/00FC,Resources,Governance & Business Support,Democratic Services,Print Stationery / Gen Off Exp,Printing And Stationery,LD103,29/06/2012,121354,"4,873.45",Revenue,PRINT IMAGE NETWORK LTD,103724
North East Lincolnshire Council,http://statistics.data.gov.uk/id/local-authority/00FC,Resources,Governance & Business Support,Democratic Services,Communications And Computing,Postage,LF111,06/06/2012,115639,"5,338.89",Revenue,ROYAL MAIL GROUP PLC,101082
North East Lincolnshire Council,http://statistics.data.gov.uk/id/local-authority/00FC,Resources,Governance & Business Support,Democratic Services,Print Stationery / Gen Off Exp,Printing And Stationery,LD103,20/06/2012,118566,"5,373.56",Revenue,PRINT IMAGE NETWORK LTD,103724
North East Lincolnshire Council,http://statistics.data.gov.uk/id/local-authority/00FC,Resources,Governance & Business Support,Legal Services,Grants And Subscriptions,Subscriptions,LJ101,26/06/2012,120173,600.00,Revenue,CIPFA BUSINESS LIMITED,102338
North East Lincolnshire Council,http://statistics.data.gov.uk/id/local-authority/00FC,Resources,Governance & Business Support,Legal Services,Direct Employee Expenses,Agency Staff,EA105,27/06/2012,120693,746.80,Revenue,BADENOCH & CLARK,101427
North East Lincolnshire Council,http://statistics.data.gov.uk/id/local-authority/00FC,Resources,Governance & Business Support,Legal Services,Consultancy,Consultancy,PL101,26/06/2012,119673,864.00,Revenue,DICKINSON DEES,101644
North East Lincolnshire Council,http://statistics.data.gov.uk/id/local-authority/00FC,Resources,Governance & Business Support,Legal Services,Direct Employee Expenses,Agency Staff,EA105,26/06/2012,120014,"1,138.87",Revenue,BADENOCH & CLARK,101427
North East Lincolnshire Council,http://statistics.data.gov.uk/id/local-authority/00FC,Resources,Governance & Business Support,Legal Services,Direct Employee Expenses,Agency Staff,EA105,12/06/2012,116816,"1,194.88",Revenue,BADENOCH & CLARK,101427
North East Lincolnshire Council,http://statistics.data.gov.uk/id/local-authority/00FC,Resources,Governance & Business Support,Legal Services,Direct Employee Expenses,Agency Staff,EA105,12/06/2012,116839,"1,194.88",Revenue,BADENOCH & CLARK,101427
North East Lincolnshire Council,http://statistics.data.gov.uk/id/local-authority/00FC,Resources,Governance & Business Support,Legal Services,Direct Employee Expenses,Agency Staff,EA105,12/06/2012,116836,"1,194.88",Revenue,BADENOCH & CLARK,101427
North East Lincolnshire Council,http://statistics.data.gov.uk/id/local-authority/00FC,Resources,Governance & Business Support,Legal Services,Direct Employee Expenses,Agency Staff,EA105,29/06/2012,121356,"1,194.88",Revenue,BADENOCH & CLARK,101427
North East Lincolnshire Council,http://statistics.data.gov.uk/id/local-authority/00FC,Resources,Governance & Business Support,Legal Services,Direct Employee Expenses,Agency Staff,EA105,15/06/2012,117576,"1,372.14",Revenue,BADENOCH & CLARK,101427
North East Lincolnshire Council,http://statistics.data.gov.uk/id/local-authority/00FC,Resources,Governance & Business Support,Legal Services,Communications And Computing,Postage,LF111,19/06/2012,118521,"1,708.46",Revenue,NEOPOST FINANCE LIMITED,101065
North East Lincolnshire Council,http://statistics.data.gov.uk/id/local-authority/00FC,Resources,Governance & Business Support,Legal Services,Direct Employee Expenses,Agency Staff,EA105,15/06/2012,117581,"1,753.29",Revenue,BADENOCH & CLARK,101427
North East Lincolnshire Council,http://statistics.data.gov.uk/id/local-authority/00FC,Resources,Governance & Business Support,Legal Services,Direct Employee Expenses,Agency Staff,EA105,15/06/2012,117582,"1,796.85",Revenue,BADENOCH & CLARK,101427
North East Lincolnshire Council,http://statistics.data.gov.uk/id/local-authority/00FC,Resources,Governance & Business Support,Legal Services,Direct Employee Expenses,Agency Staff,EA105,15/06/2012,117584,"1,873.08",Revenue,BADENOCH & CLARK,101427
North East Lincolnshire Council,http://statistics.data.gov.uk/id/local-authority/00FC,Resources,Governance & Business Support,Legal Services,Consultancy,Consultancy,PL101,26/06/2012,119674,"4,712.00",Revenue,DICKINSON DEES,101644
North East Lincolnshire Council,http://statistics.data.gov.uk/id/local-authority/00FC,Resources,Governance & Business Support,Legal Services,Direct Employee Expenses,Agency Staff,EA105,15/06/2012,117587,"6,586.00",Revenue,AD LITEM LEGAL SERVICES,104447
North East Lincolnshire Council,http://statistics.data.gov.uk/id/local-authority/00FC,Resources,Governance & Business Support,Legal Services,Direct Employee Expenses,Agency Staff,EA105,29/06/2012,121352,"6,586.00",Revenue,AD LITEM LEGAL SERVICES,104447
North East Lincolnshire Council,http://statistics.data.gov.uk/id/local-authority/00FC,Resources,Governance & Business Support,Legal Services,Grants And Subscriptions,Subscriptions,LJ101,26/06/2012,120578,"17,823.24",Revenue,LOCAL GOVERNMENT YORKSHIRE & HUMBER,101734
North East Lincolnshire Council,http://statistics.data.gov.uk/id/local-authority/00FC,Resources,Governance & Business Support,Town Hall,Miscellaneous Expenses,Civic Regalia And Events,LL117,12/06/2012,116775,740.00,Revenue,VALLIN CATERING,100567
North East Lincolnshire Council,http://statistics.data.gov.uk/id/local-authority/00FC,Resources,Governance & Business Support,Customer Services,Print Stationery / Gen Off Exp,Advertising,LD104,08/06/2012,116468,"1,701.46",Revenue,BRITISH TELECOMMUNICATIONS PLC,100974
North East Lincolnshire Council,http://statistics.data.gov.uk/id/local-authority/00FC,Resources,Governance & Business Support,Customer Services,Communications And Computing,Computer S/Ware - Maintenance,LF102,26/06/2012,120407,"2,954.10",Revenue,APD COMMUNICATIONS LTD,101972
North East Lincolnshire Council,http://statistics.data.gov.uk/id/local-authority/00FC,Resources,Governance & Business Support,Customer Services,Direct Employee Expenses,Agency Staff,EA105,14/06/2012,117520,"3,000.00",Revenue,IMMINGHAM TOWN COUNCIL,101597
North East Lincolnshire Council,http://statistics.data.gov.uk/id/local-authority/00FC,Resources,Governance & Business Support,Customer Services,Rents,Rent,GC101,14/06/2012,117520,"4,000.00",Revenue,IMMINGHAM TOWN COUNCIL,101597
North East Lincolnshire Council,http://statistics.data.gov.uk/id/local-authority/00FC,Resources,Governance & Business Support,Health And Safety,Indirect Employee Expenses,Medical Expenses - Employees,EB112,20/06/2012,118454,"2,959.81",Revenue,WELLWORK LTD,102362
North East Lincolnshire Council,http://statistics.data.gov.uk/id/local-authority/00FC,Resources,Governance & Business Support,Human Resources,Indirect Employee Expenses,Recruitment Expenses,EB114,29/06/2012,120045,"3,148.76",Revenue,PENNA BARKERS,102320
North East Lincolnshire Council,http://statistics.data.gov.uk/id/local-authority/00FC,Resources,Governance & Business Support,Policy & Partnerships,Contributions To Provisions,Contributions - Third Sector,LK102,14/06/2012,117667,"6,330.00",Revenue,VOLUNTARY ACTION NORTH EAST LINCOLNSHIRE,103631
North East Lincolnshire Council,http://statistics.data.gov.uk/id/local-authority/00FC,Resources,Governance & Business Support,Audit / Insurance And Risk,Car Allowances,Travel - Employees,JF101,20/06/2012,118815,-199.58,Revenue,NYS CORPORATE,102444
North East Lincolnshire Council,http://statistics.data.gov.uk/id/local-authority/00FC,Resources,Governance & Business Support,Audit / Insurance And Risk,Grants And Subscriptions,Subscriptions,LJ101,26/06/2012,120173,600.00,Revenue,CIPFA BUSINESS LIMITED,102338
North East Lincolnshire Council,http://statistics.data.gov.uk/id/local-authority/00FC,Resources,Strategic Director Resources,Business Support (Sbs),Print Stationery / Gen Off Exp,Printing And Stationery,LD103,20/06/2012,118347,-483.59,Revenue,LYRECO UK LIMITED,101120
North East Lincolnshire Council,http://statistics.data.gov.uk/id/local-authority/00FC,Resources,Strategic Director Resources,Business Support (Sbs),Communications And Computing,Postage,LF111,26/06/2012,120420,734.84,Revenue,ROYAL MAIL GROUP PLC,101082
North East Lincolnshire Council,http://statistics.data.gov.uk/id/local-authority/00FC,Resources,Strategic Director Resources,Business Support (Sbs),Communications And Computing,Postage,LF111,26/06/2012,120420,"1,190.37",Revenue,ROYAL MAIL GROUP PLC,101082
North East Lincolnshire Council,http://statistics.data.gov.uk/id/local-authority/00FC,Resources,Strategic Director Resources,Business Support (Sbs),Communications And Computing,Postage,LF111,26/06/2012,116880,"1,440.65",Revenue,ROYAL MAIL GROUP PLC,101082
North East Lincolnshire Council,http://statistics.data.gov.uk/id/local-authority/00FC,Resources,Strategic Director Resources,Business Support (Sbs),Communications And Computing,Postage,LF111,26/06/2012,119672,"1,536.40",Revenue,ROYAL MAIL GROUP PLC,101082
North East Lincolnshire Council,http://statistics.data.gov.uk/id/local-authority/00FC,Resources,Strategic Director Resources,Business Support (Sbs),Communications And Computing,Postage,LF111,26/06/2012,120303,"1,679.66",Revenue,ROYAL MAIL GROUP PLC,101082
North East Lincolnshire Council,http://statistics.data.gov.uk/id/local-authority/00FC,Resources,Strategic Director Resources,Business Support (Sbs),Communications And Computing,Postage,LF111,26/06/2012,120302,"2,123.83",Revenue,ROYAL MAIL GROUP PLC,101082
North East Lincolnshire Council,http://statistics.data.gov.uk/id/local-authority/00FC,Resources,Strategic Director Resources,Business Support (Sbs),Communications And Computing,Postage,LF111,26/06/2012,120304,"2,318.10",Revenue,ROYAL MAIL GROUP PLC,101082
North East Lincolnshire Council,http://statistics.data.gov.uk/id/local-authority/00FC,Resources,Strategic Director Resources,Business Support (Sbs),Communications And Computing,Postage,LF111,26/06/2012,120305,"3,009.80",Revenue,ROYAL MAIL GROUP PLC,101082
North East Lincolnshire Council,http://statistics.data.gov.uk/id/local-authority/00FC,Resources,Strategic Director Resources,Director And Support,Indirect Employee Expenses,Staff Training,EB122,21/06/2012,119341,"1,095.00",Revenue,REDACTIVE EVENTS LIMITED,103224
North East Lincolnshire Council,http://statistics.data.gov.uk/id/local-authority/00FC,Resources,Strategic Director Resources,Director And Support,Miscellaneous Expenses,Other Expenses General,LL119,11/06/2012,116701,"4,465.95",Revenue,HR4U CONSULTING LTD,104411
North East Lincolnshire Council,http://statistics.data.gov.uk/id/local-authority/00FC,Resources,Strategic Director Resources,Director And Support,Miscellaneous Expenses,Other Expenses General,LL119,11/06/2012,116700,"4,681.05",Revenue,HR4U CONSULTING LTD,104411
North East Lincolnshire Council,http://statistics.data.gov.uk/id/local-authority/00FC,Resources,Strategic Director Resources,Director And Support,Car Allowances,Essential User Car Allowance,JF103,28/06/2012,120936,"4,776.96",Revenue,ARNOLD CLARK FINANCE LIMITED,101500
North East Lincolnshire Council,http://statistics.data.gov.uk/id/local-authority/00FC,Resources,Strategic Director Resources,Director And Support,Consultancy,Consultancy,PL101,27/06/2012,120482,"6,981.00",Revenue,PENNA BARKERS,102320
North East Lincolnshire Council,http://statistics.data.gov.uk/id/local-authority/00FC,Environment Economy & Housing,Neighbourhood Services,Cemeteries & Crematorium,Clothes Uniforms And Laundry,Protective Clothing,LC101,25/06/2012,119529,-63.49,Revenue,ARCO LTD,100509
North East Lincolnshire Council,http://statistics.data.gov.uk/id/local-authority/00FC,Environment Economy & Housing,Neighbourhood Services,Cemeteries & Crematorium,Communications And Computing,Computer S/Ware - Maintenance,LF102,19/06/2012,118035,"2,250.00",Revenue,CLEARSKIES SOFTWARE,106786
North East Lincolnshire Council,http://statistics.data.gov.uk/id/local-authority/00FC,Environment Economy & Housing,Neighbourhood Services,Countryside Management,Rents,Rent,GC101,11/06/2012,116618,"5,250.00",Revenue,IMMINGHAM GOLF CLUB,110573
North East Lincolnshire Council,http://statistics.data.gov.uk/id/local-authority/00FC,Environment Economy & Housing,Neighbourhood Services,Garage & Fleet Strategy,Direct Transport Costs,Vehicles - Repairs And Maint,JA105,19/06/2012,118343,-51.08,Revenue,NORTHSIDE TRUCK AND VAN LTD,108065
North East Lincolnshire Council,http://statistics.data.gov.uk/id/local-authority/00FC,Environment Economy & Housing,Neighbourhood Services,Garage & Fleet Strategy,Direct Transport Costs,Vehicles - Repairs And Maint,JA105,19/06/2012,118346,-12.14,Revenue,NORTHSIDE TRUCK AND VAN LTD,108065
North East Lincolnshire Council,http://statistics.data.gov.uk/id/local-authority/00FC,Environment Economy & Housing,Neighbourhood Services,Garage & Fleet Strategy,Direct Transport Costs,Vehicles - Repairs And Maint,JA105,19/06/2012,118342,-11.88,Revenue,NORTH EAST TRUCK & VAN LTD,100827
North East Lincolnshire Council,http://statistics.data.gov.uk/id/local-authority/00FC,Environment Economy & Housing,Neighbourhood Services,Garage & Fleet Strategy,Equip / Furniture / Materials,Equipment - Maintenance,LA104,20/06/2012,118211,521.51,Revenue,SGI INDUSTRIES LTD,105664
North East Lincolnshire Council,http://statistics.data.gov.uk/id/local-authority/00FC,Environment Economy & Housing,Neighbourhood Services,Garage & Fleet Strategy,Direct Transport Costs,Vehicles - Repairs And Maint,JA105,15/06/2012,117788,559.82,Revenue,REG GREENWOODS TYRES & EXHAUSTS LTD,103921
North East Lincolnshire Council,http://statistics.data.gov.uk/id/local-authority/00FC,Environment Economy & Housing,Neighbourhood Services,Garage & Fleet Strategy,Direct Transport Costs,Vehicles - Repairs And Maint,JA105,15/06/2012,117782,559.82,Revenue,REG GREENWOODS TYRES & EXHAUSTS LTD,103921
North East Lincolnshire Council,http://statistics.data.gov.uk/id/local-authority/00FC,Environment Economy & Housing,Neighbourhood Services,Garage & Fleet Strategy,Direct Transport Costs,Vehicles - Repairs And Maint,JA105,15/06/2012,117785,559.82,Revenue,REG GREENWOODS TYRES & EXHAUSTS LTD,103921
North East Lincolnshire Council,http://statistics.data.gov.uk/id/local-authority/00FC,Environment Economy & Housing,Neighbourhood Services,Garage & Fleet Strategy,Direct Transport Costs,Vehicles - Repairs And Maint,JA105,19/06/2012,118242,660.28,Revenue,P J PRESTON AUTO ELECT LTD,100739
North East Lincolnshire Council,http://statistics.data.gov.uk/id/local-authority/00FC,Environment Economy & Housing,Neighbourhood Services,Garage & Fleet Strategy,Direct Transport Costs,Vehicles - Repairs And Maint,JA105,19/06/2012,118240,695.00,Revenue,P J PRESTON AUTO ELECT LTD,100739
North East Lincolnshire Council,http://statistics.data.gov.uk/id/local-authority/00FC,Environment Economy & Housing,Neighbourhood Services,Garage & Fleet Strategy,Equip / Furniture / Materials,Equipment - Maintenance,LA104,20/06/2012,118181,763.58,Revenue,CHEMSAFE (YORKS) LTD,109651
North East Lincolnshire Council,http://statistics.data.gov.uk/id/local-authority/00FC,Environment Economy & Housing,Neighbourhood Services,Garage & Fleet Strategy,Direct Transport Costs,Vehicles - Repairs And Maint,JA105,18/06/2012,117765,867.66,Revenue,REG GREENWOODS TYRES & EXHAUSTS LTD,103921
North East Lincolnshire Council,http://statistics.data.gov.uk/id/local-authority/00FC,Environment Economy & Housing,Neighbourhood Services,Garage & Fleet Strategy,Direct Transport Costs,Vehicles - Repairs And Maint,JA105,18/06/2012,118255,889.83,Revenue,LAWNMOWER SERVICE(LINCOLN)LTD,100544
North East Lincolnshire Council,http://statistics.data.gov.uk/id/local-authority/00FC,Environment Economy & Housing,Neighbourhood Services,Garage & Fleet Strategy,Direct Transport Costs,Vehicles - Repairs And Maint,JA105,19/06/2012,118262,970.00,Revenue,HEWSON & TURRELL LTD,100539
North East Lincolnshire Council,http://statistics.data.gov.uk/id/local-authority/00FC,Environment Economy & Housing,Neighbourhood Services,Garage & Fleet Strategy,Direct Transport Costs,Vehicles - Repairs And Maint,JA105,19/06/2012,118263,"1,187.42",Revenue,T C HARRISON J C B,100537
North East Lincolnshire Council,http://statistics.data.gov.uk/id/local-authority/00FC,Environment Economy & Housing,Neighbourhood Services,Garage & Fleet Strategy,Equip / Furniture / Materials,Equipment - Maintenance,LA104,19/06/2012,118253,"1,209.04",Revenue,LARCO LTD,100542
North East Lincolnshire Council,http://statistics.data.gov.uk/id/local-authority/00FC,Environment Economy & Housing,Neighbourhood Services,Garage & Fleet Strategy,Direct Transport Costs,Vehicles - Repairs And Maint,JA105,19/06/2012,118250,"2,163.71",Revenue,NORTHSIDE TRUCK AND VAN LTD,108065
North East Lincolnshire Council,http://statistics.data.gov.uk/id/local-authority/00FC,Environment Economy & Housing,Neighbourhood Services,Garage & Fleet Strategy,Equip / Furniture / Materials,Equipment - Maintenance,LA104,20/06/2012,118267,"3,779.21",Revenue,LARCO LTD,100542
North East Lincolnshire Council,http://statistics.data.gov.uk/id/local-authority/00FC,Environment Economy & Housing,Neighbourhood Services,Grounds,Private Contractors,Third Party Prov - Private,PH101,12/06/2012,116784,702.00,Revenue,R T H HAXBY & SONS,101351
North East Lincolnshire Council,http://statistics.data.gov.uk/id/local-authority/00FC,Environment Economy & Housing,Neighbourhood Services,Grounds,Direct Transport Costs,Vehicles - Running Costs,JA104,12/06/2012,116890,767.57,Revenue,ALLSTAR BUSINESS SOLUTIONS LTD,108278
North East Lincolnshire Council,http://statistics.data.gov.uk/id/local-authority/00FC,Environment Economy & Housing,Neighbourhood Services,Grounds,Indirect Employee Expenses,Staff Training,EB122,15/06/2012,117615,780.00,Revenue,VALE ENGINEERING (YORK) LTD,101700
North East Lincolnshire Council,http://statistics.data.gov.uk/id/local-authority/00FC,Environment Economy & Housing,Neighbourhood Services,Grounds,Equip / Furniture / Materials,Equipment - Purchase,LA101,27/06/2012,120388,"2,260.00",Revenue,FLEET (LINE MARKERS) LIMITED,100595
North East Lincolnshire Council,http://statistics.data.gov.uk/id/local-authority/00FC,Environment Economy & Housing,Neighbourhood Services,Grounds,Equip / Furniture / Materials,Equipment - Purchase,LA101,27/06/2012,120455,"2,400.00",Revenue,JAMES COLES & SONS LTD,100758
North East Lincolnshire Council,http://statistics.data.gov.uk/id/local-authority/00FC,Environment Economy & Housing,Neighbourhood Services,Neighbourhood Serv Mgmt A/C,Consultancy,Consultancy,PL101,13/06/2012,116644,"1,954.22",Revenue,APSE,101174
North East Lincolnshire Council,http://statistics.data.gov.uk/id/local-authority/00FC,Environment Economy & Housing,Neighbourhood Services,Resort Management,Rates,Rates,GD101,27/06/2012,120415,"1,012.50",Revenue,NORTH EAST LINCOLNSHIRE COUNCIL,100894
North East Lincolnshire Council,http://statistics.data.gov.uk/id/local-authority/00FC,Environment Economy & Housing,Neighbourhood Services,Resort Management,Rep Alterations Maint Building,Buildings - Repairs And Maint,GA102,15/06/2012,117550,"1,080.00",Revenue,TERRY WILLIS,102562
North East Lincolnshire Council,http://statistics.data.gov.uk/id/local-authority/00FC,Environment Economy & Housing,Neighbourhood Services,Resort Management,Rep Alterations Maint Building,Buildings - Repairs And Maint,GA102,27/06/2012,120416,"1,297.17",Revenue,HARROQUIP PUMP SYSTEMS,103412
North East Lincolnshire Council,http://statistics.data.gov.uk/id/local-authority/00FC,Environment Economy & Housing,Neighbourhood Services,Community Pride,Indirect Employee Expenses,Staff Training,EB122,21/06/2012,119231,552.00,Revenue,MANATEC LTD,102048
North East Lincolnshire Council,http://statistics.data.gov.uk/id/local-authority/00FC,Environment Economy & Housing,Neighbourhood Services,Community Pride,Direct Transport Costs,Vehicles - Running Costs,JA104,12/06/2012,116890,571.37,Revenue,ALLSTAR BUSINESS SOLUTIONS LTD,108278
North East Lincolnshire Council,http://statistics.data.gov.uk/id/local-authority/00FC,Environment Economy & Housing,Neighbourhood Services,Community Pride,Equip / Furniture / Materials,Equipment - Purchase,LA101,28/06/2012,120989,740.00,Revenue,NORTHERN MUNICIPAL SPARES LTD,103102
North East Lincolnshire Council,http://statistics.data.gov.uk/id/local-authority/00FC,Environment Economy & Housing,Neighbourhood Services,Community Pride,Private Contractors,Third Party Prov - Private,PH101,11/06/2012,116670,"3,110.43",Revenue,SANGREAT KENNELS,103270
North East Lincolnshire Council,http://statistics.data.gov.uk/id/local-authority/00FC,Environment Economy & Housing,Neighbourhood Services,Waste Collection,Clothes Uniforms And Laundry,Protective Clothing,LC101,29/06/2012,120360,672.00,Revenue,ARCO LTD,100509
North East Lincolnshire Council,http://statistics.data.gov.uk/id/local-authority/00FC,Environment Economy & Housing,Neighbourhood Services,Waste Collection,Private Contractors,Third Party Prov - Private,PH101,27/06/2012,120414,797.00,Revenue,C E SMITH & SONS,104444
North East Lincolnshire Council,http://statistics.data.gov.uk/id/local-authority/00FC,Environment Economy & Housing,Neighbourhood Services,Waste Collection,Direct Employee Expenses,Agency Staff,EA105,13/06/2012,117217,"1,600.15",Revenue,MATRIX SCM LTD,108117
North East Lincolnshire Council,http://statistics.data.gov.uk/id/local-authority/00FC,Environment Economy & Housing,Neighbourhood Services,Waste Collection,Direct Employee Expenses,Agency Staff,EA105,13/06/2012,117217,"1,931.99",Revenue,MATRIX SCM LTD,108117
North East Lincolnshire Council,http://statistics.data.gov.uk/id/local-authority/00FC,Environment Economy & Housing,Neighbourhood Services,Waste Collection,Direct Employee Expenses,Agency Staff,EA105,12/06/2012,117034,"2,411.52",Revenue,MATRIX SCM LTD,108117
North East Lincolnshire Council,http://statistics.data.gov.uk/id/local-authority/00FC,Environment Economy & Housing,Neighbourhood Services,Waste Disposal,Private Contractors,Contract Payments Landfill Tax,PH106,20/06/2012,118807,Redacted Commercially Sensitive,Revenue,NEWLINCS DEVELOPMENT LTD,101125
North East Lincolnshire Council,http://statistics.data.gov.uk/id/local-authority/00FC,Environment Economy & Housing,Neighbourhood Services,Waste Disposal,Private Contractors,Contract Payments,PH105,20/06/2012,118807,Redacted Commercially Sensitive,Revenue,NEWLINCS DEVELOPMENT LTD,101125
North East Lincolnshire Council,http://statistics.data.gov.uk/id/local-authority/00FC,Environment Economy & Housing,Neighbourhood Services,Waste Strategy,Customer And Client Receipts,Sales - Std Vat 7,VC101,20/06/2012,118807,Redacted Commercially Sensitive,Revenue,NEWLINCS DEVELOPMENT LTD,101125
North East Lincolnshire Council,http://statistics.data.gov.uk/id/local-authority/00FC,Environment Economy & Housing,Neighbourhood Services,Waste Strategy,Customer And Client Receipts,Fees/Chrgs-O/Side Scope Vat 4,VC125,20/06/2012,118807,Redacted Commercially Sensitive,Revenue,NEWLINCS DEVELOPMENT LTD,101125
North East Lincolnshire Council,http://statistics.data.gov.uk/id/local-authority/00FC,Environment Economy & Housing,Neighbourhood Services,Waste Strategy,Equip / Furniture / Materials,Promotions,LA124,27/06/2012,120354,975.00,Revenue,GLOBAL RADIO SERVICES LTD,109784
North East Lincolnshire Council,http://statistics.data.gov.uk/id/local-authority/00FC,Environment Economy & Housing,Neighbourhood Services,Waste Strategy,Equip / Furniture / Materials,Promotions,LA124,29/06/2012,120998,"1,044.87",Revenue,GRIMSBY & SCUNTHORPE MEDIA GROUP LTD,101827
North East Lincolnshire Council,http://statistics.data.gov.uk/id/local-authority/00FC,Environment Economy & Housing,Development,Community Learning Services,Miscellaneous Expenses,Other Expenses General,LL119,07/06/2012,116294,-25.00,Revenue,PETTY CASH,Redacted
North East Lincolnshire Council,http://statistics.data.gov.uk/id/local-authority/00FC,Environment Economy & Housing,Development,Community Learning Services,Miscellaneous Expenses,Other Expenses General,LL119,07/06/2012,116264,545.00,Revenue,Redacted Personal Information,Redacted Personal Information
North East Lincolnshire Council,http://statistics.data.gov.uk/id/local-authority/00FC,Environment Economy & Housing,Development,Community Learning Services,Other Agencies,Further Ed Emp & Training,PJ130,19/06/2012,118018,555.00,Revenue,THE GRIMSBY INSTITUTE OF FURTHER,102742
North East Lincolnshire Council,http://statistics.data.gov.uk/id/local-authority/00FC,Environment Economy & Housing,Development,Community Learning Services,Public Transport,Public Transport - Serv User,JD102,29/06/2012,120681,632.40,Revenue,STAGECOACH SERVICES,101404
North East Lincolnshire Council,http://statistics.data.gov.uk/id/local-authority/00FC,Environment Economy & Housing,Development,Community Learning Services,Public Transport,Public Transport - Serv User,JD102,08/06/2012,115771,660.30,Revenue,STAGECOACH SERVICES,101404
North East Lincolnshire Council,http://statistics.data.gov.uk/id/local-authority/00FC,Environment Economy & Housing,Development,Environmental Improvement,Equip / Furniture / Materials,Promotions,LA124,26/06/2012,120103,625.00,Revenue,POSITIVE MEDIA PROMOTIONS LTD,109744
North East Lincolnshire Council,http://statistics.data.gov.uk/id/local-authority/00FC,Environment Economy & Housing,Development,Environmental Improvement,Direct Transport Costs,Vehicles - Repairs And Maint,JA105,18/06/2012,117769,833.16,Revenue,REG GREENWOODS TYRES & EXHAUSTS LTD,103921
North East Lincolnshire Council,http://statistics.data.gov.uk/id/local-authority/00FC,Environment Economy & Housing,Development,Environmental Improvement,Customer And Client Receipts,Fees/Chrgs-O/Side Scope Vat 4,VC125,20/06/2012,118806,"1,152.40",Revenue,RUNNING IMP INTERNATIONAL SPORTS LTD,105306
North East Lincolnshire Council,http://statistics.data.gov.uk/id/local-authority/00FC,Environment Economy & Housing,Development,Pollution,Car Allowances,Travel - Employees,JF101,08/06/2012,116507,-19.59,Revenue,NYS CORPORATE,102444
North East Lincolnshire Council,http://statistics.data.gov.uk/id/local-authority/00FC,Environment Economy & Housing,Development,Pollution,Private Contractors,Third Party Prov - Private,PH101,26/06/2012,119994,"1,530.68",Revenue,STM ENVIRONMENTAL CONSULTANTS LTD,104192
North East Lincolnshire Council,http://statistics.data.gov.uk/id/local-authority/00FC,Environment Economy & Housing,Development,Highways Plan Out Of Scope,Miscellaneous Expenses,Other Supplies & Services,LL110,19/06/2012,118507,641.00,Revenue,ROAD TRAFFIC SOLUTIONS LIMITED,110409
North East Lincolnshire Council,http://statistics.data.gov.uk/id/local-authority/00FC,Environment Economy & Housing,Development,Highways Plan Out Of Scope,Private Contractors,Contract Payments,PH105,20/06/2012,118817,Redacted Commercially Sensitive,Revenue,BALFOUR BEATTY,102595
North East Lincolnshire Council,http://statistics.data.gov.uk/id/local-authority/00FC,Environment Economy & Housing,Development,Community Investment Team,Private Contractors,Third Party Prov - Private,PH101,15/06/2012,117537,509.20,Revenue,TOP TIPS BY JULIE,107158
North East Lincolnshire Council,http://statistics.data.gov.uk/id/local-authority/00FC,Environment Economy & Housing,Development,Community Investment Team,Private Contractors,Third Party Prov - Private,PH101,21/06/2012,119147,717.75,Revenue,PIPPINS WHOLESALE LTD,107047
North East Lincolnshire Council,http://statistics.data.gov.uk/id/local-authority/00FC,Environment Economy & Housing,Development,Community Investment Team,Private Contractors,Third Party Prov - Private,PH101,26/06/2012,119952,829.92,Revenue,CARPET CHRIS LTD,108726
North East Lincolnshire Council,http://statistics.data.gov.uk/id/local-authority/00FC,Environment Economy & Housing,Development,Community Investment Team,Private Contractors,Third Party Prov - Private,PH101,13/06/2012,117250,"1,070.31",Revenue,GREATER GRIMSBY LEARNING LTD,102606
North East Lincolnshire Council,http://statistics.data.gov.uk/id/local-authority/00FC,Environment Economy & Housing,Development,Community Investment Team,Private Contractors,Third Party Prov - Private,PH101,21/06/2012,119312,"1,250.00",Revenue,THE INTRAINING GROUP LTD,108494
North East Lincolnshire Council,http://statistics.data.gov.uk/id/local-authority/00FC,Environment Economy & Housing,Development,Community Investment Team,Private Contractors,Third Party Prov - Private,PH101,08/06/2012,116047,"1,250.00",Revenue,THE INTRAINING GROUP LTD,108494
North East Lincolnshire Council,http://statistics.data.gov.uk/id/local-authority/00FC,Environment Economy & Housing,Development,Community Investment Team,Private Contractors,Third Party Prov - Private,PH101,13/06/2012,117192,"1,250.00",Revenue,HULL BUSINESS TRAINING CENTRE,107699
North East Lincolnshire Council,http://statistics.data.gov.uk/id/local-authority/00FC,Environment Economy & Housing,Development,Community Investment Team,Private Contractors,Third Party Prov - Private,PH101,26/06/2012,119782,"1,250.00",Revenue,HULL BUSINESS TRAINING CENTRE,107699
North East Lincolnshire Council,http://statistics.data.gov.uk/id/local-authority/00FC,Environment Economy & Housing,Development,Community Investment Team,Private Contractors,Third Party Prov - Private,PH101,27/06/2012,119949,"1,250.00",Revenue,HULL BUSINESS TRAINING CENTRE,107699
North East Lincolnshire Council,http://statistics.data.gov.uk/id/local-authority/00FC,Environment Economy & Housing,Development,Community Investment Team,Private Contractors,Third Party Prov - Private,PH101,27/06/2012,120348,"1,250.00",Revenue,MCARTHUR DEAN TRAINING LTD,107184
North East Lincolnshire Council,http://statistics.data.gov.uk/id/local-authority/00FC,Environment Economy & Housing,Development,Community Investment Team,Private Contractors,Third Party Prov - Private,PH101,14/06/2012,117658,"1,436.00",Revenue,THE-HANDYMAN.CO.UK LTD,107162
North East Lincolnshire Council,http://statistics.data.gov.uk/id/local-authority/00FC,Environment Economy & Housing,Development,Community Investment Team,Private Contractors,Third Party Prov - Private,PH101,14/06/2012,117252,"1,784.38",Revenue,BEST TRAINING LIMITED,108727
North East Lincolnshire Council,http://statistics.data.gov.uk/id/local-authority/00FC,Environment Economy & Housing,Development,Community Investment Team,Private Contractors,Third Party Prov - Private,PH101,13/06/2012,117251,"2,908.50",Revenue,ULTRASONIC CLEANING COMPANY,108724
North East Lincolnshire Council,http://statistics.data.gov.uk/id/local-authority/00FC,Environment Economy & Housing,Development,Community Investment Team,Private Contractors,Third Party Prov - Private,PH101,29/06/2012,120708,"8,343.00",Revenue,FORESIGHT NORTH EAST LINCOLNSHIRE,102869
